Workbook

Sheet Instructions
A1: Project Name: | C1: Reclaim Model - Overview of Program
B2: Baffinland Iron Mine (Bas | C2: All users are urged to read the Reclaim Model User Manual - Scroll down for overview description of program.
C3: Important! Reclaim 7.0 works better with no other excel files open.
C4: If other excel files are open ignore run time error and proceed
A5: Reclaim Menu | C5: The default Excel menu bar has an additional tab labelled "Add-Ins" that provides options specific to the Reclaim Model.
B6: Clear | C6: This option deletes all input data, deletes any duplicated elements and blanks out the project name. It also allows for segregation into land costs vs water costs if required.
B7: Duplicate | C7: This option Duplicates components of the project. E.g. if there is more than one Open Pit, use duplicate to add a second Open Pit. Quantities for the new Open Pit are erased, but the Activities and Cost Codes are carried over from the original Open Pit. The new Open Pit subtotal is added to the Summary page.
B8: Unit Costs | C8: This option opens a window of unit costs to provide easy reference. NOTE: the unit cost table has a filter in the 'UNITS' column. You can select to only see a particular unit (eg km) or multiple units (km and m3) or all units.
B9: Print All | C9: This option prints the Summary Worksheet, Unit Cost Worksheet, and the individual component worksheets having non-zero balances. Individual worksheets can be printed directly using standard printing methods, such as Ctl - P.
B10: Quit | C10: Select Quit to exit the program
B11: Help | C11: Redirects user to Instructions worksheet.
A13: WorkSheets
B14: Summary | C14: This worksheet contains a cumulative summary of costs for each component of the project. Associated costs such as engineering and project management are added as a percentage of the component costs.
B15: Components | C15: Costs are derived for individual closure and reclamation activities by multiplying a "quantity" of activity by a "unit cost". An activity can be edited, added, or deleted from worksheet. However, care should be taken not to modify cells that are defined and used elsewhere in the program.
C16: Do not change the content or column width of the first column of each component worksheet.
B17: Unit Costs | C17: This worksheet contains a look up table with costs for typical work associated with each closure and reclamation activity
A19: Limitations | C19: The Reclaim Program will NOT work if the worksheets are changed such that the following requirements are not met. Please review the following prior to modifiying worksheets.
B20: WorkSheet Names | C20: The names of the worksheets must not be changed.
B21: Defined Names | C21: Certain cells have defined names, which must not be changed. Where the cell is named, the name will appear in the "Name Box" to the left of the formula bar.
B22: First line of data | C22: The first line of data for any component worksheet starts on line 4. Do not change the first line of a component worksheet, ie the component name.
B23: Cell A1 | C23: Cell A1 on the component sheet MUST always contain the count of that component for the duplicate function to operate. DO NOT CHANGE.
B24: Adding Lines | C24: You can add lines to components and the unit cost table, as long as they are not the last lines. The last line might fall outside the named ranges. You can check the size of the named range by selecting the name from the drop down box at the top left of the sheet. Usually this box has a cell reference, or a name.
B25: Printing | C25: A component will only be printed if its sub-total is greater than zero. In addition, a component and the summary sheet cannot be printed if there is an error. Printing has been set to print 1 page per component.
A27: Conditions of Use | C27: The Reclamation Cost Estimating Model was prepared to serve as a guide for Government Agencies, mining companies, and others to estimate the cost of mine reclamation. This model is not intended to replace reclamation planning or to be used to determine the activities required to reclaim a site or to dictate how much should be spent on reclamation.
C29: Reclaim was prepared by Brodie Consulting Ltd. on behalf of AANDC. AANDC and Brodie Consulting Ltd. are not responsible for the completeness or accuracy of any reclamation estimate made using this model. The user agrees to check and take responsibility for all aspects of any cost estimate made using this model.
A31: The following table provides guidance as to whether water management and treatment is considered short term or long term. Short term closure activities
A32: may be costed within a component (eg 'Open Pit' or 'Rock Pile') or 'Water Management'. Long term or post-closure water treatment is costed in 'Water Treatment'.
D33: Short Term/ Capital Ex. | E33: Long term/ NPV
A34: Open Pit | C34: flood pit - install/operate pumping system | D34: x
C35: construct diversion ditches | D35: x
C36: treat 1st filling | D36: x
C37: install pump/decant system | D37: x
C38: passive/biological treatment | D38: x
C39: overflow treatment | E39: x
A40: Rock Pile/Heap Leach Facility | C40: construct diversion ditches | D40: x
C41: install groundwater collection system | D41: x
C42: install toe seepage collection system | D42: x
C43: collect and treat groundwater | E43: x
C44: collect and treat seepage (ARD/ML) | E44: x
C45: install passive treatment system | D45: x
C46: operate and maintain passive treatment system | E46: x
C47: operate pump and detoxify heap leach pile (cyanide destruction) | D47: x
A48: Tailings Facility | C48: construct diversion ditches | D48: x
C49: pump supernatant (to pit, U/G) | D49: x
C50: treat supernatant | D50: x
C51: install toe seepage collection system | D51: x
C52: collect and treat seepage (ARD/ML) | E52: x
C53: install passive treatment system | D53: x
C54: operate and maintain passive treatment system | E54: x
A55: U/G Mine | C55: accelerate flooding | D55: x
C56: install seepage collection system | D56: x
C57: install dewatering/pumping system | D57: x
C58: operate seepage/dewatering system (ARD/ML) | E58: x
A59: Water Management | C59: refill lakes
C60: redirect creeks/streams | D60: x
C61: stabilize water management ponds | D61: x
C62: stabilize/close sediment ponds | D62: x
C63: fresh water supply - breach embankment | D63: x
C64: fresh water supply - remove piping system | D64: x
C65: construct water treatment plant | D65: x
C66: construct sludge pond | D66: x
C67: water control in reclamation quarry | D67: x
C68: operate/maintain water treatment plant | E68: x

Sheet Summary
B1: Mary River Mine
A2: CAPITAL COSTS | B2: COMPONENT NAME | D2: COST | F2: LAND LIABILITY | H2: WATER LIABILITY | I2: IOL LIABILITY | K2: CROWN LIABILITY
A3: OPEN PIT | B3: =IF(ISBLANK('Open Pit'!$C$1),"",'Open Pit'!$C$1) -> Mary River Mine Pit | D3: =Pit1Total -> 3477111.177 | F3: =Pit1LandTotal -> 3477111.177 | H3: =Pit1WaterTotal -> 0 | I3: =D3-K3 -> 3477111.177 | K3: ='Open Pit'!J52+'Open Pit'!J58 -> 0
A4: UNDERGROUND MINE | B4: =IF(ISBLANK('UG Mine'!$C$1),"",'UG Mine'!$C$1) ->  | D4: =UG1Total -> 0.0001 | F4: =UG1LandTotal -> 0 | H4: =UG1WaterTotal -> 0 | I4: =D4-K4 -> 0.0001 | K4: 0
A5: TAILINGS FACILITY | B5: =IF(ISBLANK(Tailings!$C$1),"",Tailings!$C$1) ->  | D5: =Tailings1Total -> 0.0001 | F5: =Tailings1LandTotal -> 0 | H5: =Tailings1WaterTotal -> 0 | I5: 0.0001 | K5: 0
A6: ROCK PILE | B6: =IF(ISBLANK('Rock Pile'!$C$1),"",'Rock Pile'!$C$1) -> Mine Site Waste Rock Pile | D6: =RP1Total -> 0.0001 | F6: =RP1LandTotal -> 0 | H6: =RP1WaterTotal -> 0 | I6: 0.0001 | K6: 0
A7: BUILDINGS AND EQUIPMENT | B7: =IF(ISBLANK('Bldgs & Equip MS'!$C$1),"",'Bldgs & Equip MS'!$C$1) -> Mine Site | D7: =Bldg1Total -> 2874354.505 | F7: =Bldg1LandTotal -> 2855863.36 | H7: =Bldg1WaterTotal -> 18491.1456 | I7: 2874354.505 | K7: 0
B8: ='Bldgs & Equip MP'!C1 -> Milne Port | D8: ='Bldgs & Equip MP'!Bldg1Total -> 372171.1444 | F8: ='Bldgs & Equip MP'!Bldg1LandTotal -> 369351.9818 | H8: ='Bldgs & Equip MP'!Bldg1WaterTotal -> 2819.1625 | I8: 372171.1444 | K8: 0
B9: ='Bldgs & Equip TR'!C1 -> Tote Road | D9: ='Bldgs & Equip TR'!Bldg1Total -> 429624.7986 | F9: ='Bldgs & Equip TR'!Bldg1LandTotal -> 429624.7985 | H9: ='Bldgs & Equip TR'!Bldg1WaterTotal -> 0 | I9: =F9-'Bldgs & Equip TR'!J56 -> 291483.4166 | K9: ='Bldgs & Equip TR'!J56 -> 138141.382
I10: 0 | K10: 0
A11: CHEMICALS AND CONTAMINATED SOIL MANAGEMENT | B11: =IF(ISBLANK(Chemicals!$C$1),"",Chemicals!$C$1) ->  | D11: =Chem1Total -> 3508400 | F11: =Chem1LandTotal -> 3508400 | H11: =Chem1WaterTotal -> 0 | I11: 3508400 | K11: 0
A12: SURFACE AND GROUNDWATER MANAGEMENT | B12: =IF(ISBLANK('Water Treatment'!$C$1),"",'Water Treatment'!$C$1) ->  | D12: =Water1Total -> 0.0001 | F12: - | H12: =Water1Total -> 0.0001 | I12: 9.806883364e-05 | K12: =D12*$K$15 -> 1.931166358e-06
A13: INTERIM CARE AND MAINTENANCE | B13: =IF(ISBLANK(ICM!$C$1),"",ICM!$C$1) ->  | D13: =ICMTotal -> 0.0001 | F13: - | H13: =ICMTotal -> 0.0001 | I13: 9.806883364e-05 | K13: 1.931166358e-06
B14: SUBTOTAL: Capital Costs | D14: =SUM(D3:D13) -> 10661661.63 | F14: =SUM(F3:F13) -> 10640351.32 | H14: =SUM(H3:H13) -> 21310.3083 | I14: =SUM(I3:I13) -> 10523520.24 | K14: =SUM(K3:K13) -> 138141.382
B15: PERCENT OF SUBTOTAL | F15: =IF(F14<0.01,0,F14/D14) -> 0.9980012206 | H15: =IF(H14<0.01,0,H14/D14) -> 0.001998779276 | I15: =SUM(I3:I10)/SUM(D3:D10) -> 0.9806883364 | K15: =SUM(K3:K10)/SUM(D3:D10) -> 0.01931166358
A17: INDIRECT COSTS | D17: COST | F17: LAND LIABILITY | H17: WATER LIABILITY | I17: IOL LIABILITY | K17: CROWN LIABILITY
A18: MOBILIZATION/DEMOBILIZATION | B18: =IF(ISBLANK(Mobilization!$C$1),"",Mobilization!$C$1) ->  | D18: =MobTotal -> 20049604.71 | F18: =D18*$F$15 -> 20009529.98 | H18: =D18*$H$15 -> 40074.73438 | I18: =D18-K18 -> 20049604.71 | K18: 0
A19: POST-CLOSURE MONITORING AND MAINTENANCE | B19: =IF(ISBLANK(PostClosure!$C$1),"",PostClosure!$C$1) ->  | D19: =PCAnnualTotal -> 3430000 | F19: =D19*$F$15 -> 3423144.187 | H19: =D19*$H$15 -> 6855.812915 | I19: 3392243.767 | K19: =D19*$K$15*0.57 -> 37756.23346
A20: ENGINEERING | B20: 0.039 | D20: =B20*$D$14 -> 415804.8034 | F20: =+$F$15*D20 -> 414973.7013 | H20: =+$H$15*D20 -> 831.1020237 | I20: 407774.9209 | K20: =D20*$K$15 -> 8029.882477
A21: PROJECT MANAGEMENT | B21: 0.094 | D21: 1002196.193 | F21: 1000193.024 | H21: 2003.16898 | I21: 982842.1171 | K21: 19354.07571
A22: HEALTH AND SAFETY PLANS/MONITORING & QA/QC | B22: 0 | D22: 0 | F22: 0 | H22: 0 | I22: 0 | K22: 0
A23: BONDING/INSURANCE | B23: 0.02 | D23: 213233.2325 | F23: 212807.0263 | H23: 426.206166 | I23: 209115.3441 | K23: 4117.88845
A24: CONTINGENCY | B24: 0.2 | D24: 2132332.325 | F24: 2128070.263 | H24: 4262.06166 | I24: 2091153.441 | K24: 41178.8845
A25: MARKET PRICE FACTOR ADJUSTMENT | B25: 0 | D25: 0 | F25: 0 | H25: 0 | I25: =C25*$J$15 -> 0 | K25: =C25*$L$15 -> 0
B26: SUBTOTAL: Indirect Costs | D26: =SUM(D18:D25) -> 27243171.27 | F26: =SUM(F18:F25) -> 27188718.18 | H26: =SUM(H18:H25) -> 54453.08613 | I26: =SUM(I18:I25) -> 27132734.3 | K26: =SUM(K18:K25) -> 110436.9646
A28: TOTAL COSTS | D28: =D14+D26 -> 37904832.89 | F28: =F14+F26 -> 37829069.5 | H28: =H14+H26 -> 75763.39443 | I28: =I14+I26 -> 37656254.55 | K28: =K14+K26 -> 248578.3466

Sheet Open Pit
A1: 1 | B1: Open Pit Name: | C1: Mary River Mine Pit | G1: Pit # | H1: 1
B3: ACTIVITY/MATERIAL | C3: Notes | D3: Units | E3: Quantity | F3: Cost Code | G3: Unit Cost | H3: Cost | I3: % Land | J3: Land Cost | K3: Water Cost
B4: CONTROL ACCESS
B5: Fence | D5: m | F5: =NA() ->  | G5: =IF(ISNA(F5),0,INDEX(IF(UPPER(RIGHT(F5,1))=Low,UnitCostLow, IF(UPPER(RIGHT(F5,1))=High,UnitCostHigh,UnitCostSpecified)),MATCH(UPPER(LEFT(F5,LEN(F5)-1)),CostCode,0))) -> 0 | H5: =G5*E5 -> 0 | J5: =H5*I5 -> 0 | K5: =H5*(1-I5) -> 0
B6: Signs | D6: each | F6: SH | G6: 37.08 | H6: =G6*E6 -> 0 | J6: =H6*I6 -> 0 | K6: =H6*(1-I6) -> 0
B7: Berm at crest | D7: m3 | F7: =NA() ->  | G7: =IF(ISNA(F7),0,INDEX(IF(UPPER(RIGHT(F7,1))=Low,UnitCostLow, IF(UPPER(RIGHT(F7,1))=High,UnitCostHigh,UnitCostSpecified)),MATCH(UPPER(LEFT(F7,LEN(F7)-1)),CostCode,0))) -> 0 | H7: =G7*E7 -> 0 | J7: =H7*I7 -> 0 | K7: =H7*(1-I7) -> 0
B8: Block roads | D8: m3 | F8: RB1H | G8: =IF(ISNA(F8),0,INDEX(IF(UPPER(RIGHT(F8,1))=Low,UnitCostLow, IF(UPPER(RIGHT(F8,1))=High,UnitCostHigh,UnitCostSpecified)),MATCH(UPPER(LEFT(F8,LEN(F8)-1)),CostCode,0))) -> 17.05 | H8: =G8*E8 -> 0 | J8: =H8*I8 -> 0 | K8: =H8*(1-I8) -> 0
B9: Other | F9: =NA() ->  | G9: =IF(ISNA(F9),0,INDEX(IF(UPPER(RIGHT(F9,1))=Low,UnitCostLow, IF(UPPER(RIGHT(F9,1))=High,UnitCostHigh,UnitCostSpecified)),MATCH(UPPER(LEFT(F9,LEN(F9)-1)),CostCode,0))) -> 0 | H9: =G9*E9 -> 0 | J9: =H9*I9 -> 0 | K9: =H9*(1-I9) -> 0
B10: STABILITY STUDY
B11: Conduct stability and setback study | D11: allow | F11: EA | G11: 0 | H11: =G11*E11 -> 0 | J11: =H11*I11 -> 0 | K11: =H11*(1-I11) -> 0
B12: STABILIZE SLOPES
B13: Off-load crest, soil A | D13: m3 | F13: =NA() ->  | G13: =IF(ISNA(F13),0,INDEX(IF(UPPER(RIGHT(F13,1))=Low,UnitCostLow, IF(UPPER(RIGHT(F13,1))=High,UnitCostHigh,UnitCostSpecified)),MATCH(UPPER(LEFT(F13,LEN(F13)-1)),CostCode,0))) -> 0 | H13: =G13*E13 -> 0 | J13: =H13*I13 -> 0 | K13: =H13*(1-I13) -> 0
B14: Off-load crest, soil B | D14: m3 | F14: =NA() ->  | G14: 0 | H14: 0 | J14: 0 | K14: 0
B15: Doze/trim overburden at crest | D15: m3 | F15: =NA() ->  | G15: 0 | H15: 0 | J15: 0 | K15: 0
B16: Drill & blast pit crest | D16: m3 | F16: =NA() ->  | G16: 0 | H16: 0 | J16: 0 | K16: 0
B17: Buttress slope | D17: m3 | F17: =NA() ->  | G17: 0 | H17: 0 | J17: 0 | K17: 0
B18: Other | F18: =NA() ->  | G18: 0 | H18: 0 | J18: 0 | K18: 0
B19: COVER/CONTOUR SLOPES
B20: Place fill, soil A | D20: m3 | F20: =NA() ->  | G20: =IF(ISNA(F20),0,INDEX(IF(UPPER(RIGHT(F20,1))=Low,UnitCostLow, IF(UPPER(RIGHT(F20,1))=High,UnitCostHigh,UnitCostSpecified)),MATCH(UPPER(LEFT(F20,LEN(F20)-1)),CostCode,0))) -> 0 | H20: =G20*E20 -> 0 | J20: =H20*I20 -> 0 | K20: =H20*(1-I20) -> 0
B21: Place fill, soil B | D21: m3 | F21: =NA() ->  | G21: 0 | H21: 0 | J21: 0 | K21: 0
B22: Rip rap | D22: m3 | F22: =NA() ->  | G22: 0 | H22: 0 | J22: 0 | K22: 0
B23: Vegetate slopes | D23: ha | F23: =NA() ->  | G23: 0 | H23: 0 | J23: 0 | K23: 0
B24: Vegetate pit floor | D24: ha | F24: =NA() ->  | G24: 0 | H24: 0 | J24: 0 | K24: 0
B25: Other | F25: =NA() ->  | G25: 0 | H25: 0 | J25: 0 | K25: 0
B26: CONSTRUCT DIVERSION DITCHES
B27: Excavate ditches -soil | D27: m3 | F27: =NA() ->  | G27: =IF(ISNA(F27),0,INDEX(IF(UPPER(RIGHT(F27,1))=Low,UnitCostLow, IF(UPPER(RIGHT(F27,1))=High,UnitCostHigh,UnitCostSpecified)),MATCH(UPPER(LEFT(F27,LEN(F27)-1)),CostCode,0))) -> 0 | H27: =G27*E27 -> 0 | J27: =H27*I27 -> 0 | K27: =H27*(1-I27) -> 0
B28: Excavate ditches -rock | D28: m3 | F28: =NA() ->  | G28: =IF(ISNA(F28),0,INDEX(IF(UPPER(RIGHT(F28,1))=Low,UnitCostLow, IF(UPPER(RIGHT(F28,1))=High,UnitCostHigh,UnitCostSpecified)),MATCH(UPPER(LEFT(F28,LEN(F28)-1)),CostCode,0))) -> 0 | H28: =G28*E28 -> 0 | J28: =H28*I28 -> 0 | K28: =H28*(1-I28) -> 0
B29: Rip rap in channel base | D29: m3 | F29: =NA() ->  | G29: =IF(ISNA(F29),0,INDEX(IF(UPPER(RIGHT(F29,1))=Low,UnitCostLow, IF(UPPER(RIGHT(F29,1))=High,UnitCostHigh,UnitCostSpecified)),MATCH(UPPER(LEFT(F29,LEN(F29)-1)),CostCode,0))) -> 0 | H29: =G29*E29 -> 0 | J29: =H29*I29 -> 0 | K29: =H29*(1-I29) -> 0
B30: CONSTRUCT SPILLWAY
B31: Excavate channel | D31: m3 | F31: =NA() ->  | G31: =IF(ISNA(F31),0,INDEX(IF(UPPER(RIGHT(F31,1))=Low,UnitCostLow, IF(UPPER(RIGHT(F31,1))=High,UnitCostHigh,UnitCostSpecified)),MATCH(UPPER(LEFT(F31,LEN(F31)-1)),CostCode,0))) -> 0 | H31: =G31*E31 -> 0 | J31: =H31*I31 -> 0 | K31: =H31*(1-I31) -> 0
B32: Concrete | D32: m3 | F32: =NA() ->  | G32: =IF(ISNA(F32),0,INDEX(IF(UPPER(RIGHT(F32,1))=Low,UnitCostLow, IF(UPPER(RIGHT(F32,1))=High,UnitCostHigh,UnitCostSpecified)),MATCH(UPPER(LEFT(F32,LEN(F32)-1)),CostCode,0))) -> 0 | H32: =G32*E32 -> 0 | J32: =H32*I32 -> 0 | K32: =H32*(1-I32) -> 0
B33: Rip rap | D33: m3 | F33: =NA() ->  | G33: =IF(ISNA(F33),0,INDEX(IF(UPPER(RIGHT(F33,1))=Low,UnitCostLow, IF(UPPER(RIGHT(F33,1))=High,UnitCostHigh,UnitCostSpecified)),MATCH(UPPER(LEFT(F33,LEN(F33)-1)),CostCode,0))) -> 0 | H33: =G33*E33 -> 0 | J33: =H33*I33 -> 0 | K33: =H33*(1-I33) -> 0
B34: Other | F34: =NA() ->  | G34: =IF(ISNA(F34),0,INDEX(IF(UPPER(RIGHT(F34,1))=Low,UnitCostLow, IF(UPPER(RIGHT(F34,1))=High,UnitCostHigh,UnitCostSpecified)),MATCH(UPPER(LEFT(F34,LEN(F34)-1)),CostCode,0))) -> 0 | H34: =G34*E34 -> 0 | J34: =H34*I34 -> 0 | K34: =H34*(1-I34) -> 0
B35: RECLAIM QUARRIES (the unit cost is inclusive of backfill, compaction and scarification with a dozer)
B36: P10 Borrow Source | D36: m2 | F36: 15GCS | G36: 1.81 | H36: =G36*E36 -> 0 | I36: 1 | J36: =H36*I36 -> 0 | K36: =H36*(1-I36) -> 0
B37: P13 Borrow Source | D37: m2 | F37: 15GCS | G37: 1.81 | H37: =G37*E37 -> 0 | I37: 1 | J37: =H37*I37 -> 0 | K37: =H37*(1-I37) -> 0
B38: P14 Borrow Source | D38: m2 | F38: 15GCS | G38: 1.81 | H38: 0 | I38: 1 | J38: 0 | K38: 0
B39: P15 Borrow Source | D39: m2 | F39: 15GCS | G39: 1.81 | H39: 0 | I39: 1 | J39: 0 | K39: 0
B40: P5 Borrow Source | D40: m2 | F40: 15GCS | G40: 1.81 | H40: 0 | I40: 1 | J40: 0 | K40: 0
B41: P6 Borrow Source | D41: m2 | F41: 15GCS | G41: 1.81 | H41: 0 | I41: 1 | J41: 0 | K41: 0
B42: P7 Borrow Source | D42: m2 | F42: 15GCS | G42: 1.81 | H42: 0 | I42: 1 | J42: 0 | K42: 0
B43: P8 Borrow Source | D43: m2 | F43: 15GCS | G43: 1.81 | H43: 0 | I43: 1 | J43: 0 | K43: 0
B44: PQ2a Quarry | D44: m2 | E44: 345500 | F44: 18GCS | G44: 1.493420346 | H44: 515976.7295 | I44: 1 | J44: 515976.7295 | K44: 0
B45: PQ4a Quarry | D45: m2 | E45: 105000 | F45: 18GCS | G45: 1.493420346 | H45: 156809.1363 | I45: 1 | J45: 156809.1363 | K45: 0
B46: PQ6a Quarry | D46: m2 | E46: 194000 | F46: 18GCS | G46: 1.493420346 | H46: 289723.5471 | I46: 1 | J46: 289723.5471 | K46: 0
B47: PQ12a Quarry | D47: m2 | E47: 232200 | F47: 18GCS | G47: 1.493420346 | H47: 346772.2043 | I47: 1 | J47: 346772.2043 | K47: 0
B48: Q9 Quarry | D48: m2 | F48: 15GCS | G48: 1.81 | H48: 0 | I48: 1 | J48: 0 | K48: 0
B49: D1Q2 Quarry | D49: m2 | F49: 15GCS | G49: 1.81 | H49: 0 | I49: 1 | J49: 0 | K49: 0
B50: Q1 Quarry | D50: m2 | E50: 226000 | F50: 18GCS | G50: 1.493420346 | H50: 337512.9981 | I50: 1 | J50: 337512.9981 | K50: 0
B51: Q11 Quarry | D51: m2 | F51: 15GCS | G51: 1.81 | H51: 0 | I51: 1 | J51: 0 | K51: 0
B52: Q18 Quarry (on Crown Land) | D52: m2 | F52: 15GCS | G52: 1.81 | H52: 0 | I52: 1 | J52: 0 | K52: 0
B53: Q19 Quarry | D53: m2 | F53: 15GCS | G53: 1.81 | H53: 0 | I53: 1 | J53: 0 | K53: 0
B54: Q5 Quarry | D54: m2 | E54: 1225587 | F54: 18GCS | G54: 1.493420346 | H54: =G54*E54 -> 1830316.561 | I54: 1 | J54: =H54*I54 -> 1830316.561 | K54: =H54*(1-I54) -> 0
B55: Q7 Quarry | D55: m2 | F55: 15GCS | G55: 1.81 | H55: 0 | I55: 1 | J55: 0 | K55: 0
B56: QMR2 Quarry | D56: m2 | F56: 15GCS | G56: 1.81 | H56: =G56*E56 -> 0 | I56: 1 | J56: =H56*I56 -> 0 | K56: =H56*(1-I56) -> 0
B57: Pit 1 | D57: m2 | F57: 15GCS | G57: 1.81 | H57: =G57*E57 -> 0 | I57: 1 | J57: =H57*I57 -> 0 | K57: =H57*(1-I57) -> 0
B58: P1 Borrow Source (on Crown Land) | C58: 100% on Crown Land | D58: m2 | F58: 15GCS | G58: 1.81 | H58: 0 | I58: 1 | J58: 0 | K58: 0
B59: Km 2 Borrow Source | D59: m2 | F59: 15GCS | G59: 1.81 | H59: 0 | I59: 1 | J59: 0 | K59: 0
B60: Type A Quarry | D60: m2 | F60: 15GCS
B61: Borrow Development Areas | D61: m2 | F61: 15GCS | G61: 1.81 | H61: 0 | I61: 1 | J61: 0 | K61: 0
B62: Unidentified Borrow Sources | D62: m2 | F62: 15GCS | G62: 1.81 | H62: 0 | I62: 1 | J62: 0 | K62: 0
B63: GRADING AND CONTOURING SIGNIFICANTLY DISTURBED AREAS (the unit cost is inclusive of backfill, compaction and scarification with a dozer)
B64: Km 97 Borrow Source | D64: m2 | F64: 15GCDS | G64: 2.72 | H64: =G64*E64 -> 0 | I64: 1 | J64: =H64*I64 -> 0 | K64: =H64*(1-I64) -> 0
B65: Type A Quarry | D65: m2 | F65: 15GCDS | G65: 2.72 | H65: =G65*E65 -> 0 | I65: 1 | J65: =H65*I65 -> 0 | K65: =H65*(1-I65) -> 0
B66: FLOOD PIT-Captital
B67: Remove stationary equipment (sump pumps) | D67: Allow | F67: AE | G67: 10000 | H67: =G67*E67 -> 0 | J67: =H67*I67 -> 0 | K67: =H67*(1-I67) -> 0
B68: Remove dewatering pipeline | D68: m | F68: =NA() ->  | G68: =IF(ISNA(F68),0,INDEX(IF(UPPER(RIGHT(F68,1))=Low,UnitCostLow, IF(UPPER(RIGHT(F68,1))=High,UnitCostHigh,UnitCostSpecified)),MATCH(UPPER(LEFT(F68,LEN(F68)-1)),CostCode,0))) -> 0 | H68: 0 | J68: 0 | K68: =H68*(1-I68) -> 0
B69: Remove power lines | D69: each | F69: =NA() ->  | G69: 0 | H69: 0 | J69: 0 | K69: =H69*(1-I69) -> 0
B70: Construct diversion ditches | D70: m3 | F70: =NA() ->  | G70: 0 | H70: 0 | J70: 0 | K70: =H70*(1-I70) -> 0
B71: -Ditch, mat'l A | D71: m3 | F71: =NA() ->  | G71: 0 | H71: 0 | J71: 0 | K71: =+H71*(1-I71) -> 0
B72: -Ditch, mat'l B | D72: m3 | F72: =NA() ->  | G72: 0 | H72: 0 | J72: 0 | K72: =+H72*(1-I72) -> 0
B73: Construct embankment/dam | D73: m3 | F73: =NA() ->  | G73: 0 | H73: 0 | J73: 0 | K73: =H73*(1-I73) -> 0
B74: Supply/install pump station | D74: Allow | F74: AE | G74: 500000 | H74: 0 | J74: 0 | K74: =H74*(1-I74) -> 0
B75: Supply/install piping system | D75: m | F75: =NA() ->  | G75: =IF(ISNA(F75),0,INDEX(IF(UPPER(RIGHT(F75,1))=Low,UnitCostLow, IF(UPPER(RIGHT(F75,1))=High,UnitCostHigh,UnitCostSpecified)),MATCH(UPPER(LEFT(F75,LEN(F75)-1)),CostCode,0))) -> 0 | H75: 0 | J75: 0 | K75: =H75*(1-I75) -> 0
B76: Remove pump post-closure | D76: each | F76: =NA() ->  | G76: =IF(ISNA(F76),0,INDEX(IF(UPPER(RIGHT(F76,1))=Low,UnitCostLow, IF(UPPER(RIGHT(F76,1))=High,UnitCostHigh,UnitCostSpecified)),MATCH(UPPER(LEFT(F76,LEN(F76)-1)),CostCode,0))) -> 0 | H76: 0 | J76: 0 | K76: =H76*(1-I76) -> 0
B77: Remove pipeline post-closure | D77: m | F77: =NA() ->  | G77: =IF(ISNA(F77),0,INDEX(IF(UPPER(RIGHT(F77,1))=Low,UnitCostLow, IF(UPPER(RIGHT(F77,1))=High,UnitCostHigh,UnitCostSpecified)),MATCH(UPPER(LEFT(F77,LEN(F77)-1)),CostCode,0))) -> 0 | H77: 0 | J77: 0 | K77: =H77*(1-I77) -> 0
B78: FLOOD PIT-Annual Cost
B79: Operate pumps (power) | D79: each | F79: AE | G79: 439359.8 | H79: =G79*E79 -> 0 | J79: =H79*I79 -> 0 | K79: =H79*(1-I79) -> 0
B80: Maintain pump/pipeline | D80: allow | F80: =NA() ->  | G80: =IF(ISNA(F80),0,INDEX(IF(UPPER(RIGHT(F80,1))=Low,UnitCostLow, IF(UPPER(RIGHT(F80,1))=High,UnitCostHigh,UnitCostSpecified)),MATCH(UPPER(LEFT(F80,LEN(F80)-1)),CostCode,0))) -> 0 | H80: 0 | J80: 0 | K80: 0
B81: Labour:fuel management, comissioning/decom | D81: $/h | F81: =NA() ->  | G81: 0 | H81: 0 | J81: 0 | K81: 0
B82: Chemical addition, _____ kg/m3 of water | D82: tonne | F82: =NA() ->  | G82: 0 | H82: 0 | J82: 0 | K82: 0
B83: Chemicals, purchase and shipping | D83: tonne | F83: =NA() ->  | G83: 0 | H83: 0 | J83: 0 | K83: 0
B84: Passive/biological additives | D84: $/ha | F84: =NA() ->  | G84: 0 | H84: 0 | J84: 0 | K84: 0
B85: Passive additives purchase and shipping | D85: tonne | F85: =NA() ->  | G85: 0 | H85: 0 | J85: 0 | K85: 0
B86: Other | F86: =NA() ->  | G86: 0 | H86: 0 | J86: 0 | K86: 0
G87: Annual pumping costs | H87: =SUM(H79:H86)+0.0001 -> 0.0001
B88: Number of years of pump flooding | D88: years
G89: Total pumping costs | H89: =H87*E88 -> 0 | J89: =H89*I89 -> 0 | K89: =H89*(1-I89) -> 0
G90: Total | H90: =SUM(H5:H77)+H89+0.0001 -> 3477111.177 | J90: =SUM(J5:J77)+J89 -> 3477111.177 | K90: =SUM(K5:K77)+K89 -> 0
G91: % of Total | J91: =J90/H90 -> 1 | K91: =K90/H90 -> 0

Sheet Rock Pile
A1: 1 | B1: Rock Pile Name: | C1: Mine Site Waste Rock Pile
B3: ACTIVITY/MATERIAL | C3: Notes | D3: Units | E3: Quantity | F3: Cost Code | G3: Unit Cost | H3: Cost | I3: % Land | J3: Land Cost | K3: Water Cost
B4: STABILIZE SLOPES
B5: Flatten slopes with dozer | D5: m3 | F5: =NA() ->  | G5: =IF(ISNA(F5),0,INDEX(IF(UPPER(RIGHT(F5,1))=Low,UnitCostLow, IF(UPPER(RIGHT(F5,1))=High,UnitCostHigh,UnitCostSpecified)),MATCH(UPPER(LEFT(F5,LEN(F5)-1)),CostCode,0))) -> 0 | H5: =G5*E5 -> 0 | J5: =H5*I5 -> 0 | K5: =+H5*(1-I5) -> 0
B6: Flatten "bubble dump" areas | D6: m3 | F6: =NA() ->  | G6: 0 | H6: 0 | J6: 0 | K6: 0
B7: Divert runon, ditch mat'l A | D7: m3 | F7: =NA() ->  | G7: 0 | H7: 0 | J7: 0 | K7: 0
B8: Divert runon, ditch mat'l B | D8: m3 | F8: =NA() ->  | G8: 0 | H8: 0 | J8: 0 | K8: 0
B9: Toe buttress, drain mat'l | D9: m3 | F9: =NA() ->  | G9: 0 | H9: 0 | J9: 0 | K9: 0
B10: Toe buttress, fill mat'l A | D10: m3 | F10: =NA() ->  | G10: 0 | H10: 0 | J10: 0 | K10: 0
B11: Toe buttress, fill mat'l B | D11: m3 | F11: =NA() ->  | G11: 0 | H11: 0 | J11: 0 | K11: 0
B12: Other | F12: =NA() ->  | G12: 0 | H12: 0 | J12: 0 | K12: 0
B13: COVER ROCK PILE
B14: Subgrade preparation - doze surface | D14: m3 | F14: =NA() ->  | G14: =IF(ISNA(F14),0,INDEX(IF(UPPER(RIGHT(F14,1))=Low,UnitCostLow, IF(UPPER(RIGHT(F14,1))=High,UnitCostHigh,UnitCostSpecified)),MATCH(UPPER(LEFT(F14,LEN(F14)-1)),CostCode,0))) -> 0 | H14: =G14*E14 -> 0 | J14: =H14*I14 -> 0 | K14: =+H14*(1-I14) -> 0
B15: Soil cover - excavate,haul,spread&compact | D15: m3 | F15: =NA() ->  | G15: =IF(ISNA(F15),0,INDEX(IF(UPPER(RIGHT(F15,1))=Low,UnitCostLow, IF(UPPER(RIGHT(F15,1))=High,UnitCostHigh,UnitCostSpecified)),MATCH(UPPER(LEFT(F15,LEN(F15)-1)),CostCode,0))) -> 0 | H15: =G15*E15 -> 0 | J15: =H15*I15 -> 0 | K15: =+H15*(1-I15) -> 0
B16: Rock cover - excavate,haul & spread | D16: m3 | F16: =NA() ->  | G16: 0 | H16: 0 | J16: 0 | K16: 0
B17: Excavate downslope drainage channel & chute | D17: m3 | F17: =NA() ->  | G17: 0 | H17: 0 | J17: 0 | K17: 0
B18: Rip rap drainage channel and chute | D18: m3 | F18: =NA() ->  | G18: 0 | H18: 0 | J18: 0 | K18: 0
B19: Vegetate | D19: ha | F19: =NA() ->  | G19: 0 | H19: 0 | J19: 0 | K19: 0
B20: Other | F20: =NA() ->  | G20: 0 | H20: 0 | J20: 0 | K20: 0
B21: VERY LOW PERMEABILITY COVER (in addition to above)
B22: Liner subgrade preparation - compact | D22: m2 | F22: =NA() ->  | G22: =IF(ISNA(F22),0,INDEX(IF(UPPER(RIGHT(F22,1))=Low,UnitCostLow, IF(UPPER(RIGHT(F22,1))=High,UnitCostHigh,UnitCostSpecified)),MATCH(UPPER(LEFT(F22,LEN(F22)-1)),CostCode,0))) -> 0 | H22: =G22*E22 -> 0 | J22: =H22*I22 -> 0 | K22: =+H22*(1-I22) -> 0
B23: Supply geomembrame | D23: m2 | F23: =NA() ->  | G23: =IF(ISNA(F23),0,INDEX(IF(UPPER(RIGHT(F23,1))=Low,UnitCostLow, IF(UPPER(RIGHT(F23,1))=High,UnitCostHigh,UnitCostSpecified)),MATCH(UPPER(LEFT(F23,LEN(F23)-1)),CostCode,0))) -> 0 | H23: =G23*E23 -> 0 | J23: 0 | K23: 0
B24: Install geomembrane | D24: m2 | F24: =NA() ->  | G24: =IF(ISNA(F24),0,INDEX(IF(UPPER(RIGHT(F24,1))=Low,UnitCostLow, IF(UPPER(RIGHT(F24,1))=High,UnitCostHigh,UnitCostSpecified)),MATCH(UPPER(LEFT(F24,LEN(F24)-1)),CostCode,0))) -> 0 | H24: =G24*E24 -> 0 | J24: 0 | K24: 0
B25: Protective cover - excavate,haul,spread&compact | D25: m3 | F25: =NA() ->  | G25: 0 | H25: 0 | J25: 0 | K25: 0
B26: Vegetate | D26: ha | F26: =NA() ->  | G26: 0 | H26: 0 | J26: 0 | K26: 0
B27: Install infiltration/seepage instrumentation | D27: allow | F27: =NA() ->  | G27: 0 | H27: 0 | J27: 0 | K27: 0
B28: CONSTRUCT DIVERSION DITCHES
B29: Excavate ditches -soil | D29: m3 | F29: =NA() ->  | G29: =IF(ISNA(F29),0,INDEX(IF(UPPER(RIGHT(F29,1))=Low,UnitCostLow, IF(UPPER(RIGHT(F29,1))=High,UnitCostHigh,UnitCostSpecified)),MATCH(UPPER(LEFT(F29,LEN(F29)-1)),CostCode,0))) -> 0 | H29: =G29*E29 -> 0 | J29: =H29*I29 -> 0 | K29: =+H29*(1-I29) -> 0
B30: Excavate ditches -rock | D30: m3 | F30: =NA() ->  | G30: =IF(ISNA(F30),0,INDEX(IF(UPPER(RIGHT(F30,1))=Low,UnitCostLow, IF(UPPER(RIGHT(F30,1))=High,UnitCostHigh,UnitCostSpecified)),MATCH(UPPER(LEFT(F30,LEN(F30)-1)),CostCode,0))) -> 0 | H30: =G30*E30 -> 0 | J30: =H30*I30 -> 0 | K30: =+H30*(1-I30) -> 0
B31: Rip rap in channel base | D31: m3 | F31: =NA() ->  | G31: =IF(ISNA(F31),0,INDEX(IF(UPPER(RIGHT(F31,1))=Low,UnitCostLow, IF(UPPER(RIGHT(F31,1))=High,UnitCostHigh,UnitCostSpecified)),MATCH(UPPER(LEFT(F31,LEN(F31)-1)),CostCode,0))) -> 0 | H31: =G31*E31 -> 0 | J31: =H31*I31 -> 0 | K31: =+H31*(1-I31) -> 0
B32: CONSTRUCT SEEPAGE COLLECTION POND
B33: Excavate seepage collection pond | D33: m3 | F33: =NA() ->  | G33: 0 | H33: 0 | J33: =H33*I33 -> 0 | K33: =+H33*(1-I33) -> 0
B34: Doze & spread excavated material | D34: m3 | F34: =NA() ->  | G34: 0 | H34: 0 | J34: 0 | K34: 0
B35: Vegetate spread material | D35: ha | F35: =NA() ->  | G35: 0 | H35: 0 | J35: 0 | K35: 0
B36: Bedding layer | D36: m3 | F36: =NA() ->  | G36: 0 | H36: 0 | J36: 0 | K36: 0
B37: Supply geomembrane | D37: m2 | F37: =NA() ->  | G37: 0 | H37: 0 | J37: 0 | K37: 0
B38: Install geomembrane | D38: m2 | F38: =NA() ->  | G38: 0 | H38: 0 | J38: 0 | K38: 0
B39: Erosion protection layer | D39: m3 | F39: =NA() ->  | G39: 0 | H39: 0 | J39: 0 | K39: 0
B40: INSTALL GROUNDWATER COLLECTION SYSTEM
B41: Excavate/install sumps | D41: m3 | F41: =NA() ->  | G41: =IF(ISNA(F41),0,INDEX(IF(UPPER(RIGHT(F41,1))=Low,UnitCostLow, IF(UPPER(RIGHT(F41,1))=High,UnitCostHigh,UnitCostSpecified)),MATCH(UPPER(LEFT(F41,LEN(F41)-1)),CostCode,0))) -> 0 | H41: =G41*E41 -> 0 | J41: =H41*I41 -> 0 | K41: =+H41*(1-I41) -> 0
B42: Install pumping wells | D42: m3 | F42: =NA() ->  | G42: =IF(ISNA(F42),0,INDEX(IF(UPPER(RIGHT(F42,1))=Low,UnitCostLow, IF(UPPER(RIGHT(F42,1))=High,UnitCostHigh,UnitCostSpecified)),MATCH(UPPER(LEFT(F42,LEN(F42)-1)),CostCode,0))) -> 0 | H42: =G42*E42 -> 0 | J42: =H42*I42 -> 0 | K42: =+H42*(1-I42) -> 0
B43: Install pumps/pipelines/power supply | D43: allow | F43: =NA() ->  | G43: =IF(ISNA(F43),0,INDEX(IF(UPPER(RIGHT(F43,1))=Low,UnitCostLow, IF(UPPER(RIGHT(F43,1))=High,UnitCostHigh,UnitCostSpecified)),MATCH(UPPER(LEFT(F43,LEN(F43)-1)),CostCode,0))) -> 0 | H43: =G43*E43 -> 0 | J43: =H43*I43 -> 0 | K43: =+H43*(1-I43) -> 0
B44: RELOCATE DUMPS
B45: Load, haul, dump or doze | D45: m3 | F45: SC3L | G45: =IF(ISNA(F45),0,INDEX(IF(UPPER(RIGHT(F45,1))=Low,UnitCostLow, IF(UPPER(RIGHT(F45,1))=High,UnitCostHigh,UnitCostSpecified)),MATCH(UPPER(LEFT(F45,LEN(F45)-1)),CostCode,0))) -> 8.9 | H45: =G45*E45 -> 0 | J45: =H45*I45 -> 0 | K45: =+H45*(1-I45) -> 0
B46: Add lime | D46: tonne | F46: =NA() ->  | G46: =IF(ISNA(F46),0,INDEX(IF(UPPER(RIGHT(F46,1))=Low,UnitCostLow, IF(UPPER(RIGHT(F46,1))=High,UnitCostHigh,UnitCostSpecified)),MATCH(UPPER(LEFT(F46,LEN(F46)-1)),CostCode,0))) -> 0 | H46: =G46*E46 -> 0 | J46: =H46*I46 -> 0 | K46: =+H46*(1-I46) -> 0
B47: Contour reclaimed area | D47: ha | F47: =NA() ->  | G47: =IF(ISNA(F47),0,INDEX(IF(UPPER(RIGHT(F47,1))=Low,UnitCostLow, IF(UPPER(RIGHT(F47,1))=High,UnitCostHigh,UnitCostSpecified)),MATCH(UPPER(LEFT(F47,LEN(F47)-1)),CostCode,0))) -> 0 | H47: =G47*E47 -> 0 | J47: =H47*I47 -> 0 | K47: =+H47*(1-I47) -> 0
B48: Other | D48: allow | F48: =NA() ->  | G48: 0 | H48: =G48*E48 -> 0 | J48: =H48*I48 -> 0 | K48: =+H48*(1-I48) -> 0
B49: SPECIALIZED ITEMS
B50: Install permanent instrumentation | D50: allow | G50: 0 | H50: =G50*E50 -> 0 | J50: =H50*I50 -> 0 | K50: =+H50*(1-I50) -> 0
B51: Install permanent instrumentation, drilling | D51: each | F51: =NA() ->  | G51: =IF(ISNA(F51),0,INDEX(IF(UPPER(RIGHT(F51,1))=Low,UnitCostLow, IF(UPPER(RIGHT(F51,1))=High,UnitCostHigh,UnitCostSpecified)),MATCH(UPPER(LEFT(F51,LEN(F51)-1)),CostCode,0))) -> 0 | H51: =G51*E51 -> 0 | J51: =H51*I51 -> 0 | K51: =+H51*(1-I51) -> 0
B52: Grade and Contour Waste Rock dump | D52: m2 | F52: 15GCS | G52: 1.81 | H52: =G52*E52 -> 0 | I52: 1 | J52: =H52*I52 -> 0 | K52: =+H52*(1-I52) -> 0
B53: TREAT ROCK PILE SEEPAGE - see "Water Management"
B54: HEAP LEACH SEEPAGE TREATMENT - Cyanide Detox
B55: Cyanide destruction water treatment pumping | D55: m3 | F55: =NA() ->  | G55: =IF(ISNA(F55),0,INDEX(IF(UPPER(RIGHT(F55,1))=Low,UnitCostLow, IF(UPPER(RIGHT(F55,1))=High,UnitCostHigh,UnitCostSpecified)),MATCH(UPPER(LEFT(F55,LEN(F55)-1)),CostCode,0))) -> 0 | H55: =G55*E55 -> 0 | J55: =H55*I55 -> 0 | K55: =+H55*(1-I55) -> 0
B56: Reagents | D56: tonnes | F56: =NA() ->  | G56: =IF(ISNA(F56),0,INDEX(IF(UPPER(RIGHT(F56,1))=Low,UnitCostLow, IF(UPPER(RIGHT(F56,1))=High,UnitCostHigh,UnitCostSpecified)),MATCH(UPPER(LEFT(F56,LEN(F56)-1)),CostCode,0))) -> 0 | H56: =G56*E56 -> 0 | J56: =H56*I56 -> 0 | K56: =+H56*(1-I56) -> 0
B57: Electrician/mechanic to maintain treatment plant | D57: allow | F57: =NA() ->  | G57: =IF(ISNA(F57),0,INDEX(IF(UPPER(RIGHT(F57,1))=Low,UnitCostLow, IF(UPPER(RIGHT(F57,1))=High,UnitCostHigh,UnitCostSpecified)),MATCH(UPPER(LEFT(F57,LEN(F57)-1)),CostCode,0))) -> 0 | H57: =G57*E57 -> 0 | J57: =H57*I57 -> 0 | K57: =+H57*(1-I57) -> 0
B58: Equipment maintenance and parts | D58: allow | F58: =NA() ->  | G58: =IF(ISNA(F58),0,INDEX(IF(UPPER(RIGHT(F58,1))=Low,UnitCostLow, IF(UPPER(RIGHT(F58,1))=High,UnitCostHigh,UnitCostSpecified)),MATCH(UPPER(LEFT(F58,LEN(F58)-1)),CostCode,0))) -> 0 | H58: =G58*E58 -> 0 | J58: =H58*I58 -> 0 | K58: =+H58*(1-I58) -> 0
G59: Annual treatment costs | H59: =SUM(H55:H58)+0.0001 -> 0.0001
B60: Number of years of treatment | D60: years
G61: Total treatment costs | H61: =H59*E60 -> 0 | K61: =H61 -> 0
B62: HEAP LEACH SEEPAGE TREATMENT - ARD/ML**
B63: Upgrade/modify pumping system - report to WTP | D63: allow | F63: =NA() ->  | G63: =IF(ISNA(F63),0,INDEX(IF(UPPER(RIGHT(F63,1))=Low,UnitCostLow, IF(UPPER(RIGHT(F63,1))=High,UnitCostHigh,UnitCostSpecified)),MATCH(UPPER(LEFT(F63,LEN(F63)-1)),CostCode,0))) -> 0 | H63: =G63*E63 -> 0 | K63: =H63 -> 0
G64: Total | H64: =SUM(H5:H52)+H61+H63+0.0001 -> 0.0001 | J64: =SUM(J5:J52)+J61+J63 -> 0 | K64: =SUM(K5:K51)+K61+K63 -> 0
G65: % of Total | J65: =J64/H64 -> 0 | K65: =K64/H64 -> 0
B67: * For construction of passive treatment system refer to "Water Management". ARD/ML seepage treatment becomes post-closure water treatment cost
B68: **Heap leach ARD/ML seepage treatment becomes post-closure water treatment cost

Sheet Chemicals
A1: 1 | B1: Chemicals/Soil Area Name:
B3: Note: The procedures, equipment and packaging for clean up and removal of chemicals or contaminated soils are highly dependent on the nature of the chemicals and their existing state of containment. Government guidelines should be consulted on an individual chemical basis. Any estimate made here should be considered very rough unless specific evaluations have been conducted.
B4: ACTIVITY/MATERIAL | C4: Notes | D4: Units | E4: Quantity | F4: Cost Code | G4: Unit Cost | H4: Cost | I4: % Land | J4: Land Cost | K4: Water Cost
B5: HAZARDOUS MATERIALS AUDIT
B6: Hazardous materials audit | D6: allow | F6: =NA() ->  | G6: 0 | H6: =G6*E6 -> 0 | I6: 0 | J6: =H6*I6 -> 0 | K6: =+H6*(1-I6) -> 0
B7: BUILDING DECONTAMINATION & CONSOLIDATION OF HAZARDOUS MATERIALS
B8: Environmental technician/coordinator | D8: mandays | F8: =NA() ->  | G8: =IF(ISNA(F8),0,INDEX(IF(UPPER(RIGHT(F8,1))=Low,UnitCostLow, IF(UPPER(RIGHT(F8,1))=High,UnitCostHigh,UnitCostSpecified)),MATCH(UPPER(LEFT(F8,LEN(F8)-1)),CostCode,0))) -> 0 | H8: =G8*E8 -> 0 | J8: =H8*I8 -> 0 | K8: =+H8*(1-I8) -> 0
B9: Decontaminate: oil, fuel | D9: manhours | F9: =NA() ->  | G9: 0 | H9: =G9*E9 -> 0 | J9: =H9*I9 -> 0 | K9: =+H9*(1-I9) -> 0
B10: Decontaminate maintenance shop | D10: mandays | F10: =NA() ->  | G10: 0 | H10: 0 | J10: 0 | K10: 0
B11: Decontaminate power plant | D11: mandays | F11: =NA() ->  | G11: 0 | H11: 0 | J11: 0 | K11: 0
B12: Decontaminate bulk fuel storage | D12: mandays | F12: =NA() ->  | G12: 0 | H12: 0 | J12: 0 | K12: 0
B13: Decontaminate ANFO plant | D13: mandays | F13: =NA() ->  | G13: 0 | H13: 0 | J13: 0 | K13: 0
B14: Decontaminate offices/warehouse/accom | D14: m2 | F14: =NA() ->  | G14: 0 | H14: 0 | J14: 0 | K14: 0
B15: Removal of asbestos siding on buildings | D15: m2 | F15: =NA() ->  | G15: 0 | H15: 0 | J15: 0 | K15: 0
B16: Removal of friable asbestos on equipment | D16: m2 | F16: =NA() ->  | G16: 0 | H16: =G16*E16 -> 0 | J16: =H16*I16 -> 0 | K16: =+H16*(1-I16) -> 0
B17: Other | F17: =NA() ->  | G17: 0 | H17: =G17*E17 -> 0 | J17: =H17*I17 -> 0 | K17: =+H17*(1-I17) -> 0
B18: HAZARDOUS MATERIALS REMOVAL
B19: Waste oils | D19: litre | F19: =NA() ->  | G19: =IF(ISNA(F19),0,INDEX(IF(UPPER(RIGHT(F19,1))=Low,UnitCostLow, IF(UPPER(RIGHT(F19,1))=High,UnitCostHigh,UnitCostSpecified)),MATCH(UPPER(LEFT(F19,LEN(F19)-1)),CostCode,0))) -> 0 | H19: =G19*E19 -> 0 | J19: =H19*I19 -> 0 | K19: =+H19*(1-I19) -> 0
B20: Waste fuel | D20: litre | F20: =NA() ->  | G20: 0 | H20: 0 | J20: 0 | K20: 0
B21: Waste batteries | D21: allow | F21: =NA() ->  | G21: 0 | H21: 0 | J21: 0 | K21: 0
B22: Assay & environmental lab reagents | D22: kg | F22: =NA() ->  | G22: 0 | H22: 0 | J22: 0 | K22: 0
B23: Machine shop paints, solvents etc | D23: litre | F23: =NA() ->  | G23: 0 | H23: 0 | J23: 0 | K23: 0
B24: Glycol | D24: litre | F24: =NA() ->  | G24: 0 | H24: 0 | J24: 0 | K24: 0
B25: Process reagents | D25: kg | F25: =NA() ->  | G25: =IF(ISNA(F25),0,INDEX(IF(UPPER(RIGHT(F25,1))=Low,UnitCostLow, IF(UPPER(RIGHT(F25,1))=High,UnitCostHigh,UnitCostSpecified)),MATCH(UPPER(LEFT(F25,LEN(F25)-1)),CostCode,0))) -> 0 | H25: =G25*E25 -> 0 | J25: =H25*I25 -> 0 | K25: =+H25*(1-I25) -> 0
B26: Nuclear sources | D26: allow | F26: =NA() ->  | G26: =IF(ISNA(F26),0,INDEX(IF(UPPER(RIGHT(F26,1))=Low,UnitCostLow, IF(UPPER(RIGHT(F26,1))=High,UnitCostHigh,UnitCostSpecified)),MATCH(UPPER(LEFT(F26,LEN(F26)-1)),CostCode,0))) -> 0 | H26: =G26*E26 -> 0 | J26: =H26*I26 -> 0 | K26: =+H26*(1-I26) -> 0
B27: Other hazardous materials | D27: allow | F27: =NA() ->  | G27: =IF(ISNA(F27),0,INDEX(IF(UPPER(RIGHT(F27,1))=Low,UnitCostLow, IF(UPPER(RIGHT(F27,1))=High,UnitCostHigh,UnitCostSpecified)),MATCH(UPPER(LEFT(F27,LEN(F27)-1)),CostCode,0))) -> 0 | H27: =G27*E27 -> 0 | J27: =H27*I27 -> 0 | K27: =+H27*(1-I27) -> 0
B28: HAZARDOUS MATERIALS
B29: Transportation to disposal facility | D29: allow | F29: ea | G29: 0 | H29: =G29*E29 -> 0 | J29: =H29*I29 -> 0 | K29: =+H29*(1-I29) -> 0
B30: Disposal fees | D30: allow | F30: ea | G30: 0 | H30: =G30*E30 -> 0 | J30: =H30*I30 -> 0 | K30: =+H30*(1-I30) -> 0
B31: Other | D31: allow | F31: ea | G31: 0 | H31: =G31*E31 -> 0 | J31: =H31*I31 -> 0 | K31: =+H31*(1-I31) -> 0
B32: CONTAMINATED SOILS
B33: Contam. soil investigation - Phase 1 | D33: each | F33: =NA() ->  | G33: 0 | H33: =G33*E33 -> 0 | J33: =H33*I33 -> 0 | K33: =+H33*(1-I33) -> 0
B34: Contam. soil investigation - Phase 2 | D34: allow | F34: =NA() ->  | G34: 0 | H34: =G34*E34 -> 0 | J34: =H34*I34 -> 0 | K34: =+H34*(1-I34) -> 0
B35: CONTAMINATED SOIL REMOVAL
B36: Contaminated Soil Treatment | D36: m3 | F36: 15CSTS | G36: 14.78 | H36: =G36*E36 -> 0 | I36: 1 | J36: =H36*I36 -> 0 | K36: =+H36*(1-I36) -> 0
B37: Contaminated Soil Treatment (2017 Work Plan) | C37: Marginal increase associated with 2017 Work Plan. Spill 16-283 at Milne Port Bulk Fuel Tank Farm | D37: m3 | F37: 15CSTS | G37: 14.78 | H37: 0 | I37: 1 | J37: 0 | K37: 0
B38: Excavate and transport | D38: m3 | F38: =NA() ->  | G38: =IF(ISNA(F38),0,INDEX(IF(UPPER(RIGHT(F38,1))=Low,UnitCostLow, IF(UPPER(RIGHT(F38,1))=High,UnitCostHigh,UnitCostSpecified)),MATCH(UPPER(LEFT(F38,LEN(F38)-1)),CostCode,0))) -> 0 | H38: 0 | J38: 0 | K38: 0
B39: Manage hydrocarbon remediation | D39: m3 | F39: =NA() ->  | G39: =IF(ISNA(F39),0,INDEX(IF(UPPER(RIGHT(F39,1))=Low,UnitCostLow, IF(UPPER(RIGHT(F39,1))=High,UnitCostHigh,UnitCostSpecified)),MATCH(UPPER(LEFT(F39,LEN(F39)-1)),CostCode,0))) -> 0 | H39: 0 | J39: 0 | K39: 0
B40: Reagents/stabilizing agent | D40: m2 | F40: =NA() ->  | G40: =IF(ISNA(F40),0,INDEX(IF(UPPER(RIGHT(F40,1))=Low,UnitCostLow, IF(UPPER(RIGHT(F40,1))=High,UnitCostHigh,UnitCostSpecified)),MATCH(UPPER(LEFT(F40,LEN(F40)-1)),CostCode,0))) -> 0 | H40: 0 | J40: 0 | K40: 0
B41: Excavate and transport to offsite facility | D41: m3 | F41: =NA() ->  | G41: =IF(ISNA(F41),0,INDEX(IF(UPPER(RIGHT(F41,1))=Low,UnitCostLow, IF(UPPER(RIGHT(F41,1))=High,UnitCostHigh,UnitCostSpecified)),MATCH(UPPER(LEFT(F41,LEN(F41)-1)),CostCode,0))) -> 0 | H41: 0 | J41: 0 | K41: 0
B42: Contour decontaminated area | D42: m3 | F42: =NA() ->  | G42: =IF(ISNA(F42),0,INDEX(IF(UPPER(RIGHT(F42,1))=Low,UnitCostLow, IF(UPPER(RIGHT(F42,1))=High,UnitCostHigh,UnitCostSpecified)),MATCH(UPPER(LEFT(F42,LEN(F42)-1)),CostCode,0))) -> 0 | H42: 0 | J42: 0 | K42: 0
B43: CONTAMINATED SOIL VERY LOW PERMEABILITY COVER
B44: Supply geomembrame, HDPE, ES3, GCL | D44: m2 | F44: =NA() ->  | G44: =IF(ISNA(F44),0,INDEX(IF(UPPER(RIGHT(F44,1))=Low,UnitCostLow, IF(UPPER(RIGHT(F44,1))=High,UnitCostHigh,UnitCostSpecified)),MATCH(UPPER(LEFT(F44,LEN(F44)-1)),CostCode,0))) -> 0 | H44: =G44*E44 -> 0 | J44: =H44*I44 -> 0 | K44: =+H44*(1-I44) -> 0
B45: Upper and lower bedding layers | D45: m3 | F45: =NA() ->  | G45: 0 | H45: 0 | J45: 0 | K45: 0
B46: Install geomembrane, HDPE, ES3, GCL | D46: m2 | F46: =NA() ->  | G46: 0 | H46: 0 | J46: 0 | K46: 0
B47: Erosion protection layer | D47: m3 | F47: =NA() ->  | G47: 0 | H47: 0 | J47: 0 | K47: 0
B48: Vegetate | D48: m2 | F48: =NA() ->  | G48: 0 | H48: 0 | J48: 0 | K48: 0
B49: Install infiltration/seepage instrumentation | D49: allow | F49: =NA() ->  | G49: 0 | H49: 0 | J49: 0 | K49: 0
B50: Other | F50: =NA() ->  | G50: 0 | H50: 0 | J50: 0 | K50: 0
B51: OTHER
B52: Ammonium nitrate (explosive material) | C52: 2019 estimate (See section 3.3.2.2 of 2019 Marginal Estimate) | D52: m3 | E52: 9800 | F52: 16AN1S | G52: 358 | H52: =G52*E52 -> 3508400 | I52: 1 | J52: =H52*I52 -> 3508400 | K52: =+H52*(1-I52) -> 0
B53: Pre-package explosives | D53: kg | F53: 16AN2S | G53: 2.37 | H53: =G53*E53 -> 0 | I53: 1 | J53: =H53*I53 -> 0 | K53: =+H53*(1-I53) -> 0
F54: =NA() ->  | G54: =IF(ISNA(F54),0,INDEX(IF(UPPER(RIGHT(F54,1))=Low,UnitCostLow, IF(UPPER(RIGHT(F54,1))=High,UnitCostHigh,UnitCostSpecified)),MATCH(UPPER(LEFT(F54,LEN(F54)-1)),CostCode,0))) -> 0 | H54: =G54*E54 -> 0 | J54: =H54*I54 -> 0 | K54: =+H54*(1-I54) -> 0
G55: Total | H55: =SUM(H6:H54)+0.0001 -> 3508400 | J55: =SUM(J6:J54) -> 3508400 | K55: =SUM(K6:K54) -> 0
G56: % of Total | J56: =J55/H55 -> 1 | K56: =K55/H55 -> 0

Sheet Bldgs & Equip MS
A1: 1 | B1: Building / Equip Name: | C1: Mine Site | G1: Bldg / Equip #: | H1: 1
B3: ACTIVITY/MATERIAL | C3: Notes | D3: Units | E3: Quantity | F3: Cost Code | G3: Unit Cost | H3: Cost | I3: % Land | J3: Land Cost | K3: Water Cost
B4: DISPOSE MOBILE EQUIPMENT - Unit Costs includes disassembly and decontamination required for on-site disposal, load and transport to landfill
B5: Light Mobile Equipment | C5: Equipment quanties updated to reflect 2017 Work Plan addendum Table 3-5 30 units. | D5: each | F5: 15MOLS | G5: 941.09 | H5: =G5*E5 -> 0 | I5: 0.95 | J5: =H5*I5 -> 0 | K5: =+H5*(1-I5) -> 0
C6: 2017 Actual work as outlined in Table 2-4 of 2018 Marginal Estimate | D6: each | F6: 15MOLS | G6: 941.09 | H6: 0 | I6: 0.95 | J6: =H6*I6 -> 0 | K6: 0
C7: 2018 Work Plan see Table 3-2 | D7: each | F7: 15MOLS | G7: 941.09 | H7: 0 | I7: 0.95 | J7: =H7*I7 -> 0 | K7: 0
C8: 2019 estimate (add 2 from reconciliation, add 33 from Marginal Increase and add 61 from 3rd Party) | D8: each | E8: 137 | F8: 18MOLS | G8: 876.92 | H8: 120138.04 | I8: 0.95 | J8: =H8*I8 -> 114131.138 | K8: 6006.902
B9: Medium Mobile Equipment | C9: Equipment quanties updated to reflect 2017 Work Plan addendum Table 3-5 40 units. | D9: each | F9: 15MOMS | G9: 1494.13 | H9: 0 | I9: 0.98 | J9: =H9*I9 -> 0 | K9: 0
C10: 2017 Actual work as outlined in Table 2-4 of 2018 Marginal Estimate | D10: each | F10: 15MOMS | G10: 1494.13 | H10: 0 | I10: 0.98 | J10: 0 | K10: 0
C11: 2018 Work Plan see Table 3-2 | D11: each | F11: 15MOMS | G11: 1494.13 | H11: 0 | I11: 0.98 | J11: =H11*I11 -> 0 | K11: 0
C12: 2019 estimate (add 14 from reconciliation, add 13 from Marginal Increase and add 49 from 3rd Party) | D12: each | E12: 47 | F12: 18MOMS | G12: 1378.63 | H12: 64795.61 | I12: 0.98 | J12: 63499.6978 | K12: 1295.9122
B13: Heavy Mobile Equipment | C13: Equipment quanties updated to reflect 2017 Work Plan addendum Table 3-5 92 units. | D13: each | F13: 15MOHS | G13: 2616.87 | H13: 0 | I13: 0.98 | J13: 0 | K13: 0
C14: 2017 Actual work as outlined in Table 2-4 of 2018 Marginal Estimate | D14: each | F14: 15MOHS | G14: 2616.87 | H14: 0 | I14: 0.98 | J14: 0 | K14: 0
C15: 2018 Work Plan see Table 3-2 | D15: each | F15: 15MOHS | G15: 2616.87 | H15: 0 | I15: 0.98 | J15: =H15*I15 -> 0 | K15: 0
C16: 2019 estimate (add 13 from reconciliation, add 33 from Marginal Increase and add 34 from 3rd Party) | D16: each | E16: 96 | F16: 18MOHS | G16: 2310.87 | H16: 221843.52 | I16: 0.98 | J16: 217406.6496 | K16: 4436.8704
B17: DISPOSE MECHANICAL EQUIPMENT - Unit Costs includes disassembly and decontamination required for on-site disposal, load and transport to landfill
B18: Light mechanical equipment - Decontaminate and dispose on-site | D18: each | F18: 15LMES | G18: 1980.8 | H18: =G18*E18 -> 0 | I18: 0.98 | J18: =H18*I18 -> 0 | K18: =+H18*(1-I18) -> 0
B19: Light mechanical equipment - Decontaminate and dispose on-site | C19: 2017 Actual work as outlined in Table 2-4 of 2018 Marginal Estimate | D19: each | F19: 15LMES | G19: 1980.8 | H19: =G19*E19 -> 0 | I19: 0.98 | J19: =H19*I19 -> 0 | K19: =+H19*(1-I19) -> 0
C20: 2019 estimate (add 29 from Marginal Increase) | D20: each | E20: 29 | F20: 18LMES | G20: 1707.45 | H20: 49516.05 | I20: 0.98 | J20: 48525.729 | K20: 990.321
B21: Medium mechanical equipment - Decontaminate and dispose on-site | C21: Equipment quanties updated to reflect 2017 Work Plan addendum Table 3-5 12 units. | D21: each | F21: 15MMES | G21: 4261.34 | H21: 0 | I21: 1 | J21: 0 | K21: 0
C22: 2017 Actual work as outlined in Table 2-4 of 2018 Marginal Estimate | D22: each | F22: 15MMES | G22: 4261.34 | H22: =G22*E22 -> 0 | I22: 1 | J22: =H22*I22 -> 0 | K22: =+H22*(1-I22) -> 0
C23: 2019 estimate (add 1 from Marginal Increase) | D23: each | E23: 1 | F23: 18MMES | G23: 3714.64 | H23: 3714.64 | I23: 1 | J23: 3714.64 | K23: 0
B24: Heavy mechanical equipment - Decontaminate and dispose on-site | C24: Equipment quanties updated to reflect 2017 Work Plan addendum Table 3-5 4 units. | D24: each | F24: 15MEHS | G24: 41205.45 | H24: 0 | I24: 1 | J24: 0 | K24: 0
C25: 2017 Actual work as outlined in Table 2-4 of 2018 Marginal Estimate | D25: each | F25: 15MEHS | G25: 41205.45 | H25: 0 | I25: 1 | J25: 0 | K25: 0
C26: 2018 Work Plan see Table 3-2 | D26: each | F26: 15MEHS | G26: 41205.45 | H26: =G26*E26 -> 0 | I26: 1 | J26: =H26*I26 -> 0 | K26: =+H26*(1-I26) -> 0
C27: 2019 estimate (add 14 from reconciliation and add 8 from Marginal Increase) | D27: each | E27: =14+8 -> 22 | F27: 18MEHS | G27: 35507.45 | H27: 781163.9 | I27: 1 | J27: 781163.9 | K27: 0
B28: Light Tanks | C28: Light non- fuel storage tanks. The cleaning, plugging, disassembly and removal of all associated pipeline infrastructure is included (see Tables 3-4 of 2019 Marginal Estimate). | D28: each | E28: 6 | F28: 18TLS | G28: 1872.41 | H28: 11234.46 | I28: 1 | J28: 11234.46 | K28: 0
B29: Medium Tanks | C29: Medium non- fuel storage tanks. The cleaning, plugging, disassembly and removal of all associated pipeline infrastructure is included (3-4 of 2019 Marginal Estimate). | D29: each | F29: 15MTS | G29: 11371 | H29: 0 | I29: 1 | J29: 0 | K29: 0
B30: Light Diesel Tanks | C30: Small fuel tanks (10,000-20,000L) 2017 actual not previously allocated (see Table 3-4 of 2019 Marginal Estimate) | D30: each | E30: 5 | F30: 18LiDTS | G30: 3193.16 | H30: 15965.8 | I30: 1 | J30: 15965.8 | K30: 0
B31: Medium Mobile Diesel Tank | C31: Medium fuel storage tanks. The cleaning, plugging, disassembly and removal of all associated pipeline infrastructure is included (Table 3-4 of 2019 Marginal Estimate). | D31: each | E31: 7 | F31: 18MMMTS | G31: 13928.01 | H31: =G31*E31 -> 97496.07 | I31: 1 | J31: =H31*I31 -> 97496.07 | K31: =+H31*(1-I31) -> 0
B32: Medium Diesel Tanks | D32: each | F32: 15MDTS | G32: 16166.4 | H32: 0 | I32: 1 | J32: 0 | K32: 0
B33: Large Diesel Tanks | C33: Large fuel tanks (3ML-15ML). The cleaning, plugging, disassembly and removal of all associated pipeline infrastructure is included (Ref 1, pg 27). | D33: each | E33: 2 | F33: 18LDTS | G33: 147297.85 | H33: =G33*E33 -> 294595.7 | I33: 1 | J33: =H33*I33 -> 294595.7 | K33: =+H33*(1-I33) -> 0
B34: Misc. Items | C34: On-site disposal. Miscellaneous (minor) items were defined as any item less than 200 kg not captured in other unit costs (Ref 1, pg 42). | D34: Lot | F34: 15MEIS | G34: 529.83 | H34: 0 | I34: 1 | J34: 0 | K34: 0
B35: Fuelk tanks - On-site disposal of medium mobile fuel tanks (3,000 to 500,000 L) | C35: On-site disposal of medium-mobile fuel tanks (3,000 to 500,000L). See table 3-4 of 2019 marginal Estimate | D35: each | F35: 15MMFTS | G35: 10481.05 | H35: 0 | I35: 1 | J35: 0 | K35: 0
B36: REMOVE BUILDINGS - Unit Costs include disassembling, removing or securing all items and load and transport
B37: Modular | C37: 2017 Work Plan Addendum includes 800 person temp hardwall camp , construction offices, lunch rooms and washcars at both Mine Site and Milne Port | D37: m2 | F37: 15RBMS | G37: 59.38 | H37: =G37*E37 -> 0 | I37: 0.89 | J37: 0 | K37: =+H37*(1-I37) -> 0
C38: 2019 estimate (See table 3-1 of 2019 Marginal Estimate) | D38: m2 | E38: 1032 | F38: 18RBMS | G38: 50.75 | H38: =G38*E38 -> 52374 | I38: 0.89 | J38: =H38*I38 -> 46612.86 | K38: =+H38*(1-I38) -> 5761.14
B39: Fold Away Buildings | D39: m2 | F39: 15RBFS | G39: 41.57 | H39: 0 | I39: 1 | J39: 0 | K39: 0
B40: Soft-Walled | C40: 2017 Work Plan Addendum soft Walled Buildings includes 50 person camp and 35 person Norse man style camp at Mine Site only | D40: m2 | F40: 15RBSS | G40: 47.51 | H40: 0 | I40: 0.89 | J40: 0 | K40: 0
B41: ISO Shipping Containers (Shelters, Comm. Facilities) | D41: m2 | F41: 15RBIS | G41: 29.69 | H41: 0 | I41: 1 | J41: 0 | K41: 0
B42: Office/washcars | D42: m2 | F42: 15RBIS | G42: 102.05 | H42: =G42*E42 -> 0 | I42: 0.89 | J42: =H42*I42 -> 0 | K42: =+H42*(1-I42) -> 0
B43: Water and Wastewater Treatment Facilities | C43: Equipment quanties updated to reflect 2017 Work Plan addendum Table 3-6 2 units one at Milne Port and one at Mine Site. | D43: each | F43: 15WWTS | G43: 11035.58 | H43: 0 | I43: 0 | J43: 0 | K43: 0
B44: Power Plant | D44: m2 | F44: brs1h | G44: =IF(ISNA(F44),0,INDEX(IF(UPPER(RIGHT(F44,1))=Low,UnitCostLow, IF(UPPER(RIGHT(F44,1))=High,UnitCostHigh,UnitCostSpecified)),MATCH(UPPER(LEFT(F44,LEN(F44)-1)),CostCode,0))) -> 65 | H44: 0 | J44: 0 | K44: 0
B45: Communication Tower | D45: m2 | F45: brs1h | G45: =IF(ISNA(F45),0,INDEX(IF(UPPER(RIGHT(F45,1))=Low,UnitCostLow, IF(UPPER(RIGHT(F45,1))=High,UnitCostHigh,UnitCostSpecified)),MATCH(UPPER(LEFT(F45,LEN(F45)-1)),CostCode,0))) -> 65 | H45: =G45*E45 -> 0 | J45: =H45*I45 -> 0 | K45: 0
B46: U/G Heating Plant | D46: m2 | F46: =NA() ->  | G46: =IF(ISNA(F46),0,INDEX(IF(UPPER(RIGHT(F46,1))=Low,UnitCostLow, IF(UPPER(RIGHT(F46,1))=High,UnitCostHigh,UnitCostSpecified)),MATCH(UPPER(LEFT(F46,LEN(F46)-1)),CostCode,0))) -> 0 | H46: =G46*E46 -> 0 | J46: =H46*I46 -> 0 | K46: 0
B47: Emulsion Plant | D47: m2 | F47: =NA() ->  | G47: =IF(ISNA(F47),0,INDEX(IF(UPPER(RIGHT(F47,1))=Low,UnitCostLow, IF(UPPER(RIGHT(F47,1))=High,UnitCostHigh,UnitCostSpecified)),MATCH(UPPER(LEFT(F47,LEN(F47)-1)),CostCode,0))) -> 0 | H47: 0 | J47: 0 | K47: 0
B48: AN Storage Facility | D48: m2 | F48: brs1s | G48: 128 | H48: 0 | J48: =H48*I48 -> 0 | K48: 0
B49: Warehouse, Shops and Other | D49: m2 | F49: brs1l | G49: =IF(ISNA(F49),0,INDEX(IF(UPPER(RIGHT(F49,1))=Low,UnitCostLow, IF(UPPER(RIGHT(F49,1))=High,UnitCostHigh,UnitCostSpecified)),MATCH(UPPER(LEFT(F49,LEN(F49)-1)),CostCode,0))) -> 45 | H49: 0 | J49: =H49*I49 -> 0 | K49: 0
B50: Storage Facility at Laydown/Airstrip | D50: m2 | F50: =NA() ->  | G50: =IF(ISNA(F50),0,INDEX(IF(UPPER(RIGHT(F50,1))=Low,UnitCostLow, IF(UPPER(RIGHT(F50,1))=High,UnitCostHigh,UnitCostSpecified)),MATCH(UPPER(LEFT(F50,LEN(F50)-1)),CostCode,0))) -> 0 | H50: 0 | J50: =H50*I50 -> 0 | K50: 0
B51: Fuel tanks | D51: m2 | F51: brs1h | G51: =IF(ISNA(F51),0,INDEX(IF(UPPER(RIGHT(F51,1))=Low,UnitCostLow, IF(UPPER(RIGHT(F51,1))=High,UnitCostHigh,UnitCostSpecified)),MATCH(UPPER(LEFT(F51,LEN(F51)-1)),CostCode,0))) -> 65 | H51: 0 | J51: =H51*I51 -> 0 | K51: 0
B52: Fire Protection pumping station | D52: m | F52: brs1h | G52: =IF(ISNA(F52),0,INDEX(IF(UPPER(RIGHT(F52,1))=Low,UnitCostLow, IF(UPPER(RIGHT(F52,1))=High,UnitCostHigh,UnitCostSpecified)),MATCH(UPPER(LEFT(F52,LEN(F52)-1)),CostCode,0))) -> 65 | H52: 0 | J52: =H52*I52 -> 0 | K52: 0
B53: Freshwater intake | D53: m2 | F53: brs1l | G53: 45 | H53: 0 | J53: 0 | K53: 0
B54: Reclaim pumps | D54: m2 | F54: =NA() ->  | G54: 0 | H54: 0 | J54: 0 | K54: 0
B55: Outfall & Diffuser | D55: m2 | F55: =NA() ->  | G55: 0 | H55: 0 | J55: 0 | K55: 0
B56: Airstrip lighting, navigation, electrician | D56: mandays | F56: =NA() ->  | G56: =IF(ISNA(F56),0,INDEX(IF(UPPER(RIGHT(F56,1))=Low,UnitCostLow, IF(UPPER(RIGHT(F56,1))=High,UnitCostHigh,UnitCostSpecified)),MATCH(UPPER(LEFT(F56,LEN(F56)-1)),CostCode,0))) -> 0 | H56: 0 | J56: 0 | K56: 0
B57: Airstrip lighting, navigation, mechanical | D57: mandays | F57: =NA() ->  | G57: =IF(ISNA(F57),0,INDEX(IF(UPPER(RIGHT(F57,1))=Low,UnitCostLow, IF(UPPER(RIGHT(F57,1))=High,UnitCostHigh,UnitCostSpecified)),MATCH(UPPER(LEFT(F57,LEN(F57)-1)),CostCode,0))) -> 0 | H57: 0 | J57: 0 | K57: 0
B58: Break foundation slabs | D58: m2 | F58: brcs | G58: =IF(ISNA(F58),0,INDEX(IF(UPPER(RIGHT(F58,1))=Low,UnitCostLow, IF(UPPER(RIGHT(F58,1))=High,UnitCostHigh,UnitCostSpecified)),MATCH(UPPER(LEFT(F58,LEN(F58)-1)),CostCode,0))) -> 6 | H58: =G58*E58 -> 0 | J58: =H58*I58 -> 0 | K58: 0
B59: Consolidate & dump boneyard debris | D59: allow | F59: brs1l | G59: 45 | H59: 0 | J59: 0 | K59: 0
B60: Worker Dry | D60: m2 | F60: brs1l | G60: 45 | H60: =G60*E60 -> 0 | J60: =H60*I60 -> 0 | K60: 0
B61: WTP & Fresh Water Pumping Station | D61: m2 | F61: brs1l | G61: 45 | H61: =G61*E61 -> 0 | J61: =H61*I61 -> 0 | K61: 0
B62: WRSF Pond and Attenuation Pond Pumphouses | D62: m2 | F62: brs1l | G62: 45 | H62: =G62*E62 -> 0 | J62: =H62*I62 -> 0 | K62: 0
B63: Water Intake | D63: m2 | F63: brcs | G63: 6 | H63: =G63*E63 -> 0 | J63: =H63*I63 -> 0 | K63: 0
B64: Other | D64: m2 | F64: bdcs | G64: 12.63 | H64: 0 | J64: 0 | K64: 0
B65: REMOVE CONTAMINATED BUILDINGS - Unit Costs include disassembling, removing or securing all items, decontamination and load and transport
B66: Modular | C66: Trailers and pre-fabricated buildings. (Ref 1, pg 29). | D66: m2 | F66: 15RCBMS | G66: 143.42 | H66: =G66*E66 -> 0 | I66: 1 | J66: =H66*I66 -> 0 | K66: =+H66*(1-I66) -> 0
B67: Fold Away Buildings | C67: 2019 estimate (See table 3-1 of 2019 Marginal Estimate) | D67: m2 | E67: =1572 -> 1572 | F67: 18RCBFS | G67: 122.25 | H67: 192177 | I67: 1 | J67: 192177 | K67: 0
B68: Soft-Walled | D68: m2 | F68: 15RCBSS | G68: 148.35 | H68: =G68*E68 -> 0 | I68: 1 | J68: =H68*I68 -> 0 | K68: =+H68*(1-I68) -> 0
B69: ISO Shipping Containers (Shelters, Comm. Facilities) | C69: 2017 Work Plan add 500 m2 Tire Shop | D69: m2 | F69: 15RCBIS | G69: 143.42 | H69: 0 | I69: 1 | J69: 0 | K69: 0
B70: Temporary Construction Warehouse and Office Allowance | D70: m2 | F70: 15RCBTS | G70: 25000 | H70: 0 | I70: 1 | J70: 0 | K70: 0
B71: BREAK FOUNDATIONS
B72: Precast Foundations | C72: 2019 | D72: m2 | F72: 15FCS | G72: 38.47 | H72: =G72*E72 -> 0 | I72: 1 | J72: =H72*I72 -> 0 | K72: =+H72*(1-I72) -> 0
B73: Slab on Grade | C73: 2019 estimate Breakdown | D73: m2 | F73: 15FSS | G73: 33.11 | H73: 0 | I73: 1 | J73: 0 | K73: 0
B74: Timber Cribbing | C74: Includes disassemby load and transport of the timber cribbing | D74: m2 | F74: 15TCS | G74: 20.78 | H74: 0 | I74: 1 | J74: 0 | K74: 0
B75: GRADE AND CONTOUR, GENERAL - Unit costs are inclusive of backfill, compaction and sacrfication with a dozer
B76: Grade and contour laydown areas | C76: Expansion of 800 camp | D76: m2 | E76: 12000 | F76: 18GCS | G76: 1.493420346 | H76: =G76*E76 -> 17921.04415 | I76: 1 | J76: 17921.04415 | K76: =+H76*(1-I76) -> 0
C77: Water Treatment Plant 2019 | D77: m2 | E77: 3500 | F77: 18GCS | G77: 1.493420346 | H77: 5226.97121 | I77: 1 | J77: 5226.97121 | K77: 0
C78: Km 107.5, Km 110, Km 107 stockplile | D78: m2 | E78: 404400 | F78: 18GCS | G78: 1.493420346 | H78: 603939.1878 | I78: 1 | J78: 603939.1878 | K78: 0
C79: mine site fuel tank foot print | D79: m2 | E79: 21620 | F79: 18GCS | G79: 1.493420346 | H79: 32287.74788 | I79: 1 | J79: 32287.74788 | K79: 0
D80: m2 | F80: 15GCS | G80: 1.49 | H80: =G80*E80 -> 0 | I80: 1 | J80: =H80*I80 -> 0 | K80: =+H80*(1-I80) -> 0
D81: m2 | F81: 15GCS | G81: 1.49 | H81: 0 | I81: 1 | J81: 0 | K81: 0 | N81: Landfill Expansion | P81: 4475
D82: m2 | F82: 15GCS | G82: 1.49 | H82: 0 | I82: 1 | J82: 0 | K82: 0 | N82: Landfill Expansion | P82: 400
D83: m2 | F83: 15GCS | G83: 1.49 | H83: 0 | I83: 1 | J83: 0 | K83: 0 | N83: 2018 Landfill Expansion | P83: 63000
D84: m2 | F84: 15GCS | G84: 1.49 | H84: 0 | I84: 1 | J84: 0 | K84: 0
B85: Crusher Pad expansion pad | D85: m2 | E85: 12000 | F85: 18GCS | G85: 1.493420346 | H85: 17921.04415 | I85: 1 | J85: 17921.04415 | K85: 0
B86: Culvert Removal | C86: on mine site 2019 estimate | D86: m | E86: 285 | G86: 50 | H86: 14250 | I86: 1 | J86: 14250 | K86: 0
B87: Grade and contour infrastructure pads | C87: In 2017 Work Plan Addendum - Camp pad | D87: m2 | F87: 15GCS | G87: 1.49 | H87: 0 | I87: 1 | J87: 0 | K87: 0
D88: m2 | F88: 15GCS | G88: 1.81 | H88: =G88*E88 -> 0 | I88: 1 | J88: =H88*I88 -> 0 | K88: =+H88*(1-I88) -> 0
B89: Aerodome Facilities | D89: m2 | F89: 15GCS | G89: 1.81 | H89: 0 | I89: 1 | J89: 0 | K89: 0
B90: Road | D90: m2 | F90: 15GCS | G90: 1.81 | H90: 0 | I90: 1 | J90: 0 | K90: 0
B91: Stockpiles | C91: Add 2017 Work Plan Increase in Crusher Pad Storage Area - Ph 1: 8,200m2 & Ph 2: 17,500m2 | D91: m2 | F91: 15GCS | G91: 1.81 | H91: =G91*E91 -> 0 | I91: 1 | J91: =H91*I91 -> 0 | K91: =+H91*(1-I91) -> 0
B92: Truck weigh facility distributed area | D92: m2 | F92: 15GCS | G92: 1.81 | H92: =G92*E92 -> 0 | I92: 1 | J92: =H92*I92 -> 0 | K92: =+H92*(1-I92) -> 0
B93: U/G Heating Plant | D93: m2 | F93: =NA() ->  | G93: =IF(ISNA(F93),0,INDEX(IF(UPPER(RIGHT(F93,1))=Low,UnitCostLow, IF(UPPER(RIGHT(F93,1))=High,UnitCostHigh,UnitCostSpecified)),MATCH(UPPER(LEFT(F93,LEN(F93)-1)),CostCode,0))) -> 0 | H93: 0 | J93: 0 | K93: 0
B94: Emulsion Plant | D94: m2 | F94: =NA() ->  | G94: =IF(ISNA(F94),0,INDEX(IF(UPPER(RIGHT(F94,1))=Low,UnitCostLow, IF(UPPER(RIGHT(F94,1))=High,UnitCostHigh,UnitCostSpecified)),MATCH(UPPER(LEFT(F94,LEN(F94)-1)),CostCode,0))) -> 0 | H94: 0 | J94: 0 | K94: 0
B95: Warehouse, Shops and Other | D95: m2 | F95: AE | G95: 8.47 | H95: 0 | J95: 0 | K95: 0
B96: Fuel tanks on site for bulk fuel storage | D96: m2 | F96: AE | G96: 8.47 | H96: 0 | J96: 0 | K96: 0
B97: Fire Protection pumping station | D97: m2 | F97: AE | G97: 8.47 | H97: 0 | J97: 0 | K97: 0
B98: Worker Dry | D98: m2 | F98: AE | G98: 8.47 | H98: 0 | J98: 0 | K98: 0
B99: WTP & Fresh Water Pumping Station | D99: m2 | F99: AE | G99: 8.47 | H99: 0 | J99: 0 | K99: 0
B100: WRSF Pond and Attenuation Pond Pumphouses | D100: m2 | F100: AE | G100: 8.47 | H100: 0 | J100: 0 | K100: 0
B101: Other | D101: ha | F101: scfyl | G101: =IF(ISNA(F101),0,INDEX(IF(UPPER(RIGHT(F101,1))=Low,UnitCostLow, IF(UPPER(RIGHT(F101,1))=High,UnitCostHigh,UnitCostSpecified)),MATCH(UPPER(LEFT(F101,LEN(F101)-1)),CostCode,0))) -> 4300 | H101: 0 | J101: 0 | K101: 0
B102: GRADE AND CONTOUR, WITH LINER - Unit costs include liner removal and disposal, backfill, compaction and sacrfication with a dozer
B103: Waste Disposal | D103: m2 | F103: 15GCLS | G103: 5.31 | H103: =G103*E103 -> 0 | I103: 1 | J103: 0 | K103: 0
B104: Fuel tank farm dyke | D104: m2 | F104: 15GCLS | G104: 5.31 | H104: =G104*E104 -> 0 | I104: 1 | J104: =H104*I104 -> 0 | K104: =+H104*(1-I104) -> 0
B105: Hazardous waste berm | D105: m2 | F105: 15GCLS | G105: 5.31 | H105: 0 | I105: 1 | J105: 0 | K105: 0
B106: Bulk fuel storage facility (Bladder Farm) | D106: m2 | F106: 15GCLS | G106: 5.31 | H106: 0 | I106: 1 | J106: 0 | K106: 0
B107: Crusher Pad Sedimentation Pond | C107: Crusher pad sedimentation pond | D107: m2 | E107: 2000 | F107: 18GCLS | G107: 4.99 | H107: =G107*E107 -> 9980 | I107: 1 | J107: =H107*I107 -> 9980 | K107: =+H107*(1-I107) -> 0
B108: Mine Site Fuel Tank, Farm containment Area | C108: Mine Site Fuel Tank, Farm Containment Area | D108: m2 | E108: 12000 | F108: 18GCLS | G108: 4.99 | H108: 59880 | I108: 1 | J108: 59880 | K108: 0
B109: Hazardous waste berm | C109: Hazardous Waste Berm | D109: m2 | E109: 360 | F109: 18GCLS | G109: 4.99 | H109: =G109*E109 -> 1796.4 | I109: 1 | J109: =H109*I109 -> 1796.4 | K109: =+H109*(1-I109) -> 0
B110: Other | C110: New PWSP 2019 | D110: m2 | E110: 4180 | F110: 18GCLS | G110: 4.99 | H110: =G110*E110 -> 20858.2 | I110: 1 | J110: =H110*I110 -> 20858.2
B111: Other | C111: Landfarm | D111: m2 | E111: 9000 | F111: 18GCLS | G111: 4.99 | H111: 44910 | I111: 1 | J111: 44910
B112: Other | C112: KM107 Sedimentation Pond | D112: m2 | E112: 7400 | F112: 18GCLS | G112: 4.99 | H112: 36926 | I112: 1 | J112: 36926
B114: LANDFILL FOR DEMOLITION WASTE
B115: Place fill material over demolition waste (Mine Site Landfill) | C115: Includes drill and blasting of material aggregated crushing, excavation of fill, load and haul of fill material, backfill and compact source of material, and fill application. Assumes avg fill depth 1.5m over 6m of demolition waste (Ref 1, pg 17). For 2018 work plan see table 3-9 in the Marginal estimate for quantity and 2017 Work Plan Addendum Table 3-8, 2018 Breakdown. Fill application for 2018 Estimate Addendum see table 3-6. | D115: m2 | E115: 2664 | F115: 18PFS | G115: 38.83 | H115: =G115*E115 -> 103443.12 | I115: 1 | J115: =H115*I115 -> 103443.12 | K115: =+H115*(1-I115) -> 0
B116: SPECIALIZED ITEMS
B117: Electrical Cable | C117: Includes the removal, loading, hauling and disposal of cable (Ref 1, pg 41). 2017 Work Plan add 3500 m of cable. | D117: m | F117: 15ECS | G117: 26.49 | H117: =G117*E117 -> 0 | I117: 1 | J117: =H117*I117 -> 0 | K117: =+H117*(1-I117) -> 0
B118: Incinerator | C118: Equipment quanties updated to reflect 2017 Work Plan addendum Table 3-6 2 units one at Milne Port and one at Mine Site. | D118: each | F118: 15FIS | G118: 9975.93 | H118: 0 | I118: 1 | J118: 0 | K118: 0
B119: Potable Water | C119: Equipment quanties updated to reflect 2017 Work Plan addendum Table 3-6 2 units one at Milne Port and one at Mine Site. | D119: each | F119: 15PWS | G119: 9975.93 | H119: 0 | J119: 0 | K119: 0
G120: Total | H120: =SUM(H5:H119)+0.0001 -> 2874354.505 | J120: =SUM(J5:J119) -> 2855863.36 | K120: =SUM(K5:K119) -> 18491.1456
G121: % of Total | J121: =J120/H120 -> 0.9935668528 | K121: =K120/H120 -> 0.006433147187
B123: Note:

Sheet Bldgs & Equip MP
A1: 1 | B1: Building / Equip Name: | C1: Milne Port | G1: Bldg / Equip #: | H1: 2
B3: ACTIVITY/MATERIAL | C3: Notes | D3: Units | E3: Quantity | F3: Cost Code | G3: Unit Cost | H3: Cost | I3: % Land | J3: Land Cost | K3: Water Cost
B4: DISPOSE MOBILE EQUIPMENT - Unit Costs includes disassembly and decontamination required for on-site disposal, load and transport to landfill
B5: Light Mobile Equipment | C5: Equipment quanties updated to reflect BIMC Nov. 24 EBS revisions. Includes forklifts, picks up, vehicles around five (5) tonnes and under, scissor lift, man lifts, and small garbage bins (Ref 1, pg 24-25). 2017 Work Plan add 6 units. | D5: each | F5: 15MOLS | G5: 941.09 | H5: =G5*E5 -> 0 | I5: 0.98 | J5: =H5*I5 -> 0 | K5: =+H5*(1-I5) -> 0
B6: Medium Mobile Equipment | C6: Includes vehicles around 10 tonnes, trailers, buses, tow trucks, large garbage bins and water trucks (Ref 1, pg 24-25). | D6: each | F6: 15MOMS | G6: 1494.13 | H6: =G6*E6 -> 0 | I6: 0.95 | J6: =H6*I6 -> 0 | K6: =+H6*(1-I6) -> 0
B7: Heavy Mobile Equipment | C7: Equipment quanties updated to reflect BIMC Nov. 24 EBS revisions. Includes vehicles over 10 tonnes, boom trucks, large front end loaders, dump trucks, graders and cranes (Ref 1, pg 24-25). 2017 Work Plan add 4 units. | D7: each | F7: 15MOHS | G7: 2616.87 | H7: =G7*E7 -> 0 | I7: 1 | J7: 0 | K7: =+H7*(1-I7) -> 0
B8: Other (reclaim conveyor) | C8: Equipment quanties updated to reflect BIMC Nov. 24 EBS revisions. Conveyors have been classified as large mobile equipment, with the exception of the reclaim conveyor (850m in length). (Ref 1, pg 40). For 2017 Work Plan add 0.1667 units for for cross conveyor which is 1/6th of Reclaim Conveyor length. 2017 Work Plan Addendum this work was removed | D8: each | F8: 15MORS | G8: 1329441.31 | H8: =G8*E8 -> 0 | I8: 1 | J8: =H8*I8 -> 0 | K8: =+H8*(1-I8) -> 0 | M8: NOTE THIS Additional work never happened
B9: DISPOSE MECHANICAL EQUIPMENT - Unit Costs includes disassembly and decontamination required for on-site disposal, load and transport to landfill
B10: Light mechanical equipment - Decontaminate and dispose on-site | C10: Equipment quanties updated to reflect BIMC Nov. 24 EBS revisions. Light equipment includes pumps, fuel dispenser, laboratory equipment, and sample bins (Ref 1, pg 23). 2017 Work Plan add 20 units. | D10: each | F10: 15LMES | G10: 1980.8 | H10: =G10*E10 -> 0 | I10: 0.98 | J10: =H10*I10 -> 0 | K10: =+H10*(1-I10) -> 0
B11: Medium mechanical equipment - Decontaminate and dispose on-site | C11: Equipment quanties updated to reflect BIMC Nov. 24 EBS revisions. Medium equipment includes aerodrome equipment, generators, shop / maintenance equipment, screens, and chutes (Ref 1, pg 23). 2017 Work Plan add 16 units. | D11: each | F11: 15MMES | G11: 4261.34 | H11: 0 | I11: 1 | J11: 0 | K11: 0
B12: Heavy mechanical equipment - Decontaminate and dispose on-site | C12: Equipment quanties updated to reflect BIMC Nov. 24 EBS revisions. Heavy equipment includes crusher, feeder, power plant generators, large screens, conveyors, and stackers (Ref 2, pg 23). 2017 Work Plan add 1 unit (Cone Crusher). | D12: each | F12: 15MEHS | G12: 41205.45 | H12: 0 | I12: 1 | J12: 0 | K12: 0
B13: Light Tanks | C13: Light non- fuel storage tanks. The cleaning, plugging, disassembly and removal of all associated pipeline infrastructure is included (Ref 1, pg 26). | D13: each | F13: 15TLS | G13: 2148.33 | H13: 0 | I13: 0 | J13: 0 | K13: 0
B14: Medium Tanks | C14: Medium non- fuel storage tanks. The cleaning, plugging, disassembly and removal of all associated pipeline infrastructure is included (Ref 1, pg 26). | D14: each | F14: 15MTS | G14: 7387.31 | H14: 0 | I14: 0 | J14: 0 | K14: 0
B15: Light Diesel Tanks | C15: Small fuel tanks (10,000-20,000L) (Ref 1, pg 27) | D15: each | F15: 15LiDTS | G15: 3693.66 | H15: 0 | I15: 1 | J15: 0 | K15: 0
B16: Medium Diesel Tanks | C16: Medium fuel tanks (500,000-750,000L). The cleaning, plugging, disassembly and removal of all associated pipeline infrastructure is included (Ref 1, pg 27). Add a tank from the 2017 Work Plan Addendum - Milne Port , 2019 breakdowm | D16: each | F16: 15MDTS | G16: 16166.4 | H16: 0 | I16: 1 | J16: 0 | K16: 0
B17: Large Diesel Tanks | C17: Large fuel tanks (3ML-5ML). The cleaning, plugging, disassembly and removal of all associated pipeline infrastructure is included (Ref 1, pg 27). Add a tank from the 2017 Work Plan Addendum - Milne Port , 2019 breakdowm | D17: each | F17: 15LDTS | G17: 106338.74 | H17: =G17*E17 -> 0 | I17: 1 | J17: =H17*I17 -> 0 | K17: =+H17*(1-I17) -> 0
B18: Largest Diesel Tanks | C18: Largest fuel tanks (>5ML-15ML). The cleaning, plugging, disassembly and removal of all associated pipeline infrastructure is included (Ref 1, pg 27). Add a tank from the 2017 Work Plan Addendum - Milne Port , 2019 breakdowm | D18: each | F18: 15LDTS | G18: 171468 | H18: 0 | I18: 1 | J18: 0 | K18: 0
B19: Misc. Items | C19: On-site disposal. Miscellaneous (minor) items were defined as any item less than 200 kg not captured in other unit costs (Ref 1, pg 42). | D19: each | F19: 15MEIS | G19: 529.83 | H19: 0 | I19: 1 | J19: 0 | K19: 0
B20: REMOVE BUILDINGS - Unit Costs include disassembling, removing or securing all items and load and transport
B21: Modular | C21: 2017 Work Plan Addendum includes 380 person temp hardwall camp , construction offices, lunch rooms and washcars at both Mine Site and Milne Port 2019 breakdowm | D21: m2 | F21: 15RBMS | G21: 59.38 | H21: =G21*E21 -> 0 | I21: 0.89 | J21: =H21*I21 -> 0 | K21: =+H21*(1-I21) -> 0
C22: 2018 Work Plan see table 3-1 | D22: m2 | F22: 15RBMS | G22: 59.38 | H22: 0 | I22: 0.89 | J22: 0 | K22: 0
C23: 2019 estimate (See table 3-1 of 2019 Marginal Estimate) | D23: m2 | E23: 505 | F23: 18RBMS | G23: 50.75 | H23: =G23*E23 -> 25628.75 | I23: 0.89 | J23: =H23*I23 -> 22809.5875 | K23: =+H23*(1-I23) -> 2819.1625
B24: Fold Away Buildings | D24: m2 | F24: 15RBFS | G24: 41.57 | H24: =G24*E24 -> 0 | I24: 1 | J24: 0 | K24: =+H24*(1-I24) -> 0
B25: Soft-Walled | D25: m2 | F25: 15RBSS | G25: 47.51 | H25: 0 | I25: 1 | J25: 0 | K25: 0
B26: ISO Shipping Containers (Shelters, Comm. Facilities) | D26: m2 | F26: 15RBIS | G26: 29.69 | H26: 0 | I26: 1 | J26: 0 | K26: 0
B27: Water and Wastewater Treatment Facilities | C27: Equipment quanties updated to reflect 2017 Work Plan addendum Table 3-6 2 units one at Milne Port and one at Mine Site. | D27: each | F27: 15WWTS | G27: 11035.58 | H27: 0 | I27: 0 | J27: 0 | K27: 0
B28: Power Plant | D28: m2 | F28: brs1h | G28: =IF(ISNA(F28),0,INDEX(IF(UPPER(RIGHT(F28,1))=Low,UnitCostLow, IF(UPPER(RIGHT(F28,1))=High,UnitCostHigh,UnitCostSpecified)),MATCH(UPPER(LEFT(F28,LEN(F28)-1)),CostCode,0))) -> 65 | H28: 0 | J28: 0 | K28: 0
B29: Communication Tower | D29: m2 | F29: brs1h | G29: =IF(ISNA(F29),0,INDEX(IF(UPPER(RIGHT(F29,1))=Low,UnitCostLow, IF(UPPER(RIGHT(F29,1))=High,UnitCostHigh,UnitCostSpecified)),MATCH(UPPER(LEFT(F29,LEN(F29)-1)),CostCode,0))) -> 65 | H29: =G29*E29 -> 0 | J29: =H29*I29 -> 0 | K29: 0
B30: U/G Heating Plant | D30: m2 | F30: =NA() ->  | G30: =IF(ISNA(F30),0,INDEX(IF(UPPER(RIGHT(F30,1))=Low,UnitCostLow, IF(UPPER(RIGHT(F30,1))=High,UnitCostHigh,UnitCostSpecified)),MATCH(UPPER(LEFT(F30,LEN(F30)-1)),CostCode,0))) -> 0 | H30: =G30*E30 -> 0 | J30: =H30*I30 -> 0 | K30: 0
B31: Emulsion Plant | D31: m2 | F31: =NA() ->  | G31: =IF(ISNA(F31),0,INDEX(IF(UPPER(RIGHT(F31,1))=Low,UnitCostLow, IF(UPPER(RIGHT(F31,1))=High,UnitCostHigh,UnitCostSpecified)),MATCH(UPPER(LEFT(F31,LEN(F31)-1)),CostCode,0))) -> 0 | H31: 0 | J31: 0 | K31: 0
B32: AN Storage Facility | D32: m2 | F32: brs1s | G32: 128 | H32: 0 | J32: =H32*I32 -> 0 | K32: 0
B33: Warehouse, Shops and Other | D33: m2 | F33: brs1l | G33: =IF(ISNA(F33),0,INDEX(IF(UPPER(RIGHT(F33,1))=Low,UnitCostLow, IF(UPPER(RIGHT(F33,1))=High,UnitCostHigh,UnitCostSpecified)),MATCH(UPPER(LEFT(F33,LEN(F33)-1)),CostCode,0))) -> 45 | H33: 0 | J33: =H33*I33 -> 0 | K33: 0
B34: Storage Facility at Laydown/Airstrip | D34: m2 | F34: =NA() ->  | G34: =IF(ISNA(F34),0,INDEX(IF(UPPER(RIGHT(F34,1))=Low,UnitCostLow, IF(UPPER(RIGHT(F34,1))=High,UnitCostHigh,UnitCostSpecified)),MATCH(UPPER(LEFT(F34,LEN(F34)-1)),CostCode,0))) -> 0 | H34: 0 | J34: =H34*I34 -> 0 | K34: 0
B35: Fuel tanks | D35: m2 | F35: brs1h | G35: =IF(ISNA(F35),0,INDEX(IF(UPPER(RIGHT(F35,1))=Low,UnitCostLow, IF(UPPER(RIGHT(F35,1))=High,UnitCostHigh,UnitCostSpecified)),MATCH(UPPER(LEFT(F35,LEN(F35)-1)),CostCode,0))) -> 65 | H35: 0 | J35: =H35*I35 -> 0 | K35: 0
B36: Fire Protection pumping station | D36: m | F36: brs1h | G36: =IF(ISNA(F36),0,INDEX(IF(UPPER(RIGHT(F36,1))=Low,UnitCostLow, IF(UPPER(RIGHT(F36,1))=High,UnitCostHigh,UnitCostSpecified)),MATCH(UPPER(LEFT(F36,LEN(F36)-1)),CostCode,0))) -> 65 | H36: 0 | J36: =H36*I36 -> 0 | K36: 0
B37: Freshwater intake | D37: m2 | F37: brs1l | G37: 45 | H37: 0 | J37: 0 | K37: 0
B38: Reclaim pumps | D38: m2 | F38: =NA() ->  | G38: 0 | H38: 0 | J38: 0 | K38: 0
B39: Outfall & Diffuser | D39: m2 | F39: =NA() ->  | G39: 0 | H39: 0 | J39: 0 | K39: 0
B40: Airstrip lighting, navigation, electrician | D40: mandays | F40: =NA() ->  | G40: =IF(ISNA(F40),0,INDEX(IF(UPPER(RIGHT(F40,1))=Low,UnitCostLow, IF(UPPER(RIGHT(F40,1))=High,UnitCostHigh,UnitCostSpecified)),MATCH(UPPER(LEFT(F40,LEN(F40)-1)),CostCode,0))) -> 0 | H40: 0 | J40: 0 | K40: 0
B41: Airstrip lighting, navigation, mechanical | D41: mandays | F41: =NA() ->  | G41: =IF(ISNA(F41),0,INDEX(IF(UPPER(RIGHT(F41,1))=Low,UnitCostLow, IF(UPPER(RIGHT(F41,1))=High,UnitCostHigh,UnitCostSpecified)),MATCH(UPPER(LEFT(F41,LEN(F41)-1)),CostCode,0))) -> 0 | H41: 0 | J41: 0 | K41: 0
B42: Break foundation slabs | D42: m2 | F42: brcs | G42: =IF(ISNA(F42),0,INDEX(IF(UPPER(RIGHT(F42,1))=Low,UnitCostLow, IF(UPPER(RIGHT(F42,1))=High,UnitCostHigh,UnitCostSpecified)),MATCH(UPPER(LEFT(F42,LEN(F42)-1)),CostCode,0))) -> 6 | H42: =G42*E42 -> 0 | J42: =H42*I42 -> 0 | K42: 0
B43: Consolidate & dump boneyard debris | D43: allow | F43: brs1l | G43: 45 | H43: 0 | J43: 0 | K43: 0
B44: Worker Dry | D44: m2 | F44: brs1l | G44: 45 | H44: =G44*E44 -> 0 | J44: =H44*I44 -> 0 | K44: 0
B45: WTP & Fresh Water Pumping Station | D45: m2 | F45: brs1l | G45: 45 | H45: =G45*E45 -> 0 | J45: =H45*I45 -> 0 | K45: 0
B46: WRSF Pond and Attenuation Pond Pumphouses | D46: m2 | F46: brs1l | G46: 45 | H46: =G46*E46 -> 0 | J46: =H46*I46 -> 0 | K46: 0
B47: Water Intake | D47: m2 | F47: brcs | G47: 6 | H47: =G47*E47 -> 0 | J47: =H47*I47 -> 0 | K47: 0
B48: Other | D48: m2 | F48: bdcs | G48: 12.63 | H48: 0 | J48: 0 | K48: 0
B49: REMOVE CONTAMINATED BUILDINGS - Unit Costs include disassembling, removing or securing all items, decontamination and load and transport
B50: Modular | C50: Trailers and pre-fabricated buildings. (Ref 1, pg 29). | D50: m2 | F50: 15RCBMS | G50: 143.42 | H50: =G50*E50 -> 0 | I50: 0.85 | J50: =H50*I50 -> 0 | K50: =+H50*(1-I50) -> 0
B51: Fold Away Buildings | D51: m2 | F51: 15RCBFS | G51: 142.41 | H51: 0 | I51: 1 | J51: 0 | K51: 0
B52: Soft-Walled | C52: 2017 Work Plan Addendum Maintenance Garage at Milne Port ,2019 breakdowm | D52: m2 | F52: 15RCBSS | G52: 148.35 | H52: 0 | I52: 1 | J52: 0 | K52: 0
B53: ISO Shipping Containers (Shelters, Comm. Facilities) | D53: m2 | F53: 15RCBIS | G53: 143.42 | H53: 0 | I53: 1 | J53: 0 | K53: 0
B54: Temporary Construction Warehouse and Office Allowance | D54: m2 | F54: 15RCBTS | G54: 25000 | H54: 0 | I54: 1 | J54: 0 | K54: 0
B55: BREAK FOUNDATIONS
B56: Precast Foundations | C56: Includes load and transport of precast concrete foundations (Ref 1, pg 34). | D56: m2 | F56: 15FCS | G56: 38.47 | H56: =G56*E56 -> 0 | I56: 1 | J56: =H56*I56 -> 0 | K56: =+H56*(1-I56) -> 0
B57: Slab on Grade | C57: Includes perforating the concrete slabs on grade 2017 Work Plan Addendum for pre-cast conrete foundation and Maintenance Garages at Milne Site,2019 breakdowm | D57: m2 | F57: 15FSS | G57: 33.11 | H57: 0 | I57: 1 | J57: 0 | K57: 0
B58: Timber Cribbing | C58: Includes disassemby load and transport of the timber cribbing | D58: m2 | F58: 15TCS | G58: 20.78 | H58: 0 | I58: 1 | J58: 0 | K58: 0
B59: GRADE AND CONTOUR, GENERAL - Unit costs are inclusive of backfill, compaction and sacrfication with a dozer
B60: Grade and contour laydown areas | C60: Laydown LP2 | D60: m2 | E60: 30000 | F60: 18GCS | G60: 1.493420346 | H60: =G60*E60 -> 44802.61037 | I60: 1 | J60: =H60*I60 -> 44802.61037 | K60: =+H60*(1-I60) -> 0
C61: Laydown LP1 | D61: m2 | E61: -13000 | F61: 18GCS | G61: 1.493420346 | H61: -19414.4645 | I61: 1 | J61: -19414.4645 | K61: 0
C62: 2018 Work Plan See Table 3-3 in Marginal Estimate | D62: m2 | F62: 15GCS | G62: 1.81 | H62: 0 | I62: 1 | J62: 0 | K62: 0
C63: 2017 actual work not previously allocated (W1,W3,W6, W7, W10B, W11, W14 AND W15) see table 2-2 of 2018 work plan | D63: m2 | F63: 15GCS | G63: 1.81 | H63: 0 | I63: 1 | J63: 0 | K63: 0
D64: m2 | F64: 15GCS | G64: 1.81 | H64: =G64*E64 -> 0 | I64: 1 | J64: =H64*I64 -> 0 | K64: =+H64*(1-I64) -> 0
B65: Grade and contour building footprints | D65: m2 | F65: 15GCS | G65: 1.81 | H65: 0 | I65: 1 | J65: 0 | K65: 0
B66: Grade and contour infrastructure pads | D66: m2 | F66: 15GCS | G66: 1.81 | H66: 0 | I66: 1 | J66: 0 | K66: 0
B67: Road | D67: m2 | F67: 15GCS | G67: 1.81 | H67: 0 | I67: 1 | J67: 0 | K67: 0
B68: Stockpiles | C68: Ore Stockpile expansion 2019 | D68: m2 | E68: 140000 | F68: 18GCS | G68: 1.493420346 | H68: 209078.8484 | I68: 1 | J68: 209078.8484 | K68: 0
B69: U/G Heating Plant | D69: m2 | F69: 15GCS | G69: 1.81 | H69: 0 | I69: 1 | J69: 0 | K69: 0
B70: Emulsion Plant | D70: m2 | F70: 15GCS | G70: 1.81 | H70: 0 | I70: 1 | J70: 0 | K70: 0
B71: Warehouse, Shops and Other | D71: m2 | F71: 15GCS | G71: 1.81 | H71: 0 | I71: 1 | J71: 0 | K71: 0
B72: Fuel tanks on site for bulk fuel storage | D72: m2 | F72: 15GCS | G72: 1.81 | H72: 0 | I72: 1 | J72: 0 | K72: 0
B73: Fire Protection pumping station | D73: m2 | F73: 15GCS | G73: 1.81 | H73: 0 | I73: 1 | J73: 0 | K73: 0
B74: Worker Dry | D74: m2 | F74: 15GCS | G74: 1.81 | H74: 0 | I74: 1 | J74: 0 | K74: 0
B75: WTP & Fresh Water Pumping Station | D75: m2 | F75: 15GCS | G75: 1.81 | H75: 0 | I75: 1 | J75: 0 | K75: 0
B76: WRSF Pond and Attenuation Pond Pumphouses | D76: m2 | F76: 15GCS | G76: 1.81 | H76: 0 | I76: 1 | J76: 0 | K76: 0
B77: Other | D77: m2 | F77: 15GCS | G77: 1.81 | H77: 0 | I77: 1 | J77: 0 | K77: 0
C78: 2019 ajusted | D78: m2 | F78: 15GCS | G78: 1.81 | H78: 0 | I78: 1 | J78: 0 | K78: 0
B79: GRADE AND CONTOUR, WITH LINER - Unit costs include liner removal and disposal, backfill, compaction and sacrfication with a dozer
B80: Ore Stockpile Sedimentation | D80: m2 | E80: 15000 | F80: 18GCLS | G80: 4.99 | H80: =G80*E80 -> 74850 | I80: 1 | J80: =H80*I80 -> 74850 | K80: =+H80*(1-I80) -> 0
B81: Ore Stockpile Sedimentation Pond 2a | D81: m2 | E81: 4400 | F81: 18GCLS | G81: 4.99 | H81: =G81*E81 -> 21956 | I81: 1 | J81: =H81*I81 -> 21956 | K81: =+H81*(1-I81) -> 0
B82: contaminated dump | D82: m2 | E82: 2700 | F82: 18GCLS | G82: 4.99 | H82: 13473 | I82: 1 | J82: 13473 | K82: 0
B83: New hazardous waste berm | C83: 2019 breakdown | D83: m2 | E83: 360 | F83: 18GCLS | G83: 4.99 | H83: 1796.4 | I83: 1 | J83: 1796.4 | K83: 0
B84: Landfarm | D84: m2 | F84: 15GCLS | G84: 5.31 | H84: 0 | I84: 1 | J84: 0 | K84: 0
B85: LANDFILL FOR DEMOLITION WASTE
B86: Place fill material over demolition waste | C86: 2017 Work Plan Addendum | D86: m2 | F86: 15PFS | G86: 44.37 | H86: =G86*E86 -> 0 | I86: 1 | J86: =H86*I86 -> 0 | K86: =+H86*(1-I86) -> 0
B87: SPECIALIZED ITEMS
B88: Electrical Cable | C88: Includes the removal, loading, hauling and disposal of cable (Ref 1, pg 41). 2017 Work Plan add 3500 m of cable. | D88: m | F88: 15ECS | G88: 26.49 | H88: =G88*E88 -> 0 | I88: 1 | J88: =H88*I88 -> 0 | K88: =+H88*(1-I88) -> 0
B89: Incinerator | C89: Equipment quanties updated to reflect 2017 Work Plan addendum Table 3-6 2 units one at Milne Port and one at Mine Site. | D89: each | F89: 15FIS | G89: 9975.93 | H89: 0 | I89: 1 | J89: 0 | K89: 0
B90: Potable Water | C90: Equipment quanties updated to reflect 2017 Work Plan addendum Table 3-6 2 units one at Milne Port and one at Mine Site. | D90: each | F90: 15PWS | G90: 9975.93 | H90: 0 | J90: 0 | K90: 0
G91: Total | H91: =SUM(H5:H90)+0.0001 -> 372171.1444 | J91: =SUM(J5:J90) -> 369351.9818 | K91: =SUM(K5:K90) -> 2819.1625
G92: % of Total | J92: =J91/H91 -> 0.9924250909 | K92: =K91/H91 -> 0.007574908863
B94: Note:

Sheet Bldgs & Equip TR
A1: 1 | B1: Building / Equip Name: | C1: Tote Road | G1: Bldg / Equip #: | H1: 3
B3: ACTIVITY/MATERIAL | C3: Notes | D3: Units | E3: Quantity | F3: Cost Code | G3: Unit Cost | H3: Cost | I3: % Land | J3: Land Cost | K3: Water Cost
B4: DISPOSE MOBILE EQUIPMENT - Unit Costs includes disassembly and decontamination required for on-site disposal, load and transport to landfill
B5: Light Mobile Equipment | D5: each | F5: 15MOLS | G5: 941.09 | H5: =G5*E5 -> 0 | I5: 0.95 | J5: =H5*I5 -> 0 | K5: =+H5*(1-I5) -> 0
B6: Medium Mobile Equipment | D6: each | F6: 15MOMS | G6: 1494.13 | H6: =G6*E6 -> 0 | I6: 0.98 | J6: =H6*I6 -> 0 | K6: =+H6*(1-I6) -> 0
B7: Heavy Mobile Equipment | D7: each | F7: 15MOHS | G7: 2616.87 | H7: =G7*E7 -> 0 | I7: 0.98 | J7: 0 | K7: =+H7*(1-I7) -> 0
B8: DISPOSE MECHANICAL EQUIPMENT - Unit Costs includes disassembly and decontamination required for on-site disposal, load and transport to landfill
B9: Light mechanical equipment - Decontaminate and dispose on-site | C9: Equipment quanties updated to reflect BIMC Nov. 24 EBS revisions.Light equipment includes pumps, fuel dispenser, laboratory equipment, and sample bins (Ref 1, pg 23). 2017 Work Plan add 20 units. | D9: each | F9: 15LMES | G9: 1980.8 | H9: =G9*E9 -> 0 | I9: 0.98 | J9: =H9*I9 -> 0 | K9: =+H9*(1-I9) -> 0
B10: Medium mechanical equipment - Decontaminate and dispose on-site | C10: Equipment quanties updated to reflect BIMC Nov. 24 EBS revisions. Medium equipment includes aerodrome equipment, generators, shop / maintenance equipment, screens, and chutes (Ref 1, pg 23). 2017 Work Plan add 2 units. | D10: each | F10: 15MMES | G10: 4261.34 | H10: 0 | I10: 1 | J10: 0 | K10: 0
B11: Heavy mechanical equipment - Decontaminate and dispose on-site | C11: Equipment quanties updated to reflect BIMC Nov. 24 EBS revisions. Heavy equipment includes crusher, feeder, power plant generators, large screens, conveyors, and stackers (Ref 2, pg 23). 2017 Work Plan add 1 unit (Truck Wash system). | D11: each | F11: 15MEHS | G11: 41205.45 | H11: 0 | I11: 1 | J11: 0 | K11: 0
B12: Light Tanks | C12: Light non- fuel storage tanks. The cleaning, plugging, disassembly and removal of all associated pipeline infrastructure is included (Ref 1, pg 26). | D12: each | F12: 15TLS | G12: 2148.33 | H12: 0 | I12: 0 | J12: 0 | K12: 0
B13: Medium Tanks | C13: Medium non- fuel storage tanks. The cleaning, plugging, disassembly and removal of all associated pipeline infrastructure is included (Ref 1, pg 26). | D13: each | F13: 15MTS | G13: 7387.31 | H13: 0 | I13: 0 | J13: 0 | K13: 0
B14: Light Diesel Tanks | C14: Small fuel tanks (10,000-20,000L) (Ref 1, pg 27) | D14: each | F14: 15LiDTS | G14: 3693.66 | H14: 0 | I14: 1 | J14: 0 | K14: 0
B15: Medium Diesel Tanks | C15: Medium fuel tanks (500,000-750,000L). The cleaning, plugging, disassembly and removal of all associated pipeline infrastructure is included (Ref 1, pg 27). | D15: each | F15: 15MDTS | G15: 16166.4 | H15: 0 | I15: 1 | J15: 0 | K15: 0
B16: Misc. Items | C16: On-site disposal. Miscellaneous (minor) items were defined as any item less than 200 kg not captured in other unit costs (Ref 1, pg 42). | D16: Lot | F16: 15MEIS | G16: 529.83 | H16: 0 | I16: 1 | J16: 0 | K16: 0
B17: Fuelk tanks - On-site disposal of medium mobile fuel tanks (3,000 to 500,000 L) | C17: On-site disposal of medium-mobile fuel tanks (3,000 to 500,000L). | D17: each | F17: 15MMFTS | G17: 10481.05 | H17: 0 | I17: 1 | J17: 0 | K17: 0
B18: REMOVE BUILDINGS - Unit Costs include disassembling, removing or securing all items and load and transport
B19: Modular | D19: m2 | F19: 15RBMS | G19: 59.38 | H19: =G19*E19 -> 0 | I19: 0.89 | J19: 0 | K19: =+H19*(1-I19) -> 0
B20: Fold Away Buildings | D20: m2 | F20: 15RBFS | G20: 41.57 | H20: 0 | I20: 1 | J20: 0 | K20: 0
B21: ISO Shipping Containers (Shelters, Comm. Facilities) | C21: 2017 Actual work not previously allocated (see Table 2-3 of 2018 Marginal cost) | D21: m2 | F21: 15RBIS | G21: 29.69 | H21: 0 | I21: 1 | J21: 0 | K21: 0
B22: Water and Wastewater Treatment Facilities | D22: each | F22: 15WWTS | G22: 11035.58 | H22: 0 | I22: 0 | J22: 0 | K22: 0
B23: Power Plant | D23: m2 | F23: brs1h | G23: =IF(ISNA(F23),0,INDEX(IF(UPPER(RIGHT(F23,1))=Low,UnitCostLow, IF(UPPER(RIGHT(F23,1))=High,UnitCostHigh,UnitCostSpecified)),MATCH(UPPER(LEFT(F23,LEN(F23)-1)),CostCode,0))) -> 65 | H23: 0 | J23: 0 | K23: 0
B24: Communication Tower | D24: m2 | F24: brs1h | G24: =IF(ISNA(F24),0,INDEX(IF(UPPER(RIGHT(F24,1))=Low,UnitCostLow, IF(UPPER(RIGHT(F24,1))=High,UnitCostHigh,UnitCostSpecified)),MATCH(UPPER(LEFT(F24,LEN(F24)-1)),CostCode,0))) -> 65 | H24: =G24*E24 -> 0 | J24: =H24*I24 -> 0 | K24: 0
B25: U/G Heating Plant | D25: m2 | F25: =NA() ->  | G25: =IF(ISNA(F25),0,INDEX(IF(UPPER(RIGHT(F25,1))=Low,UnitCostLow, IF(UPPER(RIGHT(F25,1))=High,UnitCostHigh,UnitCostSpecified)),MATCH(UPPER(LEFT(F25,LEN(F25)-1)),CostCode,0))) -> 0 | H25: =G25*E25 -> 0 | J25: =H25*I25 -> 0 | K25: 0
B26: Emulsion Plant | D26: m2 | F26: =NA() ->  | G26: =IF(ISNA(F26),0,INDEX(IF(UPPER(RIGHT(F26,1))=Low,UnitCostLow, IF(UPPER(RIGHT(F26,1))=High,UnitCostHigh,UnitCostSpecified)),MATCH(UPPER(LEFT(F26,LEN(F26)-1)),CostCode,0))) -> 0 | H26: 0 | J26: 0 | K26: 0
B27: AN Storage Facility | D27: m2 | F27: brs1s | G27: 128 | H27: 0 | J27: =H27*I27 -> 0 | K27: 0
B28: Warehouse, Shops and Other | D28: m2 | F28: brs1l | G28: =IF(ISNA(F28),0,INDEX(IF(UPPER(RIGHT(F28,1))=Low,UnitCostLow, IF(UPPER(RIGHT(F28,1))=High,UnitCostHigh,UnitCostSpecified)),MATCH(UPPER(LEFT(F28,LEN(F28)-1)),CostCode,0))) -> 45 | H28: 0 | J28: =H28*I28 -> 0 | K28: 0
B29: Storage Facility at Laydown/Airstrip | D29: m2 | F29: =NA() ->  | G29: =IF(ISNA(F29),0,INDEX(IF(UPPER(RIGHT(F29,1))=Low,UnitCostLow, IF(UPPER(RIGHT(F29,1))=High,UnitCostHigh,UnitCostSpecified)),MATCH(UPPER(LEFT(F29,LEN(F29)-1)),CostCode,0))) -> 0 | H29: 0 | J29: =H29*I29 -> 0 | K29: 0
B30: Fuel tanks | D30: m2 | F30: brs1h | G30: =IF(ISNA(F30),0,INDEX(IF(UPPER(RIGHT(F30,1))=Low,UnitCostLow, IF(UPPER(RIGHT(F30,1))=High,UnitCostHigh,UnitCostSpecified)),MATCH(UPPER(LEFT(F30,LEN(F30)-1)),CostCode,0))) -> 65 | H30: 0 | J30: =H30*I30 -> 0 | K30: 0
B31: Fire Protection pumping station | D31: m | F31: brs1h | G31: =IF(ISNA(F31),0,INDEX(IF(UPPER(RIGHT(F31,1))=Low,UnitCostLow, IF(UPPER(RIGHT(F31,1))=High,UnitCostHigh,UnitCostSpecified)),MATCH(UPPER(LEFT(F31,LEN(F31)-1)),CostCode,0))) -> 65 | H31: 0 | J31: =H31*I31 -> 0 | K31: 0
B32: Freshwater intake | D32: m2 | F32: brs1l | G32: 45 | H32: 0 | J32: 0 | K32: 0
B33: Reclaim pumps | D33: m2 | F33: =NA() ->  | G33: 0 | H33: 0 | J33: 0 | K33: 0
B34: Outfall & Diffuser | D34: m2 | F34: =NA() ->  | G34: 0 | H34: 0 | J34: 0 | K34: 0
B35: Airstrip lighting, navigation, electrician | D35: mandays | F35: =NA() ->  | G35: =IF(ISNA(F35),0,INDEX(IF(UPPER(RIGHT(F35,1))=Low,UnitCostLow, IF(UPPER(RIGHT(F35,1))=High,UnitCostHigh,UnitCostSpecified)),MATCH(UPPER(LEFT(F35,LEN(F35)-1)),CostCode,0))) -> 0 | H35: 0 | J35: 0 | K35: 0
B36: Airstrip lighting, navigation, mechanical | D36: mandays | F36: =NA() ->  | G36: =IF(ISNA(F36),0,INDEX(IF(UPPER(RIGHT(F36,1))=Low,UnitCostLow, IF(UPPER(RIGHT(F36,1))=High,UnitCostHigh,UnitCostSpecified)),MATCH(UPPER(LEFT(F36,LEN(F36)-1)),CostCode,0))) -> 0 | H36: 0 | J36: 0 | K36: 0
B37: Break foundation slabs | D37: m2 | F37: brcs | G37: =IF(ISNA(F37),0,INDEX(IF(UPPER(RIGHT(F37,1))=Low,UnitCostLow, IF(UPPER(RIGHT(F37,1))=High,UnitCostHigh,UnitCostSpecified)),MATCH(UPPER(LEFT(F37,LEN(F37)-1)),CostCode,0))) -> 6 | H37: =G37*E37 -> 0 | J37: =H37*I37 -> 0 | K37: 0
B38: Consolidate & dump boneyard debris | D38: allow | F38: brs1l | G38: 45 | H38: 0 | J38: 0 | K38: 0
B39: Worker Dry | D39: m2 | F39: brs1l | G39: 45 | H39: =G39*E39 -> 0 | J39: =H39*I39 -> 0 | K39: 0
B40: WTP & Fresh Water Pumping Station | D40: m2 | F40: brs1l | G40: 45 | H40: =G40*E40 -> 0 | J40: =H40*I40 -> 0 | K40: 0
B41: WRSF Pond and Attenuation Pond Pumphouses | D41: m2 | F41: brs1l | G41: 45 | H41: =G41*E41 -> 0 | J41: =H41*I41 -> 0 | K41: 0
B42: Water Intake | D42: m2 | F42: brcs | G42: 6 | H42: =G42*E42 -> 0 | J42: =H42*I42 -> 0 | K42: 0
B43: Other | D43: m2 | F43: bdcs | G43: 12.63 | H43: 0 | J43: 0 | K43: 0
B44: REMOVE CONTAMINATED BUILDINGS - Unit Costs include disassembling, removing or securing all items, decontamination and load and transport
B45: Modular | D45: m2 | F45: 15RCBMS | G45: 143.42 | H45: =G45*E45 -> 0 | I45: 1 | J45: =H45*I45 -> 0 | K45: =+H45*(1-I45) -> 0
B46: Fold Away Buildings | C46: Mobile Maintenance Depot (100% on Crown Land) | D46: m2 | F46: 15RCBFS | G46: 142.41 | H46: 0 | I46: 1 | J46: 0 | K46: 0
B47: ISO Shipping Containers (Shelters, Comm. Facilities) | D47: m2 | F47: 15RCBIS | G47: 143.42 | H47: 0 | I47: 1 | J47: 0 | K47: 0
B48: Temporary Construction Warehouse and Office Allowance | D48: m2 | F48: 15RCBTS | G48: 25000 | H48: 0 | I48: 1 | J48: 0 | K48: 0
B49: BREAK FOUNDATIONS
B50: Slab on Grade | C50: Mobile Maintenance Depot (100% on Crown Land) | D50: m2 | F50: 15FSS | G50: 33.11 | H50: =G50*E50 -> 0 | I50: 1 | J50: =H50*I50 -> 0 | K50: =+H50*(1-I50) -> 0
B51: Timber Cribbing | C51: Includes disassemby load and transport of the timber cribbing. Assume 7% on Crown Land | D51: m2 | F51: 15TCS | G51: 20.78 | H51: 0 | I51: 1 | J51: 0 | K51: 0
B53: GRADE AND CONTOUR, GENERAL - Unit costs are inclusive of backfill, compaction and sacrfication with a dozer
B54: Culvert Removal | D54: m | E54: 80 | G54: 50 | H54: =G54*E54 -> 4000 | I54: 1 | J54: 4000 | K54: =+H54*(1-I54) -> 0
B55: Grade and contour laydown areas | C55: Laydown 2, 4, 7, 10, 13 | D55: m2 | E55: 192500 | F55: 18GCS | G55: 1.493420346 | H55: 287483.4166 | I55: 1 | J55: 287483.4166 | K55: 0
B56: Grade and contour laydown areas | C56: Laydown 9 | D56: m2 | E56: 92500 | F56: 18GCS | G56: 1.493420346 | H56: 138141.382 | I56: 1 | J56: =H56*I56 -> 138141.382 | K56: =+H56*(1-I56) -> 0
B57: Grade and contour building footprints | C57: Assume 7% on Crown Land | D57: m2 | F57: 15GCS | G57: 1.81 | H57: 0 | I57: 1 | J57: 0 | K57: 0
B58: Grade and contour infrastructure pads | C58: Assume 7% on Crown Land | D58: m2 | F58: 15GCS | G58: 1.81 | H58: 0 | I58: 1 | J58: 0 | K58: 0
B59: Aerodome Facilities | D59: m2 | F59: 15GCS | G59: 1.81 | H59: 0 | I59: 1 | J59: 0 | K59: 0
B60: Road | C60: Assume 7% on Crown Land | D60: m2 | F60: 15GCS | G60: 1.81 | H60: 0 | I60: 1 | J60: 0 | K60: 0
B61: Stockpiles | D61: m2 | F61: 15GCS | G61: 1.81 | H61: =G61*E61 -> 0 | I61: 1 | J61: =H61*I61 -> 0 | K61: =+H61*(1-I61) -> 0
B62: Remove Liner | C62: Mobile Maintenance Depot (100% on Crown Land) | D62: m2 | G62: 3.5 | H62: =G62*E62 -> 0 | I62: 1 | J62: =H62*I62 -> 0 | K62: =+H62*(1-I62) -> 0
B63: Grade and Contour Significant Disturbed Areas | D63: m2 | F63: 15GCDS | G63: 2.72 | H63: =G63*E63 -> 0 | I63: 1 | J63: =H63*I63 -> 0 | K63: =+H63*(1-I63) -> 0
B64: U/G Heating Plant | D64: m2 | F64: =NA() ->  | G64: =IF(ISNA(F64),0,INDEX(IF(UPPER(RIGHT(F64,1))=Low,UnitCostLow, IF(UPPER(RIGHT(F64,1))=High,UnitCostHigh,UnitCostSpecified)),MATCH(UPPER(LEFT(F64,LEN(F64)-1)),CostCode,0))) -> 0 | H64: 0 | J64: 0 | K64: 0
B65: Emulsion Plant | D65: m2 | F65: =NA() ->  | G65: =IF(ISNA(F65),0,INDEX(IF(UPPER(RIGHT(F65,1))=Low,UnitCostLow, IF(UPPER(RIGHT(F65,1))=High,UnitCostHigh,UnitCostSpecified)),MATCH(UPPER(LEFT(F65,LEN(F65)-1)),CostCode,0))) -> 0 | H65: 0 | J65: 0 | K65: 0
B66: Warehouse, Shops and Other | D66: m2 | F66: AE | G66: 8.47 | H66: 0 | J66: 0 | K66: 0
B67: Fuel tanks on site for bulk fuel storage | D67: m2 | F67: AE | G67: 8.47 | H67: 0 | J67: 0 | K67: 0
B68: Fire Protection pumping station | D68: m2 | F68: AE | G68: 8.47 | H68: 0 | J68: 0 | K68: 0
B69: Worker Dry | D69: m2 | F69: AE | G69: 8.47 | H69: 0 | J69: 0 | K69: 0
B70: WTP & Fresh Water Pumping Station | D70: m2 | F70: AE | G70: 8.47 | H70: 0 | J70: 0 | K70: 0
B71: WRSF Pond and Attenuation Pond Pumphouses | D71: m2 | F71: AE | G71: 8.47 | H71: 0 | J71: 0 | K71: 0
B72: Other | D72: ha | F72: scfyl | G72: =IF(ISNA(F72),0,INDEX(IF(UPPER(RIGHT(F72,1))=Low,UnitCostLow, IF(UPPER(RIGHT(F72,1))=High,UnitCostHigh,UnitCostSpecified)),MATCH(UPPER(LEFT(F72,LEN(F72)-1)),CostCode,0))) -> 4300 | H72: 0 | J72: 0 | K72: 0
B73: GRADE AND CONTOUR, WITH LINER - Unit costs include liner removal and disposal, backfill, compaction and sacrfication with a dozer
B74: Waste Disposal | D74: m2 | F74: 15GCLS | G74: 5.31 | H74: =G74*E74 -> 0 | I74: 1 | J74: 0 | K74: 0
B75: Fuel tank farm dyke | D75: m2 | F75: 15GCLS | G75: 5.31 | H75: 0 | I75: 1 | J75: =H75*I75 -> 0 | K75: 0
B76: Hazardous waste berm | D76: m2 | F76: 15GCLS | G76: 5.31 | H76: 0 | I76: 1 | J76: 0 | K76: 0
B77: Bulk fuel storage facility (Bladder Farm) | D77: m2 | F77: 15GCLS | G77: 5.31 | H77: 0 | I77: 1 | J77: 0 | K77: 0
B78: Other | D78: m2 | F78: 15GCLS | G78: 5.31 | H78: 0 | I78: 1 | J78: 0 | K78: 0
B79: LANDFILL FOR DEMOLITION WASTE
D80: m2 | F80: 15PFS | G80: 44.37 | H80: =G80*E80 -> 0 | I80: 1 | J80: =H80*I80 -> 0 | K80: =+H80*(1-I80) -> 0
B81: RECLAIM ROADS
B82: Remove bridges (IOL) | C82: The unit cost is inclusive of the demolition and removal of a bridge. Assumed not contaminated (Ref 1, pg 36). | D82: each | F82: 15BRS | G82: 201838.77 | H82: =G82*E82 -> 0 | I82: 0 | J82: =H82*I82 -> 0 | K82: =+H82*(1-I82) -> 0
B83: Remove bridges (CROWN) | C83: The unit cost is inclusive of the demolition and removal of a bridge. Assumed not contaminated (Ref 1, pg 36). | D83: each | F83: 15BRS | G83: 201838.77 | H83: =G83*E83 -> 0 | I83: 0 | J83: =H83*I83 -> 0 | K83: =+H83*(1-I83) -> 0
B84: Remove Culverts (IOL) | C84: The unit cost is inclusive of the travel time to and from the culvert location, the earthwork necessary expose a culvert and the removal of the culvert material (Ref 1, pg 21). | D84: each | F84: 15CRS | G84: 1094.48 | H84: 0 | I84: 0 | J84: 0 | K84: 0
B85: Remove Culverts (CROWN) | C85: The unit cost is inclusive of the travel time to and from the culvert location, the earthwork necessary expose a culvert and the removal of the culvert material (Ref 1, pg 21). | D85: each | F85: 15CRS | G85: 1094.48 | H85: 0 | I85: 0 | J85: 0 | K85: 0
B86: Scarifying and install water breaks | D86: ha | G86: 0 | H86: =G86*E86 -> 0 | J86: =H86*I86 -> 0 | K86: =+H86*(1-I86) -> 0
B87: Scarifying Airstrip | D87: ha | G87: 0 | H87: 0 | J87: 0 | K87: 0
B88: Scarifying Laydown Areas | D88: ha | G88: 0 | H88: 0 | J88: 0 | K88: 0
B89: vegeation | D89: ha | G89: 0 | H89: 0 | J89: 0 | K89: 0
B90: Other | D90: ha | G90: 0 | H90: 0 | J90: 0 | K90: 0
B91: SPECIALIZED ITEMS
B92: Consumables | D92: each | G92: 0 | H92: =G92*E92 -> 0 | J92: =H92*I92 -> 0 | K92: =+H92*(1-I92) -> 0
B93: Electrical Cable | D93: m | F93: 15ECS | G93: 26.49 | H93: =G93*E93 -> 0 | J93: =H93*I93 -> 0 | K93: =+H93*(1-I93) -> 0
B94: Incinerator | D94: each | F94: 15FIS | G94: 9975.93 | H94: 0 | J94: 0 | K94: 0
B95: Potable Water | D95: each | F95: 15PWS | G95: 9975.93 | H95: 0 | J95: 0 | K95: 0
G96: Total | H96: =SUM(H5:H95)+0.0001 -> 429624.7986 | J96: =SUM(J5:J95) -> 429624.7985 | K96: =SUM(K5:K95) -> 0
G97: % of Total | J97: =J96/H96 -> 0.9999999998 | K97: =K96/H96 -> 0
B99: Note:

Sheet Water Management
A1: 1 | B1: Capital Expenditures and Short Term Water Treatment identified in 'Instructions' worksheet
B3: ACTIVITY/MATERIAL | C3: Notes | D3: Units | E3: Quantity | F3: Cost Code | G3: Unit Cost | H3: Cost
B4: BREACH DYKE EMBANKMENT
B5: Remove fill | D5: m3 | F5: sc3l | G5: =IF(ISNA(F5),0,INDEX(IF(UPPER(RIGHT(F5,1))=Low,UnitCostLow, IF(UPPER(RIGHT(F5,1))=High,UnitCostHigh,UnitCostSpecified)),MATCH(UPPER(LEFT(F5,LEN(F5)-1)),CostCode,0))) -> 8.9 | H5: =G5*E5 -> 0
B6: Contour water intake area | D6: m3 | F6: =NA() ->  | G6: =IF(ISNA(F6),0,INDEX(IF(UPPER(RIGHT(F6,1))=Low,UnitCostLow, IF(UPPER(RIGHT(F6,1))=High,UnitCostHigh,UnitCostSpecified)),MATCH(UPPER(LEFT(F6,LEN(F6)-1)),CostCode,0))) -> 0 | H6: =G6*E6 -> 0
B7: STABILIZE SEDIMENT PONDS/WATER MANAGEMENT PONDS
B8: Place soil cover | D8: m3 | F8: =NA() ->  | G8: =IF(ISNA(F8),0,INDEX(IF(UPPER(RIGHT(F8,1))=Low,UnitCostLow, IF(UPPER(RIGHT(F8,1))=High,UnitCostHigh,UnitCostSpecified)),MATCH(UPPER(LEFT(F8,LEN(F8)-1)),CostCode,0))) -> 0 | H8: =G8*E8 -> 0
B9: Doze & spread excavated material | D9: m3 | F9: =NA() ->  | G9: =IF(ISNA(F9),0,INDEX(IF(UPPER(RIGHT(F9,1))=Low,UnitCostLow, IF(UPPER(RIGHT(F9,1))=High,UnitCostHigh,UnitCostSpecified)),MATCH(UPPER(LEFT(F9,LEN(F9)-1)),CostCode,0))) -> 0 | H9: =G9*E9 -> 0
B10: Vegetate spread material | D10: ha | F10: =NA() ->  | G10: =IF(ISNA(F10),0,INDEX(IF(UPPER(RIGHT(F10,1))=Low,UnitCostLow, IF(UPPER(RIGHT(F10,1))=High,UnitCostHigh,UnitCostSpecified)),MATCH(UPPER(LEFT(F10,LEN(F10)-1)),CostCode,0))) -> 0 | H10: =G10*E10 -> 0
B11: Rip rap in channel base | D11: each | F11: =NA() ->  | G11: =IF(ISNA(F11),0,INDEX(IF(UPPER(RIGHT(F11,1))=Low,UnitCostLow, IF(UPPER(RIGHT(F11,1))=High,UnitCostHigh,UnitCostSpecified)),MATCH(UPPER(LEFT(F11,LEN(F11)-1)),CostCode,0))) -> 0 | H11: =G11*E11 -> 0
B12: Grade and Contour with liner | C12: include in grade and re-contour | D12: m2 | F12: 15GCLS | G12: 5.31 | H12: =G12*E12 -> 0
B13: REDIRECT RUNOFF/CONSTRUCT DIVERSION DITCHES
B14: Excavate ditches -soil | D14: m3 | F14: sc3l | G14: =IF(ISNA(F14),0,INDEX(IF(UPPER(RIGHT(F14,1))=Low,UnitCostLow, IF(UPPER(RIGHT(F14,1))=High,UnitCostHigh,UnitCostSpecified)),MATCH(UPPER(LEFT(F14,LEN(F14)-1)),CostCode,0))) -> 8.9 | H14: =G14*E14 -> 0
B15: Excavate ditches -rock | D15: m3 | F15: =NA() ->  | G15: =IF(ISNA(F15),0,INDEX(IF(UPPER(RIGHT(F15,1))=Low,UnitCostLow, IF(UPPER(RIGHT(F15,1))=High,UnitCostHigh,UnitCostSpecified)),MATCH(UPPER(LEFT(F15,LEN(F15)-1)),CostCode,0))) -> 0 | H15: =G15*E15 -> 0
B16: Stabilize side slopes | D16: m3 | F16: =NA() ->  | G16: =IF(ISNA(F16),0,INDEX(IF(UPPER(RIGHT(F16,1))=Low,UnitCostLow, IF(UPPER(RIGHT(F16,1))=High,UnitCostHigh,UnitCostSpecified)),MATCH(UPPER(LEFT(F16,LEN(F16)-1)),CostCode,0))) -> 0 | H16: =G16*E16 -> 0
B17: Rip rap in channel base | D17: m3 | F17: rr2l | G17: =IF(ISNA(F17),0,INDEX(IF(UPPER(RIGHT(F17,1))=Low,UnitCostLow, IF(UPPER(RIGHT(F17,1))=High,UnitCostHigh,UnitCostSpecified)),MATCH(UPPER(LEFT(F17,LEN(F17)-1)),CostCode,0))) -> 14.2 | H17: =G17*E17 -> 0
B18: BREACH DITCHES
B19: Excavate breaches | D19: m3 | F19: =NA() ->  | G19: =IF(ISNA(F19),0,INDEX(IF(UPPER(RIGHT(F19,1))=Low,UnitCostLow, IF(UPPER(RIGHT(F19,1))=High,UnitCostHigh,UnitCostSpecified)),MATCH(UPPER(LEFT(F19,LEN(F19)-1)),CostCode,0))) -> 0 | H19: =G19*E19 -> 0
B20: Backfill/recontour | D20: m3 | F20: SB3l | G20: =IF(ISNA(F20),0,INDEX(IF(UPPER(RIGHT(F20,1))=Low,UnitCostLow, IF(UPPER(RIGHT(F20,1))=High,UnitCostHigh,UnitCostSpecified)),MATCH(UPPER(LEFT(F20,LEN(F20)-1)),CostCode,0))) -> 5.1 | H20: =G20*E20 -> 0
B21: Install flow dissipation | D21: m3 | F21: =NA() ->  | G21: =IF(ISNA(F21),0,INDEX(IF(UPPER(RIGHT(F21,1))=Low,UnitCostLow, IF(UPPER(RIGHT(F21,1))=High,UnitCostHigh,UnitCostSpecified)),MATCH(UPPER(LEFT(F21,LEN(F21)-1)),CostCode,0))) -> 0 | H21: =G21*E21 -> 0
B22: Vegetate remainder of ditch | D22: m2 | F22: =NA() ->  | G22: =IF(ISNA(F22),0,INDEX(IF(UPPER(RIGHT(F22,1))=Low,UnitCostLow, IF(UPPER(RIGHT(F22,1))=High,UnitCostHigh,UnitCostSpecified)),MATCH(UPPER(LEFT(F22,LEN(F22)-1)),CostCode,0))) -> 0 | H22: =G22*E22 -> 0
B23: DECOMISSION FRESH WATER SUPPLY
B24: Breach embankment | D24: m | F24: =NA() ->  | G24: =IF(ISNA(F24),0,INDEX(IF(UPPER(RIGHT(F24,1))=Low,UnitCostLow, IF(UPPER(RIGHT(F24,1))=High,UnitCostHigh,UnitCostSpecified)),MATCH(UPPER(LEFT(F24,LEN(F24)-1)),CostCode,0))) -> 0 | H24: =G24*E24 -> 0
B25: Remove pump | D25: LS | F25: AE | G25: 20000 | H25: =G25*E25 -> 0
B26: Remove pipeline | D26: LS | F26: AE | G26: 40000 | H26: =G26*E26 -> 0
B27: WATER CONTROL IN RECLAMATION QUARRY
B28: Install pumping system | D28: LS | F28: =NA() ->  | G28: =IF(ISNA(F28),0,INDEX(IF(UPPER(RIGHT(F28,1))=Low,UnitCostLow, IF(UPPER(RIGHT(F28,1))=High,UnitCostHigh,UnitCostSpecified)),MATCH(UPPER(LEFT(F28,LEN(F28)-1)),CostCode,0))) -> 0 | H28: =G28*E28 -> 0
B29: Remove pumping system | D29: LS | F29: =NA() ->  | G29: =IF(ISNA(F29),0,INDEX(IF(UPPER(RIGHT(F29,1))=Low,UnitCostLow, IF(UPPER(RIGHT(F29,1))=High,UnitCostHigh,UnitCostSpecified)),MATCH(UPPER(LEFT(F29,LEN(F29)-1)),CostCode,0))) -> 0 | H29: =G29*E29 -> 0
B30: REMOVE PIPELINES
B31: Remove pipes | C31: The unit cost includes the cleaning, plugging, disassembly, loading, hauling and disposal of piping (Ref 1, pg 41). | D31: m | F31: 15RPS | G31: 66.23 | H31: =G31*E31 -> 0
B32: Concrete plug deep pipes | D32: m3 | F32: =NA() ->  | G32: =IF(ISNA(F32),0,INDEX(IF(UPPER(RIGHT(F32,1))=Low,UnitCostLow, IF(UPPER(RIGHT(F32,1))=High,UnitCostHigh,UnitCostSpecified)),MATCH(UPPER(LEFT(F32,LEN(F32)-1)),CostCode,0))) -> 0 | H32: =G32*E32 -> 0
B33: Other | F33: =NA() ->  | G33: =IF(ISNA(F33),0,INDEX(IF(UPPER(RIGHT(F33,1))=Low,UnitCostLow, IF(UPPER(RIGHT(F33,1))=High,UnitCostHigh,UnitCostSpecified)),MATCH(UPPER(LEFT(F33,LEN(F33)-1)),CostCode,0))) -> 0 | H33: =G33*E33 -> 0
B34: GROUNDWATER COLLECTION SYSTEM
B35: Excavate/install sumps | D35: m3 | F35: =NA() ->  | G35: =IF(ISNA(F35),0,INDEX(IF(UPPER(RIGHT(F35,1))=Low,UnitCostLow, IF(UPPER(RIGHT(F35,1))=High,UnitCostHigh,UnitCostSpecified)),MATCH(UPPER(LEFT(F35,LEN(F35)-1)),CostCode,0))) -> 0 | H35: =G35*E35 -> 0
B36: Install pumping wells | D36: m3 | F36: =NA() ->  | G36: =IF(ISNA(F36),0,INDEX(IF(UPPER(RIGHT(F36,1))=Low,UnitCostLow, IF(UPPER(RIGHT(F36,1))=High,UnitCostHigh,UnitCostSpecified)),MATCH(UPPER(LEFT(F36,LEN(F36)-1)),CostCode,0))) -> 0 | H36: =G36*E36 -> 0
B37: Install pumps/pipelines/power supply | D37: LS | F37: =NA() ->  | G37: =IF(ISNA(F37),0,INDEX(IF(UPPER(RIGHT(F37,1))=Low,UnitCostLow, IF(UPPER(RIGHT(F37,1))=High,UnitCostHigh,UnitCostSpecified)),MATCH(UPPER(LEFT(F37,LEN(F37)-1)),CostCode,0))) -> 0 | H37: =G37*E37 -> 0
B38: CONSTRUCT CONTAMINATED WATER STORAGE POND
B39: Excavate pond | D39: m3 | F39: =NA() ->  | G39: =IF(ISNA(F39),0,INDEX(IF(UPPER(RIGHT(F39,1))=Low,UnitCostLow, IF(UPPER(RIGHT(F39,1))=High,UnitCostHigh,UnitCostSpecified)),MATCH(UPPER(LEFT(F39,LEN(F39)-1)),CostCode,0))) -> 0 | H39: =G39*E39 -> 0
B40: Doze & spread excavated material | D40: m3 | F40: =NA() ->  | G40: 0 | H40: 0
B41: Vegetate spread material | D41: ha | F41: =NA() ->  | G41: 0 | H41: 0
B42: Bedding layer | D42: m3 | F42: =NA() ->  | G42: 0 | H42: 0
B43: Supply geomembrane | D43: m2 | F43: =NA() ->  | G43: 0 | H43: 0
B44: Install geomembrane | D44: m2 | F44: =NA() ->  | G44: 0 | H44: 0
B45: Erosion protection layer | D45: m3 | F45: =NA() ->  | G45: 0 | H45: 0
B46: CONSTRUCT PASSIVE TREATMENT SYSTEM (e.g. Constructed Wetland)
B47: Construct access roads | D47: km | F47: =NA() ->  | G47: 0 | H47: =G47*E47 -> 0
B48: Install HDPE piping system from collection pond | D48: m | F48: =NA() ->  | G48: 0 | H48: 0
B49: Inter-cell flow structures | D49: allow | F49: =NA() ->  | G49: 0 | H49: 0
B50: Install liners | D50: m2 | F50: =NA() ->  | G50: 0 | H50: 0
B51: Install growth media | D51: m3 | F51: =NA() ->  | G51: 0 | H51: 0
B52: Wetland vegetation | D52: ha | F52: =NA() ->  | G52: 0 | H52: 0
B53: CONSTRUCT WATER TREATMENT PLANT
B54: Build treatment plant | D54: LS | F54: =NA() ->  | G54: =IF(ISNA(F54),0,INDEX(IF(UPPER(RIGHT(F54,1))=Low,UnitCostLow, IF(UPPER(RIGHT(F54,1))=High,UnitCostHigh,UnitCostSpecified)),MATCH(UPPER(LEFT(F54,LEN(F54)-1)),CostCode,0))) -> 0 | H54: =G54*E54 -> 0
B55: Treatment (hec) 19 | D55: HA | F55: SNC | G55: 300000 | H55: =G55*E55 -> 0 | M55: WRSF = 190000 M2 , 19 HE | N55: 19 Ha
B56: Build sludge containment facility | D56: LS | F56: =NA() ->  | G56: =IF(ISNA(F56),0,INDEX(IF(UPPER(RIGHT(F56,1))=Low,UnitCostLow, IF(UPPER(RIGHT(F56,1))=High,UnitCostHigh,UnitCostSpecified)),MATCH(UPPER(LEFT(F56,LEN(F56)-1)),CostCode,0))) -> 0 | H56: =G56*E56 -> 0
G57: Total | H57: =SUM(H5:H56)+0.0001 -> 0.0001
B58: For cost of long-term/post-closure water treatment see "WATER TREATMENT" Worksheet"

Sheet ICM
A1: 1 | B1: Interim Care and Maintenance (18 Month duration)
B3: ACTIVITY/MATERIAL | C3: Notes | D3: Units | E3: Quantity | F3: Cost Code | G3: Unit Cost | H3: Cost
B4: INTERIM CARE & MAINTENANCE
B5: on-site caretaker | C5: Three caretakers for 18 months (assume 2 at 3w/1w and 1 at 2w/2w rotation). Assume 36 days of travel for each caretaker over 18-months.10-hr days. | D5: hr | F5: 15BLS | G5: 75 | H5: =G5*E5 -> 0
B6: extra personnel | C6: Assume crew of 15 people for 56, 10-hr days, to stabalize site and equipment at both the Mine Site, and Milne Port. Blended unit rate is used to allow for different skill levels that would make up the crew. | D6: hr | F6: 15BLS | G6: 75 | H6: 0
B7: -electrician | D7: manmonths | E7: 0 | F7: elech | G7: =IF(ISNA(F7),0,INDEX(IF(UPPER(RIGHT(F7,1))=Low,UnitCostLow, IF(UPPER(RIGHT(F7,1))=High,UnitCostHigh,UnitCostSpecified)),MATCH(UPPER(LEFT(F7,LEN(F7)-1)),CostCode,0))) -> 95 | H7: =G7*E7 -> 0
B8: -mechanic | D8: manmonths | E8: 0 | F8: mechh | G8: =IF(ISNA(F8),0,INDEX(IF(UPPER(RIGHT(F8,1))=Low,UnitCostLow, IF(UPPER(RIGHT(F8,1))=High,UnitCostHigh,UnitCostSpecified)),MATCH(UPPER(LEFT(F8,LEN(F8)-1)),CostCode,0))) -> 72.85 | H8: =G8*E8 -> 0
B9: annual fuel | D9: litre | E9: 0 | F9: fcdh | G9: =IF(ISNA(F9),0,INDEX(IF(UPPER(RIGHT(F9,1))=Low,UnitCostLow, IF(UPPER(RIGHT(F9,1))=High,UnitCostHigh,UnitCostSpecified)),MATCH(UPPER(LEFT(F9,LEN(F9)-1)),CostCode,0))) -> 1.39 | H9: 0
B10: Mobilization of Workers Required for Stabilization Period (from northern communities) | C10: Assume two rotations per worker, 30% from northern communities and 70% from southern communities. Mobilization from the south is $85.45/person days on site, and from the north $75/person-days on site (Ref 1). | D10: person-days | F10: 15NWS | G10: 75 | H10: 0
B11: Mobilization of Workers Required for Stabilization Period (from southern communities) | C11: Assume two rotations per worker, 30% from northern communities and 70% from southern communities. Mobilization from the south is $85.45/person days on site, and from the north $75/person-days on site (Ref 1). | D11: person-days | F11: 15SWS | G11: 85.45 | H11: =G11*E11 -> 0
B12: Mobilization of caretakers | C12: Assume mobilize from the north | D12: person-days | F12: 15NWS | G12: 75 | H12: 0
B13: Camp accomodations- stabilization period | C13: 15 workers for 56 days | D13: person-days | F13: 15WACS | G13: 225 | H13: 0
B14: Camp accomodations for caretakers | C14: 18 month duration full time | D14: person-days | F14: 15WACS | G14: 225 | H14: 0
B15: Equipment - site stabilizaiton | C15: Assume 1 dozer, 56 days, 10 hr/day | D15: hr | F15: 15BES | G15: 125 | H15: 0
B16: misc. supplies | D16: allow | F16: accmh | G16: 0 | H16: =G16*E16 -> 0
B17: pick-up truck | D17: each | F17: =NA() ->  | G17: 0 | H17: 0
B18: small dozer | D18: allow | F18: =NA() ->  | G18: 0 | H18: 0
B19: small excavator | D19: allow | F19: =NA() ->  | G19: 0 | H19: 0
B20: snow machine | D20: allow | F20: =NA() ->  | G20: 0 | H20: 0
B21: communications | D21: allow | F21: =NA() ->  | G21: 0 | H21: 0
B22: SNP/AEMP water sampling & reporting | D22: each | F22: 15MCWL | G22: 30000 | H22: 0
B23: geotechnical assessment | D23: each | F23: 15GTS | G23: 20000 | H23: 0
B24: environmental assessment | C24: Assumes spending 1st year budget for this type of activity for interim care | D24: each | F24: RPTH | G24: 20000 | H24: =G24*E24 -> 0
B25: interim water treatment | F25: =NA() ->  | H25: =AnnualTreat1Cost -> 0.0001
B26: other | D26: each | F26: =NA() ->  | G26: 0 | H26: 0
G27: 18 Month Interim C&M Cost | H27: =SUM(H5:H26) -> 0.0001
B28: Number of years of ICM | D28: years | E28: 1.5 | G28: Total | H28: =H27 -> 0.0001

Sheet PostClosure
A1: 1 | B1: Post-Closure Monitoring & Maintenance:
B3: ACTIVITY/MATERIAL | C3: Notes | D3: Units | E3: Quantity | F3: Cost Code | G3: Unit Cost | H3: Cost
B4: MONITORING & INSPECTIONS
B5: Short Term Temporary Care and Maintenance Program | C5: 2019 estimate (See section 3.3.2.6 of 2019 Marginal Estimate) | D5: LS | E5: 1 | F5: =NA() ->  | G5: 200000 | H5: =G5*E5 -> 200000
B6: Annual geotechnical inspection | D6: LS | E6: 1 | F6: =NA() ->  | G6: =240000-40000 -> 200000 | H6: 200000
B7: Permitting | D7: LS | E7: 1 | F7: =NA() ->  | G7: =300000-80000 -> 220000 | H7: 220000
B8: Socio-economic reporting | D8: LS | E8: 1 | F8: =NA() ->  | G8: 320000 | H8: 320000
B9: Aquatic monitoring Program | D9: LS | E9: 1 | F9: =NA() ->  | G9: =1250000-800000 -> 450000 | H9: 450000
B10: Environmental Effects Monitoring Program | D10: LS | E10: 1 | F10: =NA() ->  | G10: =325000-40000 -> 285000 | H10: 285000
B11: Post-Closure fauna and Flora monitoring. Terrestrial Program | D11: LS | E11: 1 | F11: =NA() ->  | G11: 1000000 | H11: 1000000
B12: Marine Monitoring | D12: LS | E12: 1 | F12: =NA() ->  | G12: =600000-480000 -> 120000 | H12: 120000
B13: Air Quality Monitoring Program (AQMP) | D13: LS | E13: 1 | F13: =NA() ->  | G13: =270000-60000 -> 210000 | H13: 210000
B14: Wildlife Effects Monitoring Program (WEMP) | C14: Assume sampling events specified year 1 to 5. | D14: each | F14: RPTH | G14: 40625 | H14: 0
B15: Safety compliance inspection | C15: 2019 estimate (See section 3.3.2.6 of 2019 Marginal Estimate) | D15: LS | E15: 1 | F15: =NA() ->  | G15: 185000 | H15: 185000
B16: Project Environmental Assessment | D16: LS | E16: 1 | F16: =NA() ->  | G16: =300000-60000 -> 240000 | H16: =G16*E16 -> 240000
B17: COVER MAINTENANCE
B18: Maintenance Allowance | C18: Short term care and maintenance | D18: year | F18: 15MCAL | G18: 100000 | H18: =G18*E18 -> 0
B19: Repair erosion - infill gullies | D19: allow | F19: =NA() ->  | G19: =IF(ISNA(F19),0,INDEX(IF(UPPER(RIGHT(F19,1))=Low,UnitCostLow, IF(UPPER(RIGHT(F19,1))=High,UnitCostHigh,UnitCostSpecified)),MATCH(UPPER(LEFT(F19,LEN(F19)-1)),CostCode,0))) -> 0 | H19: 0
B20: Repair erosion - upgrade diversion ditches | D20: allow | F20: =NA() ->  | G20: 0 | H20: 0
B21: Remove problem vegetation | D21: allow | F21: =NA() ->  | G21: 0 | H21: 0
B22: Repair animal damage | D22: allow | F22: =NA() ->  | G22: 0 | H22: 0
B23: Repair/upgrade access controls | D23: allow | F23: =NA() ->  | G23: 0 | H23: 0
B24: Other | F24: =NA() ->  | G24: 0 | H24: 0
B25: SPILLWAY MAINTENANCE
B26: Repair erosion | D26: m3 | F26: =NA() ->  | G26: 0 | H26: 0
B27: Clear spillway | D27: each | F27: =NA() ->  | G27: 0 | H27: =G27*E27 -> 0
B28: CWTS MAINTENANCE
B29: Maintain flow, restore vegetation | D29: allow | F29: =NA() ->  | G29: =IF(ISNA(F29),0,INDEX(IF(UPPER(RIGHT(F29,1))=Low,UnitCostLow, IF(UPPER(RIGHT(F29,1))=High,UnitCostHigh,UnitCostSpecified)),MATCH(UPPER(LEFT(F29,LEN(F29)-1)),CostCode,0))) -> 0 | H29: =G29*E29 -> 0
B30: POST-CLOSURE WATER TREATMENT
B31: water treatment - refer to water treatment tab | F31: wt tab | G31: =AnnualTreat1Cost -> 0.0001 | H31: =G31*E31 -> 0
B33: Subtotal, Annual post-closure costs | H33: =SUM(H5:H32)+0.0001 -> 3430000
B35: Discount rate for calculation of net present value of post-closure cost, % | F35: 0
B36: Number of years of post-closure activity | G36: years
B37: Present Value of payment stream | H37: =PV(DiscountRate,PCYears/8, PCAnnualTotal)*-1 -> 0
B39: *Regulatory costs - annual reporting, management plans, progress reports etc.

Sheet Mobilization
A1: 1 | B1: Mobilization/Demobilization:
B3: ACTIVITY/MATERIAL | C3: Notes | D3: Units | E3: Quantity | F3: Cost Code | G3: Unit Cost | H3: Cost
B4: MOBILIZE HEAVY EQUIPMENT
B5: Excavators | D5: km | F5: =NA() ->  | G5: =IF(ISNA(F5),0,INDEX(IF(UPPER(RIGHT(F5,1))=Low,UnitCostLow, IF(UPPER(RIGHT(F5,1))=High,UnitCostHigh,UnitCostSpecified)),MATCH(UPPER(LEFT(F5,LEN(F5)-1)),CostCode,0))) -> 0 | H5: =G5*E5 -> 0
B6: Dump trucks | D6: km | F6: =NA() ->  | G6: 0 | H6: 0
B7: Dozers | D7: km | F7: =NA() ->  | G7: 0 | H7: 0
B8: Demolition shears | D8: km | F8: =NA() ->  | G8: 0 | H8: 0
B9: Crane | D9: km | F9: =NA() ->  | G9: 0 | H9: 0
B10: Loader | D10: km | F10: =NA() ->  | G10: 0 | H10: 0
B11: Compactor | D11: km | F11: =NA() ->  | G11: 0 | H11: 0
B12: Light duty vehicles | D12: km | F12: =NA() ->  | G12: 0 | H12: 0
B13: MOBILIZE MISC. EQUIPMENT
B14: Mobilization and Demobilization of Equipment and Materials Required for Reclamation (2019) | C14: 2019 estimate (See section 3.3.2.5 of 2019 Marginal Estimate) Assumed 10% of marginal 2019 Estimate Direct costs | D14: LS | E14: 1 | F14: =NA() ->  | G14: =0.1*Summary!$D$14 -> 1066166.163 | H14: =G14*E14 -> 1066166.163
C15: 2019 estimate (Phase 2 Expansion Project Materials and Equipment see table 3-7 of 2019 Marginal Estimate) | D15: LS | E15: 1 | F15: =NA() ->  | G15: 15592000 | H15: 15592000
C16: 2019 estimate (Demob. Of hazardous waste materials associated with the Water Treatment Plant at the WRF) | D16: LS | E16: 1 | F16: =NA() ->  | G16: 13300 | H16: 13300
B17: Mobilization and Demobilization of Equipment and Materials by Sealift | D17: LS | G17: 2180000 | H17: 0
B18: Mobilization and Demobilization of Equipment and Materials for 2018 Work Plan addendum | C18: Assumed 10% of marginal 2017 Work Plan Addendum Direct costs(minus Soil and Water management and ICM components) i.e., $5,554,000 from BIMC 2018 Marginal Summary Worksheet. | D18: LS | F18: =NA() ->  | G18: 555400 | H18: 0
B19: Mobilization and Demobilization of Equipment and Materials for 2018 Work Plan | C19: Assumed 10% of marginal 2018 Work Plan Direct costs(minus Soil and Water management and ICM components) i.e., $2,600,700 from BIMC 2018 Marginal Summary Worksheet. | D19: LS | F19: =NA() ->  | G19: =2600700*0.1 -> 260070 | H19: 0
B20: Off-site Disposal of Waste | C20: Ref 1 pg 59 | D20: m3 | F20: 15ODS | G20: 358 | H20: 0
B21: Consumables (2018 Work Plan marginal increase) | C21: 2018 Work Plan addendum (table 3-7) increases this to a 800 person and 50 person camp structures at the Mine Site and a 380 person camp at Milne Port | D21: Ea | F21: 15CONS | G21: 700.8 | H21: =G21*E21 -> 0
B22: Consumables | C22: Cost to remove consumables delivered to site in 2015 (lubricants, grease, detergents, boosters, EZ Dets, dry goods, food, household supplies, etc.) (2015 Security Assessment, pg 18). | D22: Ea | F22: 15CONS | G22: 700.8 | H22: 0 | N22: =N19-N21 -> 0
B23: Truck tires | D23: allow | F23: =NA() ->  | G23: =IF(ISNA(F23),0,INDEX(IF(UPPER(RIGHT(F23,1))=Low,UnitCostLow, IF(UPPER(RIGHT(F23,1))=High,UnitCostHigh,UnitCostSpecified)),MATCH(UPPER(LEFT(F23,LEN(F23)-1)),CostCode,0))) -> 0 | H23: =G23*E23 -> 0
B24: Other | F24: =NA() ->  | G24: =IF(ISNA(F24),0,INDEX(IF(UPPER(RIGHT(F24,1))=Low,UnitCostLow, IF(UPPER(RIGHT(F24,1))=High,UnitCostHigh,UnitCostSpecified)),MATCH(UPPER(LEFT(F24,LEN(F24)-1)),CostCode,0))) -> 0 | H24: =G24*E24 -> 0
B25: MOBILIZE CAMP
F26: accml | G26: 0 | H26: =G26*E26 -> 0
F31: =NA() ->  | G31: =IF(ISNA(F31),0,INDEX(IF(UPPER(RIGHT(F31,1))=Low,UnitCostLow, IF(UPPER(RIGHT(F31,1))=High,UnitCostHigh,UnitCostSpecified)),MATCH(UPPER(LEFT(F31,LEN(F31)-1)),CostCode,0))) -> 0 | H31: =G31*E31 -> 0
F32: =NA() ->  | G32: =IF(ISNA(F32),0,INDEX(IF(UPPER(RIGHT(F32,1))=Low,UnitCostLow, IF(UPPER(RIGHT(F32,1))=High,UnitCostHigh,UnitCostSpecified)),MATCH(UPPER(LEFT(F32,LEN(F32)-1)),CostCode,0))) -> 0 | H32: =G32*E32 -> 0
B33: MOBILIZE WORKERS
B34: Mobilization of Workers Required for Reclamation (from northern communities, 2018 Work Plan | C34: Person-hours required to complete direct cost reclamation activities (10-h person-days) | D34: person-days | F34: 15NWS | G34: 75 | H34: =G34*E34 -> 0
B35: Mobilization of Workers Required for Reclamation (from southern communities, 2018 Work Plan | C35: Person-hours required to complete direct cost reclamation activities (10-h person-days) | D35: person-days | F35: 15SWS | G35: 85.45 | H35: =G35*E35 -> 0
B36: Mobilization of Workers Required for Reclamation (from northern communities, | C36: 2019 estimate (See section 3.3.2.3 of 2019 Marginal Estimate) | D36: person-days | E36: 1594 | F36: 15NWS | G36: 75 | H36: =G36*E36 -> 119550
B37: Mobilization of Workers Required for Reclamation (from southern communities, | C37: 2019 estimate (See section 3.3.2.3 of 2019 Marginal Estimate) | D37: person-days | E37: 3719 | F37: 15SWS | G37: 85.45 | H37: =G37*E37 -> 317788.55
B38: Mobilization of Workers Required for Reclamation (from northern communities, 2016 Work Plan) | C38: Person-hours required to complete direct cost reclamation activities (10-h person-days) (pg 63, Ref 1). | D38: person-days | F38: 15NWS | G38: 75 | H38: 0
B39: Mobilization of Workers Required for Reclamation (from southern communities, 2016 Work Plan) | C39: Person-hours required to complete direct cost reclamation activities (10-h person-days) (pg 63, Ref 1). | D39: person-days | F39: 15SWS | G39: 85.45 | H39: =G39*E39 -> 0
B40: Mobilization of Workers Required for Reclamation (2014 Work Plan) | C40: Person-hours required to complete direct cost reclamation activities (10-h person-days) (pg 63, Ref 1). Based on a blended unit rate of $82.315, which assumes 70% of hires from southern communities at a rate of $85.45/ person-day, and 30% from northern communities at $75/ person-day. | D40: man hours | G40: 82.32 | H40: =G40*E40 -> 0
B41: Mobilization of Workers Required for Reclamation (2015 Work Plan) | C41: Person-hours required to complete direct cost reclamation activities (10-h person-days) (pg 63, Ref 1). Based on a blended unit rate of $82.315, which assumes 70% of hires from southern communities at a rate of $85.45/ person-day, and 30% from northern communities at $75/ person-day. | D41: each | G41: 82.32 | H41: =G41*E41 -> 0
B42: Mobilization of Workers Required for Reclamation (2015 A Work Plan) | C42: Person-hours required to complete direct cost reclamation activities (10-h person-days) (pg 63, Ref 1). Based on a blended unit rate of $82.315, which assumes 70% of hires from southern communities at a rate of $85.45/ person-day, and 30% from northern communities at $75/ person-day. | D42: each | G42: 82.32 | H42: =G42*E42 -> 0
B43: WORKER ACCOMODATIONS
B44: Worker Accommodation & Camp Operation | C44: 2019 estimate (See section 3.3.2.4 of 2019 Marginal Estimate) | D44: person-days | E44: 5312 | F44: 15WACS | G44: 225 | H44: =G44*E44 -> 1195200
B45: Worker Accommodation & Camp Operation | C45: For the Post-Closure Monitorong and Reporting System (from 2016 Work Plan) | D45: person-days | F45: 15WACS | G45: 225 | H45: =G45*E45 -> 0
B46: Worker Accommodation & Camp Operation (2018 Work Plan) | C46: For marginal reclamation activities (3190 person-days) associated with 2018 Work Plan (Page 13 of Marginal Estimate). Includes maintenance, catering,, housekeeping & fuel costs. | D46: person-days | F46: 15WACS | G46: 225.5 | H46: =G46*E46 -> 0
B47: Worker Accommodation & Camp Operation (2017 Work Plan addendum) | C47: For marginal reclamation activities (2145 person-days) associated with 2017 Work Plan addendum. Includes maintenance, catering,, housekeeping & fuel costs. | D47: person-days | F47: 15WACS | G47: 225.5 | H47: 0
B48: Long term reclamation activities (eg pump flooding) | D48: person-days | F48: 15WACS | G48: 225.5 | H48: 0
B49: Worker Accommodation & Camp Operation (2019 Marginal estimate) | C49: Page 16 in FSE | D49: person-days | F49: 15WACS | G49: 225.5 | H49: 0
B50: MOBILIZE FUEL
B51: Demobilization of Existing Fuel and/or Fuel Required for Reclamation | C51: Represents the fuel mobilization cost associated with the 2014 Work Plan as provided in Oct 30, 2015 EBS | D51: $ | F51: =NA() ->  | G51: 1 | H51: =G51*E51 -> 0
B52: Demobilization of Existing Fuel and/or Fuel Required for Reclamation | C52: Represents marginal increase in fuel for 2015 provided in Oct 30, 2015 EBS | D52: $ | F52: =NA() ->  | G52: 1 | H52: =G52*E52 -> 0
B53: Demobilization of Existing Fuel and/or Fuel Required for Reclamation | C53: Represents marginal increase in fuel for the 2015 Addendum provided in September 23rd, 2015 EBS | D53: $ | F53: =NA() ->  | G53: 1 | H53: 0
B54: Demobilization of Existing Fuel and/or Fuel Required for Reclamation | C54: Represents marginal increase in fuel for 2015 R provided in September 23rd, 2015 EBS | D54: $ | F54: =NA() ->  | G54: 1 | H54: 0
B55: Fuel Required for Reclamation (2016 Work Plan) | C55: Ref 1, pg 61 | D55: litre | F55: 15MF1S | G55: 0.4 | H55: =G55*E55 -> 0
B56: Fuel Required for Reclamation (2017 Work Plan Addendum) | C56: 2017 Work Plan Addendum page 8. Mobilize 50% of fuel required. Reclamation activities for Marginal increase = 1,144,276L. Heat & power = 116L per 2145 person days x $0.40/L for mobilization. Fuel cost be captured under Worker Accom. & Camp Operation. Correction made to $1,213,000 per EBS not $1,216,000 as noted in the addendum. BIMC information does not clarify how the volume of fuel was derived so cost provided used to back out a volume of fuel. | D56: litre | F56: 15MF1S | G56: 0.4 | H56: =G56*E56 -> 0
B57: Fuel Required for Reclamation (2018 Work Plan) | C57: 2018 Work Plan page 13. Mobilize 50% of fuel required. Reclamation activities for Marginal increase = 638,170L. Heat & power = 116L per 3190 person days x $0.40/L for mobilization. Fuel cost be captured under Worker Accom. & Camp Operation. | D57: litre | F57: 15MF1S | G57: 0.4 | H57: =G57*E57 -> 0
B58: Fuel Required for Reclamation (2019) | C58: 2019 estimate (See section 3.3.2.1 of 2019 Marginal Estimate) | D58: litre | E58: 614000 | F58: 15MF1S | G58: 0.4 | H58: =G58*E58 -> 245600
B59: WINTER ROAD
B60: Construction and operation | D60: km | F60: =NA() ->  | G60: =IF(ISNA(F60),0,INDEX(IF(UPPER(RIGHT(F60,1))=Low,UnitCostLow, IF(UPPER(RIGHT(F60,1))=High,UnitCostHigh,UnitCostSpecified)),MATCH(UPPER(LEFT(F60,LEN(F60)-1)),CostCode,0))) -> 0 | H60: =G60*E60 -> 0
B61: Limited winter use | D61: km | F61: =NA() ->  | G61: =IF(ISNA(F61),0,INDEX(IF(UPPER(RIGHT(F61,1))=Low,UnitCostLow, IF(UPPER(RIGHT(F61,1))=High,UnitCostHigh,UnitCostSpecified)),MATCH(UPPER(LEFT(F61,LEN(F61)-1)),CostCode,0))) -> 0 | H61: =G61*E61 -> 0
B62: Winter road tarriff | D62: km | F62: =NA() ->  | G62: =IF(ISNA(F62),0,INDEX(IF(UPPER(RIGHT(F62,1))=Low,UnitCostLow, IF(UPPER(RIGHT(F62,1))=High,UnitCostHigh,UnitCostSpecified)),MATCH(UPPER(LEFT(F62,LEN(F62)-1)),CostCode,0))) -> 0 | H62: =G62*E62 -> 0
B63: DEMOBILIZE HEAVY EQUIPMENT (includes disassembly, demob as well as worker accommodations and mob/demob)
B64: fuel | C64: Marginal estimate (see Table 3-7 in Marginal Estimate) | D64: lot | F64: EBS | G64: 1736000 | H64: =G64*E64 -> 0
B65: Crushing Module | D65: lot | F65: EBS | G65: 1500000 | H65: 0
B66: Screening Module | D66: lot | F66: EBS | G66: 2260000 | H66: 0
B67: Car Dumper Module | D67: lot | F67: EBS | G67: 1680000 | H67: 0
B68: BMH Conveyors | D68: lot | F68: EBS | G68: 3391000 | H68: 0
B69: Rail Construction Materials | D69: lot | F69: EBS | G69: 1230000 | H69: 0
B70: Loader | D70: lot | F70: mherh | G70: 1230000 | H70: =G70*E70 -> 0
B71: Compactor | D71: lot | F71: =NA() ->  | G71: 1230000 | H71: =G71*E71 -> 0
B72: Light duty vehicles | D72: lot | F72: mherl | G72: 1230000 | H72: 0
B73: Shiploader module | D73: lot | F73: EBS | G73: 5535000 | H73: 0
B74: DEMOBILIZE FUEL
B75: Fuel Required for Reclamation (2019) | C75: 2019 estimate (See section 3.3.2.1 of 2019 Marginal Estimate) | D75: litre | E75: 15000000 | F75: 15MF1S | G75: 0.1 | H75: =G75*E75 -> 1500000
B76: DEMOBILIZE CAMP
D77: allow | F77: =NA() ->  | G77: =IF(ISNA(F77),0,INDEX(IF(UPPER(RIGHT(F77,1))=Low,UnitCostLow, IF(UPPER(RIGHT(F77,1))=High,UnitCostHigh,UnitCostSpecified)),MATCH(UPPER(LEFT(F77,LEN(F77)-1)),CostCode,0))) -> 0 | H77: =G77*E77 -> 0
B78: DEMOBILIZE WORKERS
B79: crew travel time | C79: cost in mobilization of workers. | D79: mandays | F79: =NA() ->  | G79: =IF(ISNA(F79),0,INDEX(IF(UPPER(RIGHT(F79,1))=Low,UnitCostLow, IF(UPPER(RIGHT(F79,1))=High,UnitCostHigh,UnitCostSpecified)),MATCH(UPPER(LEFT(F79,LEN(F79)-1)),CostCode,0))) -> 0 | H79: =G79*E79 -> 0
B80: crew transportation | D80: each | F80: =NA() ->  | G80: =IF(ISNA(F80),0,INDEX(IF(UPPER(RIGHT(F80,1))=Low,UnitCostLow, IF(UPPER(RIGHT(F80,1))=High,UnitCostHigh,UnitCostSpecified)),MATCH(UPPER(LEFT(F80,LEN(F80)-1)),CostCode,0))) -> 0 | H80: =G80*E80 -> 0
B81: WINTER ROAD
B82: Construction and operation | D82: km | F82: wrcl | G82: =IF(ISNA(F82),0,INDEX(IF(UPPER(RIGHT(F82,1))=Low,UnitCostLow, IF(UPPER(RIGHT(F82,1))=High,UnitCostHigh,UnitCostSpecified)),MATCH(UPPER(LEFT(F82,LEN(F82)-1)),CostCode,0))) -> 2000 | H82: =G82*E82 -> 0
B83: Limited winter use | D83: km | F83: =NA() ->  | G83: =IF(ISNA(F83),0,INDEX(IF(UPPER(RIGHT(F83,1))=Low,UnitCostLow, IF(UPPER(RIGHT(F83,1))=High,UnitCostHigh,UnitCostSpecified)),MATCH(UPPER(LEFT(F83,LEN(F83)-1)),CostCode,0))) -> 0 | H83: =G83*E83 -> 0
B84: Winter road tarriff | D84: tonnekm | F84: wrul | G84: =IF(ISNA(F84),0,INDEX(IF(UPPER(RIGHT(F84,1))=Low,UnitCostLow, IF(UPPER(RIGHT(F84,1))=High,UnitCostHigh,UnitCostSpecified)),MATCH(UPPER(LEFT(F84,LEN(F84)-1)),CostCode,0))) -> 0.29 | H84: =G84*E84 -> 0
G85: Total | H85: =SUM(H5:H84)+0.0001 -> 20049604.71

Sheet UG Mine
A1: 1 | B1: Underground Mine Name | G1: UG Mine # | H1: 1
B3: ACTIVITY/MATERIAL | C3: Notes | D3: Unit | E3: Qty | F3: Cost Code | G3: Unit Cost | H3: Cost | I3: % Land | J3: Land Cost | K3: Water Cost
B4: CONTROL ACCESS
B5: Fence | D5: m | F5: =NA() ->  | G5: =IF(ISNA(F5),0,INDEX(IF(UPPER(RIGHT(F5,1))=Low,UnitCostLow, IF(UPPER(RIGHT(F5,1))=High,UnitCostHigh,UnitCostSpecified)),MATCH(UPPER(LEFT(F5,LEN(F5)-1)),CostCode,0))) -> 0 | H5: =G5*E5 -> 0 | J5: =H5*I5 -> 0 | K5: =H5*(1-I5) -> 0
B6: Signs | D6: each | F6: =NA() ->  | G6: 0 | H6: 0 | J6: =H6*I6 -> 0 | K6: =H6*(1-I6) -> 0
B7: Block roads | D7: m3 | F7: =NA() ->  | G7: 0 | H7: =G7*E7 -> 0 | J7: 0 | K7: 0
B8: Berm | D8: m3 | F8: =NA() ->  | G8: 0 | H8: 0 | J8: 0 | K8: 0
B9: Concrete wall in portals | D9: m3 | F9: =NA() ->  | G9: 0 | H9: 0 | J9: =H9*I9 -> 0 | K9: =H9*(1-I9) -> 0
B10: Backfill portal #1 | D10: m3 | F10: RR4 | G10: 7.6 | H10: 0 | I10: 1 | J10: 0 | K10: 0
B11: Backfill portal #2 | D11: m3 | F11: =NA() ->  | G11: 0 | H11: 0 | J11: 0 | K11: 0
B12: Cap raise - 5 total | D12: each | F12: =NA() ->  | G12: 85656 | H12: 0 | I12: 1 | J12: 0 | K12: 0
B13: Cap raise #2 | D13: m3 | F13: =NA() ->  | G13: 0 | H13: 0 | J13: 0 | K13: 0
B14: Cap shaft #1 | D14: m3 | F14: =NA() ->  | G14: 0 | H14: 0 | J14: 0 | K14: 0
B15: Cap shaft #2 | D15: m3 | F15: =NA() ->  | G15: 0 | H15: 0 | J15: 0 | K15: 0
B16: Backfill adits | D16: m3 | F16: =NA() ->  | G16: 0 | H16: 0 | J16: =H16*I16 -> 0 | K16: =H16*(1-I16) -> 0
B17: Backfill open stope | D17: m3 | F17: sc3h | G17: 14.2 | H17: 0 | I17: 1 | J17: 0 | K17: 0
B18: Concrete cap over open stope | D18: m3 | F18: =NA() ->  | G18: 0 | H18: 0 | J18: 0 | K18: 0
B19: Other - crown pillar study | D19: LS | F19: =NA() ->  | G19: 25000 | H19: 0 | I19: 1 | J19: 0 | K19: 0
B20: REMOVE HAZARDOUS MATERIALS
B21: Remove hazardous materials, U/G labor | D21: mandays | F21: =NA() ->  | G21: 500 | H21: =G21*E21 -> 0 | I21: 0.5 | J21: =H21*I21 -> 0 | K21: =H21*(1-I21) -> 0
B22: Remove/decontam. stationary & elect. equip | D22: mandays | F22: =NA() ->  | G22: =IF(ISNA(F22),0,INDEX(IF(UPPER(RIGHT(F22,1))=Low,UnitCostLow, IF(UPPER(RIGHT(F22,1))=High,UnitCostHigh,UnitCostSpecified)),MATCH(UPPER(LEFT(F22,LEN(F22)-1)),CostCode,0))) -> 0 | H22: =G22*E22 -> 0 | J22: =H22*I22 -> 0 | K22: =H22*(1-I22) -> 0
B23: Remove/decontam. mobile equipment | D23: each | F23: =NA() ->  | G23: =IF(ISNA(F23),0,INDEX(IF(UPPER(RIGHT(F23,1))=Low,UnitCostLow, IF(UPPER(RIGHT(F23,1))=High,UnitCostHigh,UnitCostSpecified)),MATCH(UPPER(LEFT(F23,LEN(F23)-1)),CostCode,0))) -> 0 | H23: =G23*E23 -> 0 | J23: =H23*I23 -> 0 | K23: =H23*(1-I23) -> 0
B24: Remove misc. haz. mat & explosives | D24: kg | F24: =NA() ->  | G24: =IF(ISNA(F24),0,INDEX(IF(UPPER(RIGHT(F24,1))=Low,UnitCostLow, IF(UPPER(RIGHT(F24,1))=High,UnitCostHigh,UnitCostSpecified)),MATCH(UPPER(LEFT(F24,LEN(F24)-1)),CostCode,0))) -> 0 | H24: =G24*E24 -> 0 | J24: =H24*I24 -> 0 | K24: =H24*(1-I24) -> 0
B25: Other | F25: =NA() ->  | G25: =IF(ISNA(F25),0,INDEX(IF(UPPER(RIGHT(F25,1))=Low,UnitCostLow, IF(UPPER(RIGHT(F25,1))=High,UnitCostHigh,UnitCostSpecified)),MATCH(UPPER(LEFT(F25,LEN(F25)-1)),CostCode,0))) -> 0 | H25: =G25*E25 -> 0 | J25: =H25*I25 -> 0 | K25: =H25*(1-I25) -> 0
B26: INSTALL BULKHEADS
B27: Bulkheads to control water flow | D27: each | F27: =NA() ->  | G27: =IF(ISNA(F27),0,INDEX(IF(UPPER(RIGHT(F27,1))=Low,UnitCostLow, IF(UPPER(RIGHT(F27,1))=High,UnitCostHigh,UnitCostSpecified)),MATCH(UPPER(LEFT(F27,LEN(F27)-1)),CostCode,0))) -> 0 | H27: =G27*E27 -> 0 | J27: =H27*I27 -> 0 | K27: =H27*(1-I27) -> 0
B28: Grout bulkhead | D28: m3 | F28: =NA() ->  | G28: =IF(ISNA(F28),0,INDEX(IF(UPPER(RIGHT(F28,1))=Low,UnitCostLow, IF(UPPER(RIGHT(F28,1))=High,UnitCostHigh,UnitCostSpecified)),MATCH(UPPER(LEFT(F28,LEN(F28)-1)),CostCode,0))) -> 0 | H28: =G28*E28 -> 0 | J28: =H28*I28 -> 0 | K28: =H28*(1-I28) -> 0
B29: FLOOD MINE
B30: Supply/install pump | D30: each | F30: =NA() ->  | G30: =IF(ISNA(F30),0,INDEX(IF(UPPER(RIGHT(F30,1))=Low,UnitCostLow, IF(UPPER(RIGHT(F30,1))=High,UnitCostHigh,UnitCostSpecified)),MATCH(UPPER(LEFT(F30,LEN(F30)-1)),CostCode,0))) -> 0 | H30: =G30*E30 -> 0 | J30: 0 | K30: 0
B31: Supply/install piping system | D31: each | F31: =NA() ->  | G31: =IF(ISNA(F31),0,INDEX(IF(UPPER(RIGHT(F31,1))=Low,UnitCostLow, IF(UPPER(RIGHT(F31,1))=High,UnitCostHigh,UnitCostSpecified)),MATCH(UPPER(LEFT(F31,LEN(F31)-1)),CostCode,0))) -> 0 | H31: =G31*E31 -> 0 | J31: =H31*I31 -> 0 | K31: =H31*(1-I31) -> 0
B32: Operate pumps to flood workings | D32: m3 | F32: =NA() ->  | G32: =IF(ISNA(F32),0,INDEX(IF(UPPER(RIGHT(F32,1))=Low,UnitCostLow, IF(UPPER(RIGHT(F32,1))=High,UnitCostHigh,UnitCostSpecified)),MATCH(UPPER(LEFT(F32,LEN(F32)-1)),CostCode,0))) -> 0 | H32: =G32*E32 -> 0 | J32: 0 | K32: 0
B33: Other | F33: =NA() ->  | G33: =IF(ISNA(F33),0,INDEX(IF(UPPER(RIGHT(F33,1))=Low,UnitCostLow, IF(UPPER(RIGHT(F33,1))=High,UnitCostHigh,UnitCostSpecified)),MATCH(UPPER(LEFT(F33,LEN(F33)-1)),CostCode,0))) -> 0 | H33: =G33*E33 -> 0 | J33: 0 | K33: 0
B34: INSTALL GROUNDWATER COLLECTION SYSTEM
B35: Excavate/install sumps | D35: m2 | F35: =NA() ->  | G35: =IF(ISNA(F35),0,INDEX(IF(UPPER(RIGHT(F35,1))=Low,UnitCostLow, IF(UPPER(RIGHT(F35,1))=High,UnitCostHigh,UnitCostSpecified)),MATCH(UPPER(LEFT(F35,LEN(F35)-1)),CostCode,0))) -> 0 | H35: =G35*E35 -> 0 | J35: =H35*I35 -> 0 | K35: =+H35*(1-I35) -> 0
B36: Install pumping wells | D36: m3 | F36: =NA() ->  | G36: =IF(ISNA(F36),0,INDEX(IF(UPPER(RIGHT(F36,1))=Low,UnitCostLow, IF(UPPER(RIGHT(F36,1))=High,UnitCostHigh,UnitCostSpecified)),MATCH(UPPER(LEFT(F36,LEN(F36)-1)),CostCode,0))) -> 0 | H36: =G36*E36 -> 0 | J36: =H36*I36 -> 0 | K36: =+H36*(1-I36) -> 0
B37: Install pumps/pipelines/power supply | D37: LS | F37: =NA() ->  | G37: =IF(ISNA(F37),0,INDEX(IF(UPPER(RIGHT(F37,1))=Low,UnitCostLow, IF(UPPER(RIGHT(F37,1))=High,UnitCostHigh,UnitCostSpecified)),MATCH(UPPER(LEFT(F37,LEN(F37)-1)),CostCode,0))) -> 0 | H37: =G37*E37 -> 0 | J37: =H37*I37 -> 0 | K37: =+H37*(1-I37) -> 0
B38: SPECIALIZED ITEMS
B39: Install water quality monitoring pipes | D39: each | F39: =NA() ->  | G39: =IF(ISNA(F39),0,INDEX(IF(UPPER(RIGHT(F39,1))=Low,UnitCostLow, IF(UPPER(RIGHT(F39,1))=High,UnitCostHigh,UnitCostSpecified)),MATCH(UPPER(LEFT(F39,LEN(F39)-1)),CostCode,0))) -> 0 | H39: =G39*E39 -> 0 | J39: =H39*I39 -> 0 | K39: 0
B40: Install permanent pumping system | D40: each | F40: =NA() ->  | G40: =IF(ISNA(F40),0,INDEX(IF(UPPER(RIGHT(F40,1))=Low,UnitCostLow, IF(UPPER(RIGHT(F40,1))=High,UnitCostHigh,UnitCostSpecified)),MATCH(UPPER(LEFT(F40,LEN(F40)-1)),CostCode,0))) -> 0 | H40: =G40*E40 -> 0 | J40: =H40*I40 -> 0 | K40: 0
B41: Other | F41: =NA() ->  | G41: =IF(ISNA(F41),0,INDEX(IF(UPPER(RIGHT(F41,1))=Low,UnitCostLow, IF(UPPER(RIGHT(F41,1))=High,UnitCostHigh,UnitCostSpecified)),MATCH(UPPER(LEFT(F41,LEN(F41)-1)),CostCode,0))) -> 0 | H41: =G41*E41 -> 0 | J41: =H41*I41 -> 0 | K41: 0
G42: Total | H42: =SUM(H5:H41)+0.0001 -> 0.0001 | J42: =SUM(J5:J41) -> 0 | K42: =SUM(K5:K41) -> 0
G43: % of Total | J43: =J42/H42 -> 0 | K43: =K42/H42 -> 0

Sheet Tailings
A1: 1 | B1: Tailings Impoundment Name: | G1: Pond # | H1: 1
B3: ACTIVITY/MATERIAL | C3: Notes | D3: Units | E3: Quantity | F3: Cost Code | G3: Unit Cost | H3: Cost | I3: % Land | J3: Land Cost | K3: Water Cost
B4: CONTROL ACCESS
B5: Fence | D5: m | F5: =NA() ->  | G5: =IF(ISNA(F5),0,INDEX(IF(UPPER(RIGHT(F5,1))=Low,UnitCostLow, IF(UPPER(RIGHT(F5,1))=High,UnitCostHigh,UnitCostSpecified)),MATCH(UPPER(LEFT(F5,LEN(F5)-1)),CostCode,0))) -> 0 | H5: =G5*E5 -> 0 | J5: =H5*I5 -> 0 | K5: =+H5*(1-I5) -> 0
B6: Signs | D6: each | F6: =NA() ->  | G6: =IF(ISNA(F6),0,INDEX(IF(UPPER(RIGHT(F6,1))=Low,UnitCostLow, IF(UPPER(RIGHT(F6,1))=High,UnitCostHigh,UnitCostSpecified)),MATCH(UPPER(LEFT(F6,LEN(F6)-1)),CostCode,0))) -> 0 | H6: =G6*E6 -> 0 | J6: =H6*I6 -> 0 | K6: =+H6*(1-I6) -> 0
B7: Berm | D7: m3 | F7: =NA() ->  | G7: =IF(ISNA(F7),0,INDEX(IF(UPPER(RIGHT(F7,1))=Low,UnitCostLow, IF(UPPER(RIGHT(F7,1))=High,UnitCostHigh,UnitCostSpecified)),MATCH(UPPER(LEFT(F7,LEN(F7)-1)),CostCode,0))) -> 0 | H7: =G7*E7 -> 0 | J7: 0 | K7: 0
B8: Block roads | D8: m3 | F8: =NA() ->  | G8: =IF(ISNA(F8),0,INDEX(IF(UPPER(RIGHT(F8,1))=Low,UnitCostLow, IF(UPPER(RIGHT(F8,1))=High,UnitCostHigh,UnitCostSpecified)),MATCH(UPPER(LEFT(F8,LEN(F8)-1)),CostCode,0))) -> 0 | H8: =G8*E8 -> 0 | J8: 0 | K8: 0
B9: Other | F9: =NA() ->  | G9: =IF(ISNA(F9),0,INDEX(IF(UPPER(RIGHT(F9,1))=Low,UnitCostLow, IF(UPPER(RIGHT(F9,1))=High,UnitCostHigh,UnitCostSpecified)),MATCH(UPPER(LEFT(F9,LEN(F9)-1)),CostCode,0))) -> 0 | H9: =G9*E9 -> 0 | J9: 0 | K9: 0
B10: STABILIZE EMBANKMENT(S)
B11: Toe buttress, drainage layer | D11: m3 | F11: =NA() ->  | G11: =IF(ISNA(F11),0,INDEX(IF(UPPER(RIGHT(F11,1))=Low,UnitCostLow, IF(UPPER(RIGHT(F11,1))=High,UnitCostHigh,UnitCostSpecified)),MATCH(UPPER(LEFT(F11,LEN(F11)-1)),CostCode,0))) -> 0 | H11: =G11*E11 -> 0 | J11: 0 | K11: 0
B12: Toe buttress, bulk fill | D12: m3 | F12: =NA() ->  | G12: =IF(ISNA(F12),0,INDEX(IF(UPPER(RIGHT(F12,1))=Low,UnitCostLow, IF(UPPER(RIGHT(F12,1))=High,UnitCostHigh,UnitCostSpecified)),MATCH(UPPER(LEFT(F12,LEN(F12)-1)),CostCode,0))) -> 0 | H12: 0 | J12: 0 | K12: 0
B13: Rip rap | D13: m3 | F13: RB2 | G13: =Unit_Costs!G26 -> 17.8 | H13: 0 | I13: 0.5 | J13: 0 | K13: 0
B14: Vegetate | D14: ha | F14: =NA() ->  | G14: =IF(ISNA(F14),0,INDEX(IF(UPPER(RIGHT(F14,1))=Low,UnitCostLow, IF(UPPER(RIGHT(F14,1))=High,UnitCostHigh,UnitCostSpecified)),MATCH(UPPER(LEFT(F14,LEN(F14)-1)),CostCode,0))) -> 0 | H14: 0 | J14: 0 | K14: 0
B15: Raise crest | D15: m3 | F15: =NA() ->  | G15: =IF(ISNA(F15),0,INDEX(IF(UPPER(RIGHT(F15,1))=Low,UnitCostLow, IF(UPPER(RIGHT(F15,1))=High,UnitCostHigh,UnitCostSpecified)),MATCH(UPPER(LEFT(F15,LEN(F15)-1)),CostCode,0))) -> 0 | H15: 0 | J15: 0 | K15: 0
B16: Flatten slopes | D16: m3 | F16: =NA() ->  | G16: =IF(ISNA(F16),0,INDEX(IF(UPPER(RIGHT(F16,1))=Low,UnitCostLow, IF(UPPER(RIGHT(F16,1))=High,UnitCostHigh,UnitCostSpecified)),MATCH(UPPER(LEFT(F16,LEN(F16)-1)),CostCode,0))) -> 0 | H16: 0 | J16: 0 | K16: 0
B17: Other | F17: =NA() ->  | G17: =IF(ISNA(F17),0,INDEX(IF(UPPER(RIGHT(F17,1))=Low,UnitCostLow, IF(UPPER(RIGHT(F17,1))=High,UnitCostHigh,UnitCostSpecified)),MATCH(UPPER(LEFT(F17,LEN(F17)-1)),CostCode,0))) -> 0 | H17: 0 | J17: 0 | K17: 0
B18: COVER TAILINGS
B19: Grade/shape tailings surface | D19: m3 | F19: =NA() ->  | G19: =IF(ISNA(F19),0,INDEX(IF(UPPER(RIGHT(F19,1))=Low,UnitCostLow, IF(UPPER(RIGHT(F19,1))=High,UnitCostHigh,UnitCostSpecified)),MATCH(UPPER(LEFT(F19,LEN(F19)-1)),CostCode,0))) -> 0 | H19: =G19*E19 -> 0 | J19: =H19*I19 -> 0 | K19: =+H19*(1-I19) -> 0
B20: Liner bedding | D20: m3 | F20: =NA() ->  | G20: 0 | H20: =G20*E20 -> 0 | J20: =H20*I20 -> 0 | K20: =+H20*(1-I20) -> 0
B21: Subgrade preparation - compact | D21: m2 | F21: =NA() ->  | G21: 0 | H21: =G21*E21 -> 0 | J21: =H21*I21 -> 0 | K21: =+H21*(1-I21) -> 0
B22: Supply geotextile/geosynthetic | D22: m2 | F22: =NA() ->  | G22: 0 | H22: 0 | J22: 0 | K22: 0
B23: Install geotextile/geosynthetic | D23: m2 | F23: =NA() ->  | G23: 0 | H23: =G23*E23 -> 0 | J23: =H23*I23 -> 0 | K23: =+H23*(1-I23) -> 0
B24: Soil cover | D24: m3 | F24: SC4L | G24: 9.3 | H24: 0 | I24: 0.5 | J24: 0 | K24: 0
B25: Rock cover | D25: m3 | F25: =NA() ->  | G25: 0 | H25: =G25*E25 -> 0 | J25: =H25*I25 -> 0 | K25: =+H25*(1-I25) -> 0
B26: Vegetate | D26: ha | F26: VHF | G26: 4000 | H26: 0 | I26: 0.5 | J26: 0 | K26: 0
B27: Other | D27: m3 | F27: SC4L | G27: =IF(ISNA(F27),0,INDEX(IF(UPPER(RIGHT(F27,1))=Low,UnitCostLow, IF(UPPER(RIGHT(F27,1))=High,UnitCostHigh,UnitCostSpecified)),MATCH(UPPER(LEFT(F27,LEN(F27)-1)),CostCode,0))) -> 9.3 | H27: =G27*E27 -> 0 | I27: 0.5 | J27: =H27*I27 -> 0 | K27: =+H27*(1-I27) -> 0
B28: BURY PAG ROCK
B29: Relocate PAG rock | D29: m3 | F29: =NA() ->  | G29: =IF(ISNA(F29),0,INDEX(IF(UPPER(RIGHT(F29,1))=Low,UnitCostLow, IF(UPPER(RIGHT(F29,1))=High,UnitCostHigh,UnitCostSpecified)),MATCH(UPPER(LEFT(F29,LEN(F29)-1)),CostCode,0))) -> 0 | H29: =G29*E29 -> 0 | J29: 0 | K29: 0
B30: Place cover over PAG rock | D30: m3 | F30: =NA() ->  | G30: =IF(ISNA(F30),0,INDEX(IF(UPPER(RIGHT(F30,1))=Low,UnitCostLow, IF(UPPER(RIGHT(F30,1))=High,UnitCostHigh,UnitCostSpecified)),MATCH(UPPER(LEFT(F30,LEN(F30)-1)),CostCode,0))) -> 0 | H30: =G30*E30 -> 0 | J30: 0 | K30: 0
B31: Raise crest of dam | D31: m3 | F31: =NA() ->  | G31: =IF(ISNA(F31),0,INDEX(IF(UPPER(RIGHT(F31,1))=Low,UnitCostLow, IF(UPPER(RIGHT(F31,1))=High,UnitCostHigh,UnitCostSpecified)),MATCH(UPPER(LEFT(F31,LEN(F31)-1)),CostCode,0))) -> 0 | H31: =G31*E31 -> 0 | J31: 0 | K31: 0
B32: Other | F32: =NA() ->  | G32: =IF(ISNA(F32),0,INDEX(IF(UPPER(RIGHT(F32,1))=Low,UnitCostLow, IF(UPPER(RIGHT(F32,1))=High,UnitCostHigh,UnitCostSpecified)),MATCH(UPPER(LEFT(F32,LEN(F32)-1)),CostCode,0))) -> 0 | H32: =G32*E32 -> 0 | J32: 0 | K32: 0
B33: STABILIZE DECANT SYSTEM
B34: Excavate and replace | D34: m3 | F34: =NA() ->  | G34: =IF(ISNA(F34),0,INDEX(IF(UPPER(RIGHT(F34,1))=Low,UnitCostLow, IF(UPPER(RIGHT(F34,1))=High,UnitCostHigh,UnitCostSpecified)),MATCH(UPPER(LEFT(F34,LEN(F34)-1)),CostCode,0))) -> 0 | H34: =G34*E34 -> 0 | J34: =H34*I34 -> 0 | K34: =+H34*(1-I34) -> 0
B35: Plug/backfill with concrete or clay | D35: m3 | F35: =NA() ->  | G35: =IF(ISNA(F35),0,INDEX(IF(UPPER(RIGHT(F35,1))=Low,UnitCostLow, IF(UPPER(RIGHT(F35,1))=High,UnitCostHigh,UnitCostSpecified)),MATCH(UPPER(LEFT(F35,LEN(F35)-1)),CostCode,0))) -> 0 | H35: =G35*E35 -> 0 | J35: =H35*I35 -> 0 | K35: =+H35*(1-I35) -> 0
B36: Other | F36: =NA() ->  | G36: =IF(ISNA(F36),0,INDEX(IF(UPPER(RIGHT(F36,1))=Low,UnitCostLow, IF(UPPER(RIGHT(F36,1))=High,UnitCostHigh,UnitCostSpecified)),MATCH(UPPER(LEFT(F36,LEN(F36)-1)),CostCode,0))) -> 0 | H36: =G36*E36 -> 0 | J36: =H36*I36 -> 0 | K36: =+H36*(1-I36) -> 0
B37: REMOVE TAILINGS DISCHARGE
B38: Cyclones | D38: m3 | F38: =NA() ->  | G38: =IF(ISNA(F38),0,INDEX(IF(UPPER(RIGHT(F38,1))=Low,UnitCostLow, IF(UPPER(RIGHT(F38,1))=High,UnitCostHigh,UnitCostSpecified)),MATCH(UPPER(LEFT(F38,LEN(F38)-1)),CostCode,0))) -> 0 | H38: =G38*E38 -> 0 | J38: =H38*I38 -> 0 | K38: =+H38*(1-I38) -> 0
B39: Pipe | D39: m | F39: ppls | G39: 57.33 | H39: =G39*E39 -> 0 | J39: =H39*I39 -> 0 | K39: =+H39*(1-I39) -> 0
B40: Remove reclaim barge | D40: allow | F40: =NA() ->  | G40: =IF(ISNA(F40),0,INDEX(IF(UPPER(RIGHT(F40,1))=Low,UnitCostLow, IF(UPPER(RIGHT(F40,1))=High,UnitCostHigh,UnitCostSpecified)),MATCH(UPPER(LEFT(F40,LEN(F40)-1)),CostCode,0))) -> 0 | H40: =G40*E40 -> 0 | J40: =H40*I40 -> 0 | K40: =+H40*(1-I40) -> 0
B41: CONSTRUCT DIVERSION DITCHES
B42: Excavate ditches -soil | D42: m3 | F42: =NA() ->  | G42: =IF(ISNA(F42),0,INDEX(IF(UPPER(RIGHT(F42,1))=Low,UnitCostLow, IF(UPPER(RIGHT(F42,1))=High,UnitCostHigh,UnitCostSpecified)),MATCH(UPPER(LEFT(F42,LEN(F42)-1)),CostCode,0))) -> 0 | H42: =G42*E42 -> 0 | J42: =H42*I42 -> 0 | K42: =+H42*(1-I42) -> 0
B43: Excavate ditches -rock | D43: m3 | F43: =NA() ->  | G43: =IF(ISNA(F43),0,INDEX(IF(UPPER(RIGHT(F43,1))=Low,UnitCostLow, IF(UPPER(RIGHT(F43,1))=High,UnitCostHigh,UnitCostSpecified)),MATCH(UPPER(LEFT(F43,LEN(F43)-1)),CostCode,0))) -> 0 | H43: =G43*E43 -> 0 | J43: =H43*I43 -> 0 | K43: =+H43*(1-I43) -> 0
B44: Rip rap in channel base | D44: m3 | F44: =NA() ->  | G44: =IF(ISNA(F44),0,INDEX(IF(UPPER(RIGHT(F44,1))=Low,UnitCostLow, IF(UPPER(RIGHT(F44,1))=High,UnitCostHigh,UnitCostSpecified)),MATCH(UPPER(LEFT(F44,LEN(F44)-1)),CostCode,0))) -> 0 | H44: =G44*E44 -> 0 | J44: =H44*I44 -> 0 | K44: =+H44*(1-I44) -> 0
B45: FLOOD TAILINGS
B46: Doze tailings to final contour | D46: m3 | F46: =NA() ->  | G46: =IF(ISNA(F46),0,INDEX(IF(UPPER(RIGHT(F46,1))=Low,UnitCostLow, IF(UPPER(RIGHT(F46,1))=High,UnitCostHigh,UnitCostSpecified)),MATCH(UPPER(LEFT(F46,LEN(F46)-1)),CostCode,0))) -> 0 | H46: =G46*E46 -> 0 | J46: 0 | K46: 0
B47: Raise crest of dam | D47: m3 | F47: =NA() ->  | G47: =IF(ISNA(F47),0,INDEX(IF(UPPER(RIGHT(F47,1))=Low,UnitCostLow, IF(UPPER(RIGHT(F47,1))=High,UnitCostHigh,UnitCostSpecified)),MATCH(UPPER(LEFT(F47,LEN(F47)-1)),CostCode,0))) -> 0 | H47: =G47*E47 -> 0 | J47: 0 | K47: 0
B48: Other | F48: =NA() ->  | G48: =IF(ISNA(F48),0,INDEX(IF(UPPER(RIGHT(F48,1))=Low,UnitCostLow, IF(UPPER(RIGHT(F48,1))=High,UnitCostHigh,UnitCostSpecified)),MATCH(UPPER(LEFT(F48,LEN(F48)-1)),CostCode,0))) -> 0 | H48: =G48*E48 -> 0 | J48: 0 | K48: 0
B49: UPGRADE SPILLWAY
B50: Excavate channel, rock | D50: m3 | F50: =NA() ->  | G50: =IF(ISNA(F50),0,INDEX(IF(UPPER(RIGHT(F50,1))=Low,UnitCostLow, IF(UPPER(RIGHT(F50,1))=High,UnitCostHigh,UnitCostSpecified)),MATCH(UPPER(LEFT(F50,LEN(F50)-1)),CostCode,0))) -> 0 | H50: =G50*E50 -> 0 | J50: 0 | K50: 0
B51: Excavate channel, soil | D51: m3 | F51: SC3H | G51: =IF(ISNA(F51),0,INDEX(IF(UPPER(RIGHT(F51,1))=Low,UnitCostLow, IF(UPPER(RIGHT(F51,1))=High,UnitCostHigh,UnitCostSpecified)),MATCH(UPPER(LEFT(F51,LEN(F51)-1)),CostCode,0))) -> 14.2 | H51: =G51*E51 -> 0 | J51: 0 | K51: 0
B52: Concrete | D52: m3 | F52: =NA() ->  | G52: =IF(ISNA(F52),0,INDEX(IF(UPPER(RIGHT(F52,1))=Low,UnitCostLow, IF(UPPER(RIGHT(F52,1))=High,UnitCostHigh,UnitCostSpecified)),MATCH(UPPER(LEFT(F52,LEN(F52)-1)),CostCode,0))) -> 0 | H52: =G52*E52 -> 0 | J52: 0 | K52: 0
B53: Rip rap | D53: m3 | F53: RB4H | G53: =IF(ISNA(F53),0,INDEX(IF(UPPER(RIGHT(F53,1))=Low,UnitCostLow, IF(UPPER(RIGHT(F53,1))=High,UnitCostHigh,UnitCostSpecified)),MATCH(UPPER(LEFT(F53,LEN(F53)-1)),CostCode,0))) -> 30.75 | H53: =G53*E53 -> 0 | J53: 0 | K53: 0
B54: Geotextile | D54: m2 | F54: GSTL | G54: =IF(ISNA(F54),0,INDEX(IF(UPPER(RIGHT(F54,1))=Low,UnitCostLow, IF(UPPER(RIGHT(F54,1))=High,UnitCostHigh,UnitCostSpecified)),MATCH(UPPER(LEFT(F54,LEN(F54)-1)),CostCode,0))) -> 3.44 | H54: =G54*E54 -> 0 | J54: 0 | K54: 0
B55: CONSTRUCT SEEPAGE COLLECTION POND
B56: Excavate seepage collection pond | D56: m3 | F56: =NA() ->  | G56: =IF(ISNA(F56),0,INDEX(IF(UPPER(RIGHT(F56,1))=Low,UnitCostLow, IF(UPPER(RIGHT(F56,1))=High,UnitCostHigh,UnitCostSpecified)),MATCH(UPPER(LEFT(F56,LEN(F56)-1)),CostCode,0))) -> 0 | H56: =G56*E56 -> 0 | J56: =H56*I56 -> 0 | K56: =+H56*(1-I56) -> 0
B57: Doze & spread excavated material | D57: m3 | F57: =NA() ->  | G57: 0 | H57: 0 | J57: 0 | K57: 0
B58: Vegetate spread material | D58: ha | F58: =NA() ->  | G58: 0 | H58: 0 | J58: 0 | K58: 0
B59: Bedding layer | D59: m3 | F59: =NA() ->  | G59: 0 | H59: 0 | J59: 0 | K59: 0
B60: Supply geomembrane | D60: m2 | F60: =NA() ->  | G60: 0 | H60: 0 | J60: 0 | K60: 0
B61: Install geomembrane | D61: m2 | F61: =NA() ->  | G61: 0 | H61: 0 | J61: 0 | K61: 0
B62: Erosion protection layer | D62: m3 | F62: =NA() ->  | G62: 0 | H62: 0 | J62: 0 | K62: 0
B63: INSTALL GROUNDWATER COLLECTION SYSTEM
B64: Excavate/install sumps | D64: m3 | F64: =NA() ->  | G64: =IF(ISNA(F64),0,INDEX(IF(UPPER(RIGHT(F64,1))=Low,UnitCostLow, IF(UPPER(RIGHT(F64,1))=High,UnitCostHigh,UnitCostSpecified)),MATCH(UPPER(LEFT(F64,LEN(F64)-1)),CostCode,0))) -> 0 | H64: =G64*E64 -> 0 | J64: =H64*I64 -> 0 | K64: =+H64*(1-I64) -> 0
B65: Install pumping wells | D65: m3 | F65: =NA() ->  | G65: =IF(ISNA(F65),0,INDEX(IF(UPPER(RIGHT(F65,1))=Low,UnitCostLow, IF(UPPER(RIGHT(F65,1))=High,UnitCostHigh,UnitCostSpecified)),MATCH(UPPER(LEFT(F65,LEN(F65)-1)),CostCode,0))) -> 0 | H65: =G65*E65 -> 0 | J65: =H65*I65 -> 0 | K65: =+H65*(1-I65) -> 0
B66: Install pumps/pipelines/power supply | D66: LS | F66: =NA() ->  | G66: =IF(ISNA(F66),0,INDEX(IF(UPPER(RIGHT(F66,1))=Low,UnitCostLow, IF(UPPER(RIGHT(F66,1))=High,UnitCostHigh,UnitCostSpecified)),MATCH(UPPER(LEFT(F66,LEN(F66)-1)),CostCode,0))) -> 0 | H66: =G66*E66 -> 0 | J66: =H66*I66 -> 0 | K66: =+H66*(1-I66) -> 0
B67: SPECIALIZED ITEMS
B68: Install permanent instrumentation, supply & technican | D68: each | F68: =NA() ->  | G68: 30000 | H68: =G68*E68 -> 0 | J68: =H68*I68 -> 0 | K68: =+H68*(1-I68) -> 0
B69: Install permanent instrumentation, drilling | D69: each | F69: =NA() ->  | G69: 30000 | H69: =G69*E69 -> 0 | K69: =+H69*(1-I69) -> 0
B70: TREAT SEEPAGE - see "Water Management" and "Water Treatment"
B71: TREAT SUPERNATANT
B72: Pump water (to pit, U/G) | D72: m3 | F72: =NA() ->  | G72: =IF(ISNA(F72),0,INDEX(IF(UPPER(RIGHT(F72,1))=Low,UnitCostLow, IF(UPPER(RIGHT(F72,1))=High,UnitCostHigh,UnitCostSpecified)),MATCH(UPPER(LEFT(F72,LEN(F72)-1)),CostCode,0))) -> 0 | H72: =G72*E72 -> 0 | J72: =H72*I72 -> 0 | K72: =+H72*(1-I72) -> 0
B73: Equipment maintenance and parts | D73: allow | F73: =NA() ->  | G73: 100000 | H73: =G73*E73 -> 0 | J73: =H73*I73 -> 0 | K73: =+H73*(1-I73) -> 0
B74: Supply reagents | D74: tonne | F74: =NA() ->  | G74: =IF(ISNA(F74),0,INDEX(IF(UPPER(RIGHT(F74,1))=Low,UnitCostLow, IF(UPPER(RIGHT(F74,1))=High,UnitCostHigh,UnitCostSpecified)),MATCH(UPPER(LEFT(F74,LEN(F74)-1)),CostCode,0))) -> 0 | H74: =G74*E74 -> 0 | J74: =H74*I74 -> 0 | K74: =+H74*(1-I74) -> 0
G75: Annual treatment costs | H75: =SUM(H72:H74)+0.0001 -> 0.0001
B76: Number of years of treatment | D76: years
G77: Total treatment costs | H77: =H75*E76 -> 0 | K77: =H77 -> 0
G78: Total | H78: =SUM(H5:H69)+H77+0.0001 -> 0.0001 | J78: =SUM(J5:J69)+J77 -> 0 | K78: =SUM(K5:K69)+K77 -> 0
G79: % of Total | J79: =J78/H78 -> 0 | K79: =K78/H78 -> 0
B80: * for construction of passive treatment system refer to "Water Management"

Sheet Water Treatment
A1: 1 | B1: Post Closure Water Treatment - Identified as long term/post-closure in 'Instructions' worksheet
B3: ACTIVITY/MATERIAL | C3: Notes | D3: Units | E3: Quantity | F3: Cost Code | G3: Unit Cost | H3: Cost
B4: ADDITION OF REAGENTS TO WTP
B5: H2O2 | D5: kg | F5: =NA() ->  | G5: =IF(ISNA(F5),0,INDEX(IF(UPPER(RIGHT(F5,1))=Low,UnitCostLow, IF(UPPER(RIGHT(F5,1))=High,UnitCostHigh,UnitCostSpecified)),MATCH(UPPER(LEFT(F5,LEN(F5)-1)),CostCode,0))) -> 0 | H5: =G5*E5 -> 0
B6: lime | D6: kg | F6: =NA() ->  | G6: 0 | H6: 0
B7: ferric sulphate | D7: kg | F7: =NA() ->  | G7: 0 | H7: 0
B8: ferrous sulphate | D8: kg | F8: =NA() ->  | G8: 0 | H8: 0
B9: flocculents | D9: kg | F9: =NA() ->  | G9: 0 | H9: 0
B10: Other | F10: =NA() ->  | G10: 0 | H10: 0
B11: LABOUR AND SUPPLIES
B12: Annual fuel | D12: litres | F12: =NA() ->  | G12: =IF(ISNA(F12),0,INDEX(IF(UPPER(RIGHT(F12,1))=Low,UnitCostLow, IF(UPPER(RIGHT(F12,1))=High,UnitCostHigh,UnitCostSpecified)),MATCH(UPPER(LEFT(F12,LEN(F12)-1)),CostCode,0))) -> 0 | H12: =G12*E12 -> 0
B13: Annual power | D13: kW-h | F13: =NA() ->  | G13: =IF(ISNA(F13),0,INDEX(IF(UPPER(RIGHT(F13,1))=Low,UnitCostLow, IF(UPPER(RIGHT(F13,1))=High,UnitCostHigh,UnitCostSpecified)),MATCH(UPPER(LEFT(F13,LEN(F13)-1)),CostCode,0))) -> 0 | H13: =G13*E13 -> 0
B14: Electrician/mechanic to maintain treatment plant | D14: allow | F14: =NA() ->  | G14: 0 | H14: 0
B15: Equipment maintenance and parts | D15: allow | F15: =NA() ->  | G15: 0 | H15: 0
B16: Misc. supplies, hoses, tools | D16: allow | F16: =NA() ->  | G16: 0 | H16: 0
B17: Communications | D17: allow | F17: =NA() ->  | G17: 0 | H17: 0
B18: Other | F18: =NA() ->  | G18: 0 | H18: 0
B19: WATER MANAGEMENT
B20: Water Treatment (reagents, equip Op. labour) | D20: m3 | F20: AE | G20: 0.62 | H20: =G20*E20 -> 0
B21: Water pumping from sumps and ponds to treatment plant | D21: allow | F21: AE | G21: 29367.83 | H21: =G21*E21 -> 0
B22: Annual Treatment Plant Servicing | D22: manhours | F22: lab-ss | G22: =IF(ISNA(F22),0,INDEX(IF(UPPER(RIGHT(F22,1))=Low,UnitCostLow, IF(UPPER(RIGHT(F22,1))=High,UnitCostHigh,UnitCostSpecified)),MATCH(UPPER(LEFT(F22,LEN(F22)-1)),CostCode,0))) -> 120 | H22: =G22*E22 -> 0
B23: Treatment Plant Servicing Travel Allowance | D23: visit | F23: AE | G23: 4000 | H23: =G23*E23 -> 0
B24: Other | F24: =NA() ->  | G24: =IF(ISNA(F24),0,INDEX(IF(UPPER(RIGHT(F24,1))=Low,UnitCostLow, IF(UPPER(RIGHT(F24,1))=High,UnitCostHigh,UnitCostSpecified)),MATCH(UPPER(LEFT(F24,LEN(F24)-1)),CostCode,0))) -> 0 | H24: =G24*E24 -> 0
B25: WTP WATER SAMPLING AND ANALYSES
B26: Sampling equipment | D26: allow | F26: =NA() ->  | G26: =IF(ISNA(F26),0,INDEX(IF(UPPER(RIGHT(F26,1))=Low,UnitCostLow, IF(UPPER(RIGHT(F26,1))=High,UnitCostHigh,UnitCostSpecified)),MATCH(UPPER(LEFT(F26,LEN(F26)-1)),CostCode,0))) -> 0 | H26: =G26*E26 -> 0
B27: Analyses | D27: allow | F27: =NA() ->  | G27: =IF(ISNA(F27),0,INDEX(IF(UPPER(RIGHT(F27,1))=Low,UnitCostLow, IF(UPPER(RIGHT(F27,1))=High,UnitCostHigh,UnitCostSpecified)),MATCH(UPPER(LEFT(F27,LEN(F27)-1)),CostCode,0))) -> 0 | H27: =G27*E27 -> 0
B28: Shipping to laboratory | D28: allow | F28: =NA() ->  | G28: =IF(ISNA(F28),0,INDEX(IF(UPPER(RIGHT(F28,1))=Low,UnitCostLow, IF(UPPER(RIGHT(F28,1))=High,UnitCostHigh,UnitCostSpecified)),MATCH(UPPER(LEFT(F28,LEN(F28)-1)),CostCode,0))) -> 0 | H28: =G28*E28 -> 0 | M28: CONSTRUCT WATER TREATMENT PLANT
B29: Reporting | D29: allow | F29: =NA() ->  | G29: =IF(ISNA(F29),0,INDEX(IF(UPPER(RIGHT(F29,1))=Low,UnitCostLow, IF(UPPER(RIGHT(F29,1))=High,UnitCostHigh,UnitCostSpecified)),MATCH(UPPER(LEFT(F29,LEN(F29)-1)),CostCode,0))) -> 0 | H29: =G29*E29 -> 0 | M29: Build treatment plant | O29: LS | Q29: =NA() ->  | R29: =IF(ISNA(Q29),0,INDEX(IF(UPPER(RIGHT(Q29,1))=Low,UnitCostLow, IF(UPPER(RIGHT(Q29,1))=High,UnitCostHigh,UnitCostSpecified)),MATCH(UPPER(LEFT(Q29,LEN(Q29)-1)),CostCode,0))) -> 0 | S29: =R29*P29 -> 0
B30: Other | F30: =NA() ->  | G30: =IF(ISNA(F30),0,INDEX(IF(UPPER(RIGHT(F30,1))=Low,UnitCostLow, IF(UPPER(RIGHT(F30,1))=High,UnitCostHigh,UnitCostSpecified)),MATCH(UPPER(LEFT(F30,LEN(F30)-1)),CostCode,0))) -> 0 | H30: =G30*E30 -> 0 | M30: Treatment (hec) 19 | O30: HA | Q30: SNC | R30: 300000 | S30: =R30*P30 -> 0
B31: SITE ACCESS | M31: Build sludge containment facility | O31: LS | Q31: =NA() ->  | R31: =IF(ISNA(Q31),0,INDEX(IF(UPPER(RIGHT(Q31,1))=Low,UnitCostLow, IF(UPPER(RIGHT(Q31,1))=High,UnitCostHigh,UnitCostSpecified)),MATCH(UPPER(LEFT(Q31,LEN(Q31)-1)),CostCode,0))) -> 0 | S31: =R31*P31 -> 0
B32: Road maintenance (incl. snow removal) | D32: allow | F32: AE | G32: 50000 | H32: =G32*E32 -> 0
B33: Winter road tariff | D33: allow | F33: =NA() ->  | G33: =IF(ISNA(F33),0,INDEX(IF(UPPER(RIGHT(F33,1))=Low,UnitCostLow, IF(UPPER(RIGHT(F33,1))=High,UnitCostHigh,UnitCostSpecified)),MATCH(UPPER(LEFT(F33,LEN(F33)-1)),CostCode,0))) -> 0 | H33: =G33*E33 -> 0
B34: Truck rental | D34: allow | F34: =NA() ->  | G34: =IF(ISNA(F34),0,INDEX(IF(UPPER(RIGHT(F34,1))=Low,UnitCostLow, IF(UPPER(RIGHT(F34,1))=High,UnitCostHigh,UnitCostSpecified)),MATCH(UPPER(LEFT(F34,LEN(F34)-1)),CostCode,0))) -> 0 | H34: =G34*E34 -> 0
B35: Air support | D35: allow | F35: =NA() ->  | G35: =IF(ISNA(F35),0,INDEX(IF(UPPER(RIGHT(F35,1))=Low,UnitCostLow, IF(UPPER(RIGHT(F35,1))=High,UnitCostHigh,UnitCostSpecified)),MATCH(UPPER(LEFT(F35,LEN(F35)-1)),CostCode,0))) -> 0 | H35: =G35*E35 -> 0
B36: CONSTRUCT WATER TREATMENT PLANT
B37: Build treatment plant | D37: LS | F37: =NA() ->  | G37: =IF(ISNA(F37),0,INDEX(IF(UPPER(RIGHT(F37,1))=Low,UnitCostLow, IF(UPPER(RIGHT(F37,1))=High,UnitCostHigh,UnitCostSpecified)),MATCH(UPPER(LEFT(F37,LEN(F37)-1)),CostCode,0))) -> 0 | H37: =G37*E37 -> 0
B38: Treatment (hec) 19 | D38: HA | F38: SNC | G38: 300000 | H38: =G38*E38 -> 0
B39: Build sludge containment facility | D39: LS | F39: =NA() ->  | G39: =IF(ISNA(F39),0,INDEX(IF(UPPER(RIGHT(F39,1))=Low,UnitCostLow, IF(UPPER(RIGHT(F39,1))=High,UnitCostHigh,UnitCostSpecified)),MATCH(UPPER(LEFT(F39,LEN(F39)-1)),CostCode,0))) -> 0 | H39: =G39*E39 -> 0
G40: Annual water treatment costs | H40: =SUM(H5:H39)+0.0001 -> 0.0001
B41: Number of years of water treatment | D41: years | E41: 25
G42: Total | H42: =AnnualTreat1Cost*E41 -> 0.0025

Sheet Unit_Costs
D1: Filter by unit
A3: ITEM | B3: Detail | D3: COST CODE | E3: UNITS | F3: LOW $ | G3: HIGH $ | H3: SPECIFIED $ | J3: COMMENTS
A5: Accomodation
D6: ACCM | E6: manday | F6: 100 | G6: 175
A7: Buildings - Decontaminate
B8: Asbestos | D8: BDA | E8: m2 | F8: 25.6 | G8: 51.2 | J8: Low: removal of asbestos siding & flooring; High: removal of insulated pipes, friable asbestos
A9: Buildings - Remove | J9: Unit costs are based on 3m high, single storey building. Scale areas accordingly.
B10: Wood | D10: BRW | E10: m2 | F10: 27.5 | G10: 41
B11: Concrete | D11: BRC | E11: m2 | F11: 40 | G11: 65 | H11: 6 | J11: Specified: puncture concrete foundation slabs
B12: Steel - teardown | D12: BRS1 | E12: m2 | F12: 45 | G12: 65
B13: Steel - for salvage | D13: BRS2 | E13: m2 | F13: 67 | G13: 100
A14: Concrete work
B15: Small pour | D15: CSF | E15: m3 | F15: 426.5 | G15: 639.75 | J15: Low: YK; High=1.5xLow
B16: Large pour | D16: CLF | E16: m3 | F16: 353.5 | G16: 530.25 | H16: 2130 | J16: Specified: concrete crown pillar
A17: Contaminated Soils
B18: ESA Phase 1 | D18: CS1 | E18: each | F18: 7500 | J18: Low: small, "clean" site
B19: ESA Phase 1 | D19: CS2 | E19: each | F19: 50000 | J19: Low: small, "clean" site
B20: Remediate on site | D20: CSR | E20: m3 | F20: 47 | G20: 146
A21: Dozing
B22: doze rock piles | D22: DR | E22: m3 | F22: 1.05 | G22: 2.4 | J22: Low cost: doze crest off dump
B23: doze overburden/soil piles | D23: DS | E23: m3 | F23: 0.95 | G23: 3.8 | J23: High cost: push up to 300 m
A24: Excavate Rock; Low Spec's and QA/QC
B25: drill/blast/load/short haul | D25: RB1 | E25: m3 | F25: 11.4 | G25: 17.05 | J25: Low:quarry operations for bulk fill
B26: drill/blast/load/long haul | D26: RB2 | E26: m3 | F26: 12.05 | G26: 17.8
B27: RB1 + spread and compact | D27: RB3 | E27: m3 | F27: 12.05 | G27: 17.8
B28: RB2 + spread and compact | D28: RB4 | E28: m3 | F28: 12.5 | G28: 30.75
B29: Specified activity | D29: RBS | E29: m3
A30: Excavate Rock; High Spec's and QA/QC | J30: (e.g. ditch/spillway excavation)
B31: drill/blast/load/short haul | D31: RC1 | E31: m3 | F31: 12.05 | G31: 17.8 | J31: Low:foundation excavation;High:spillway excavation
B32: drill/blast/load/long haul | D32: RC2 | E32: m3 | F32: 12.7 | G32: 18.4
B33: RC1 + spread and compact | D33: RC3 | E33: m3 | F33: 12.7 | G33: 18.4 | J33: e,g, cover construction
B34: RC2 + spread and compact | D34: RC4 | E34: m3 | F34: 13.5 | G34: 19.2 | J34: e,g, cover construction
B35: Specified activity | D35: RCS | E35: m3 | H35: 175 | J35: Specified-drift excavation
A36: Excavate Rip Rap
B37: drill/blast/load/short haul/place | D37: RR1 | E37: m3 | F37: 13.5 | G37: 17.75 | J37: High: quarry & place rip rap in channel
B38: drill/blast/load/long haul/place | D38: RR2 | E38: m3 | F38: 14.2 | G38: 20.65
B39: source is waste dump/short haul | D39: RR3 | E39: m3 | F39: 7 | J39: cost includes sorting
B40: source is waste dump/long haul | D40: RR4 | E40: m3 | F40: 7.6
B41: Specified activity | D41: RRS | E41: m3
A42: Excavate Soil; Low Spec's and QA/QC
B43: clear & grub | D43: SBC | E43: m2 | F43: 3.4 | G43: 5
B44: excavate/load/short haul | D44: SB1 | E44: m3 | F44: 4.3 | G44: 5.9
B45: excavate/load/long haul | D45: SB2 | E45: m3 | F45: 4.6 | G45: 7.3
B46: SB1 + spread and compact | D46: SB3 | E46: m3 | F46: 5.1 | G46: 8.9 | J46: Low: non-engineered; High:engineered
B47: SB2 + spread and compact | D47: SB4 | E47: m3 | F47: 5.5 | G47: 11 | J47: Low: non-engineered; High:engineered
B48: Specified activity | D48: SBS | E48: m3 | F48: 3.2 | G48: 6.3 | J48: Low: rehandle waste rock dump by dozing; High:rehandle waste rock by hauling
B49: Tailings | D49: SBT | E49: m3 | F49: 1.35 | G49: 3.7 | H49: 15.5 | J49: High:contour surface - wet or frozen; Specified:haul/place wet infill
A50: Excavate Soil, High Spec's and QA/QC
B51: excavate/load/short haul | D51: SC1 | E51: m3 | F51: 6.8 | G51: 9.3
B52: excavate/load/long haul | D52: SC2 | E52: m3 | F52: 7.1 | G52: 11.75
B53: SC1 + spread and compact | D53: SC3 | E53: m3 | F53: 8.9 | G53: 14.2 | J53: Low: non-engineered; High:engineered
B54: SC2 + spread and compact | D54: SC4 | E54: m3 | F54: 9.3 | G54: 23.2 | J54: Low: non-engineered; High:engineered (e.g. complex covers, low volume dam construction)
B55: Specified activity | D55: SCS | E55: m3 | H55: 18.8 | J55: Backfill adit with waste rock
A56: Fence
D57: FNC | E57: m | F57: 13.55 | G57: 203
A58: Fuel and Electricity
B59: Fuel cost - gas | D59: FCG | E59: litre | F59: 1.05 | G59: 1.4
B60: Fuel cost - diesel | D60: FCD | E60: litre | F60: 0.99 | G60: 1.39
B61: Fuel mobilization | D61: FCM | E61: litre | F61: 0.22 | G61: 0.42 | J61: High: winter road usage
B62: Electricity | D62: FCE | E62: kW-h | F62: 0.17 | G62: 0.19 | H62: 0.49 | J62: Low and High:Yellowknife; Specified:diesel generator
A63: Geo-Synthetics
B64: geotextile | D64: GST | E64: m2 | F64: 3.44 | J64: Supply and install
B65: geogrid | D65: GSG | E65: m2 | F65: 5.75
B66: liner, HDPE | D66: GSHDPE | E66: m2 | F66: 7.95 | J66: Supply and install; large quantity
B67: liner, ES3 | D67: GSES3 | E67: m2 | F67: 20.2 | J67: FOB Yellowknife
B68: geosynthetic installation | D68: GSI | E68: m2 | F68: 3.16 | G68: 14 | J68: Low:geotextile; High:ES3 or HDPE
B69: bentonite soil ammendment | D69: GSBA | E69: tonne | F69: 308.3 | G69: 348.5 | J69: FOB Edmonton, add shipping & mixing
A70: Grouting (/m3 of rock grouted)
D71: grout | E71: m3 | F71: 236.55 | G71: 286.75 | J71: High: cement, FOB Yellowknife
A72: Labour & Equipment Rates
B73: Site manager | D73: sman | E73: $/hr | F73: 125 | G73: 152
B74: Supervisor | D74: super | E74: $/hr | F74: 52 | G74: 91.84
B75: Registered engineer | D75: eng | E75: $/hr | F75: 95 | G75: 220
B76: Environmental coordinator | D76: envco | E76: $/hr | F76: 74.16 | G76: 130
B77: Evironmental technologist | D77: envtech | E77: $/hr | F77: 36
B78: Electrician | D78: elec | E78: $/hr | F78: 74 | G78: 95
B79: Journeyman - various | D79: journey | E79: $/hr | F79: 44 | G79: 71.79
B80: Labour - skilled | D80: lab-s | E80: $/hr | F80: 41 | G80: 49.6 | H80: 120
B81: Labour - unskilled | D81: lab-us | E81: $/hr | F81: 31 | G81: 43.98
B82: Equipment operator | D82: oper | E82: $/hr | F82: 41 | G82: 65
B83: Heavy duty mechanic | D83: mech | E83: $/hr | F83: 49 | G83: 72.85
B84: Water treatment plant operator | D84: oper-wt | E84: $/hr | F84: 41 | G84: 59.86
B85: Security / first aid | D85: safety | E85: $/hr | F85: 36 | G85: 66.97
B86: Administative staff | D86: admin | E86: $/hr | F86: 38 | G86: 57.89
B88: Equipment rates include operator and fuel
B89: Loader - 4 cu.yd (3.06m3) | D89: load-s | E89: $/hr | F89: 175
B90: Loader - 7 cu.yd (5.35m3) | D90: load-l | E90: $/hr | F90: 315
B91: Excavator - 26.76-30.84 tonnes | D91: exc-s | E91: $/hr | F91: 190
B92: Excavator - 68.95+tonnes | D92: exc-l | E92: $/hr | F92: 420
B93: Grader | D93: grad | E93: $/hr | F93: 190
B94: Dump truck off hwy 30-50 tonnes | D94: truck-s | E94: $/hr | F94: 225
B95: Dump truck off hwy 55-75 tonnes | D95: truck-l | E95: $/hr | F95: 300
B96: dozer, small | D96: dozers | E96: $/hr | F96: 205 | G96: 260
B97: dozer, large | D97: dozerl | E97: $/hr | F97: 490 | G97: 565
B98: smooth drum compactor | D98: comp | E98: $/hr | F98: 155
B99: scooptram, 6 yd3 bucket | D99: scoop | E99: $/hr | F99: 170
B100: flat bed truck with hiab | D100: hiab | E100: $/hr | F100: 155
B101: fuel truck | D101: ftruck | E101: $/hr | F101: 150
B102: water truck | D102: wtruck | E102: $/hr | F102: 58 | G102: 150
A103: Mobilize Heavy Equipment
B104: Road access | D104: MHER | E104: kmtonne | F104: 3.4 | G104: 10.25
B105: Air access | D105: MHEA | E105: kmtonne | F105: 12 | J105: cargo rate>500lb
A106: Mobilize Camp
B107: Road access | D107: MCR | E107: each | F107: 50000 | J107: refurbish existing camp
A108: Mobilize Workers
B109: flight | D109: MW | E109: each | F109: 4500 | G109: 9100 | J109: Low:e.g. 8 passenger; High: Dash 7
A110: Oil Removal
B111: oil removal | D111: OR | E111: litre | F111: 0.43 | G111: 1.2 | J111: Low:waste oil heater; High: ship offsite
A112: PCB Removal
B113: Remove from site | D113: PCBR | E113: litre | F113: 40.2 | G113: 46.9 | J113: Low: shipping, handling & disposal from Yellowknife
A114: Pipes, small (<6in dia.)
B115: remove/dispose on site | D115: PSR | E115: m | F115: 1 | G115: 24 | J115: Low: remove/dispose on site; High: remove/re-use
B116: supply | D116: PSS | E116: m | F116: 6.1 | G116: 11.1 | J116: Low:supply; High:supply and ship
B117: install | D117: PSI | E117: m | F117: 25
A118: Pipes, large (>6in dia.)
B119: remove/dispose on site | D119: PLR | E119: m | F119: 22 | G119: 72 | J119: Low: remove/dispose on site; High: remove/re-use
B120: supply | D120: PLS | E120: m | F120: 129 | G120: 143 | J120: Low:supply; High:supply and ship
B121: install | D121: PLI | E121: m | F121: 50
A122: Power Lines
B123: remove/dispose on site | D123: POWR | E123: m | F123: 25.5
A124: Process Chemicals
B125: Remove from site | D125: PCR | E125: kg | F125: 0.45 | G125: 2.5 | J125: Low: shipping, handling & disposal from Yellowknife
A126: Pumps
B127: Pump capital cost | D127: PC | E127: each | F127: 195000
B128: Pump shipping | D128: PS | E128: each | F128: 2500
B129: Pump operating cost | D129: POC | E129: m3 | F129: 0.12 | J129: pump operating costs should be calculated based on pump capacity, fuel costs, etc.
B130: Pump maintenance | D130: PM | E130: allow | F130: 25000
A131: Pump sand BackFill
D132: PBF | E132: m3 | F132: 85 | G132: 300
A133: Scarify - road/mine site
D134: SCFY | E134: ha | F134: 4300 | G134: 6030 | H134: 2150
A135: Shaft, Raise & Portal Closures
B136: Shaft & Raises | D136: SR | E136: m2 | F136: 645 | G136: 2132 | J136: Low:pre-cast concrete slabs, little site prep. Area=shaft+>1m all around
B137: Portals | D137: POR | E137: m3 | F137: 18.8 | G137: 250 | H137: 1200 | J137: Low:unit cost code SCS;High:excavate & backfill collapsed portal;Spec: installed pressure plug
A138: Site Inspection Report
D139: RPT | E139: each | F139: 10000 | G139: 20000
A140: SpillWay - Clear
D141: SW | E141: each | F141: 3000 | G141: 7000
A142: Survey/Instrumentation
D143: SI | E143: each | F143: 1800 | G143: 3600 | J143: 2 person crew
A144: Treatment Plant - Construct
B145: Small (< 1000 m3/d) | D145: TPS | E145: lump sum | F145: 9000000 | G145: 15000000
B146: Large (> 1000 m3/d) | D146: TPL | E146: lump sum | F146: 15000000 | G146: 46000000
B147: Constructed Wetland | D147: CWTS | E147: ha | F147: 200000 | G147: 300000
A148: Treatment Plant - Operate
D149: TPO | E149: m3 | F149: 0.35 | G149: 2
A150: Treatment Chemicals
B151: ferric sulphate | D151: ferric | E151: kg | F151: 1.19
B152: ferrous sulphate | D152: ferrous | E152: kg | F152: 1.32
B153: lime | D153: lime | E153: kg | F153: 0.56
B154: hydrogen peroxide, 35% | D154: hperox | E154: kg | F154: 1.5
B155: Sodium Metabisulfate | D155: Nametab | E155: kg | F155: 1.18
B156: Caustic soda, 50% | D156: caustic | E156: kg | F156: 0.74
B157: Sulfuric acid, 93% | D157: sulfuric | E157: kg | F157: 0.31
B158: flocculant | D158: flocc | E158: kg | F158: 6
B159: copper sulphate | D159: copper | E159: kg
B160: shipping | D160: shipping | E160: kg | F160: 0.2
A161: Vegetation
B162: Hydroseed, Flat | D162: VHF | E162: ha | F162: 4000
B163: Hydroseed, Sloped | D163: VHS | E163: ha | F163: 4500
B164: Veg. blanket/erosion mat | D164: VB | E164: ha | F164: 13000
B165: Tree planting | D165: VT | E165: ha | F165: 2600 | G165: 6000
B166: Wetland species | D166: VW | E166: ha | H166: 47.72 | J166: Specified= /m3, Wetland Growth Media Substrate mixed and installed (sand, biochar and fertilizer, woodchips)
A167: Water Sampling/Analysis/Reporting
D168: WS | E168: each | F168: 7000 | G168: 10000
A169: Winter Road
B170: Construction | D170: WRC | E170: km | F170: 2000 | G170: 11500
B171: Usage | D171: WRU | E171: kmtonne | F171: 0.29
A172: Unit Rates as per 2015 EBS
B173: Grade and Contour | D173: 15GC | E173: m2 | H173: 1.810295346
B174: Grade and Contour With Liner | D174: 15GCL | E174: m2 | H174: 5.308295346
B175: Grade and Contour Significant Disturbed Areas | D175: 15GCD | E175: m2 | H175: 2.715443019
B176: Fill Application | D176: 15PF | E176: m2 | H176: 44.36874787
A177: Cost for On-Site Disposal of Equipment:
B178: Light Mobile Equipment | D178: 15MOL | E178: Ea | H178: 941.0892063
B179: Medium Mobile Equipment | D179: 15MOM | E179: Ea | H179: 1494.13381
B180: Heavy Mobile Equipment | D180: 15MOH | E180: Ea | H180: 2618.873952
B181: Other mobile equipment (reclaim conveyor) | D181: 15MOR | E181: Ea | H181: 1329441.311
B182: Light mechanical equipment - Decontaminate and dispose on-site | D182: 15LME | E182: Ea | H182: 1980.798386
B183: Medium mechanical equipment - Decontaminate and dispose on-site | D183: 15MME | E183: Ea | H183: 4261.336914
B184: Heavy mechanical equipment - Decontaminate and dispose on-site | D184: 15MEH | E184: Ea | H184: 41205.448
B185: Light Tanks | D185: 15TL | E185: Ea | H185: 2148.329349
B186: Medium Tanks | D186: 15MT | E186: Ea | H186: 7387.31481
B187: Light Diesel Tanks | D187: 15LiDT | E187: Ea | H187: 3693.657405
B188: Medium Diesel Tanks | D188: 15MDT | E188: Ea | H188: 16166.40133
B189: Large Diesel Tanks | D189: 15LDT | E189: Ea | H189: 106338.7413
B190: Largest Diesel Tanks | D190: 15XLDT | E190: Ea | H190: 171468.151
B191: Misc Items (Minor) | D191: 15MEI | E191: Ea | H191: 529.8267619
B192: Fuel tanks - Medium Mobile Diesel Tanks (3,000L to 500kL) | D192: 15MMFT | E192: Ea | H192: 10481.0492
A193: Removal of Contaminated Buildings
B194: fold away | D194: 15RCBF | E194: m2 | H194: 142.4093739
B195: ISO Shipping Container | D195: 15RCBI | E195: m2 | H195: 143.4181239
B196: modular | D196: 15RCBM | E196: m2 | H196: 143.4181239
B197: soft walled | D197: 15RCBS | E197: m2 | H197: 148.3478489
B198: Temporary construction warehouses and offices Allowance | D198: 15RCBT | E198: m2 | H198: 25000
A199: Removal of Buildings
B200: fold away | D200: 15RBF | E200: m2 | H200: 41.56932469
B201: modular | D201: 15RBM | E201: m2 | H201: 59.38474956
B202: ISO Shipping Container | D202: 15RBI | E202: m2 | H202: 29.69237478
B203: soft walled | D203: 15RBS | E203: m2 | H203: 47.50779965
... 90 more rows

Sheet Estimator
D1: 1 | E1: Equipment Productivity Figures and Graphs have been reproduced from Caterpillar Performance Handbook - Edition 42
B2: EXCAVATION | G2: HAUL AND DUMPING | L2: SPREADING/DOZING
B3: Productivity | G3: Productivity | L3: Productivity
B4: Machine | C4: Cat 336EL | G4: Machine | H4: Cat 770 | L4: Machine | M4: Cat D8
B5: bucket capacity | D5: 3.16 | E5: m3 | G5: truck capacity | I5: 25.1 | J5: m3 | L5: Estimate production using example curves provided or | N5: 600 | O5: m3/hr
B6: fill factor | D6: 0.75 | E6: % | G6: fill factor | I6: 0.8 | J6: % | L6: equivalent from other supplier
B7: cycle time | D7: 45 | E7: seconds | L7: Correction factors (see table provided)
B8: operator skill | D8: 0.8 | E8: % | G8: load time | I8: 6 | J8: min. | L8: operator skill | N8: 0.75
B9: machine availability | D9: 0.83 | E9: % | G9: haul distance | I9: 1.5 | J9: km | L9: material type, see table | N9: 0.8
B10: altitude adjustment | D10: 1 | E10: % | G10: average velocity | I10: 20 | J10: km/hr | L10: slot dozing | N10: 1
B11: Hourly productivity | D11: =D5*D6*(60*60/D7)*D8*D9*D10 -> 125.8944 | E11: m3/hr | G11: haul time + return time | I11: =+I9/I10*60*2 -> 9 | J11: min. | L11: side by side dozing | N11: 1
G12: wait time | I12: 0.5 | J12: min. | L12: visibility | N12: 1
G13: dump time | I13: 1 | J13: min. | L13: job efficiency | N13: 0.83
G14: cycle time | I14: =I8+SUM(I11:I13) -> 16.5 | J14: min. | L14: altitude adjustment | N14: 1
G15: machine availability | I15: 0.83 | J15: % | L15: slope adjustment | N15: 1
G16: altitude adjustment | I16: 1 | J16: % | L16: Hourly productivity | N16: =+N5*N8*N9*N10*N11*N12*N13*N14*N15 -> 298.8 | O16: m3/hr
I17: =I14*I15*I16 -> 13.695 | J17: ave. min/cycle
G18: Hourly productivity | I18: =I5*I6*60/I17 -> 87.97371303 | J18: m3/hr
B19: Operating Costs | G19: Operating Costs | L19: Operating Costs
B20: - Contractor | G20: - Contractor | L20: - Contractor
B21: Contractor hourly rate | D21: 180 | E21: $/hr | G21: Contractor hourly rate | I21: 225 | J21: $/hr | L21: Hourly rate - contractor supplied | N21: 260 | O21: $/hr
B22: Excavation cost - contractor rate | D22: =D21/D11 -> 1.429769712 | E22: $/m3 | G22: Haul and Dump - contractor rate | I22: =I21/I18 -> 2.557582171 | J22: $/m3 | L22: Dozing - contractor rate | N22: =N21/N16 -> 0.8701472557 | O22: $/m3
B24: - Owner | G24: - Owner | L24: - Owner
B25: ownership, daily | E25: $/day | G25: ownership, daily | J25: $/day | L25: ownership, daily | O25: $/day
B26: maintenance | E26: $/hr | G26: maintenance | J26: $/hr | L26: maintenance | O26: $/hr
B27: fuel | E27: $/hr | G27: fuel | J27: $/hr | L27: fuel | O27: $/hr
B28: consumables (cutters, tires) | E28: $/hr | G28: consumables (cutters, tires) | J28: $/hr | L28: consumables (cutters, tires) | O28: $/hr
B29: operator | E29: $/hr | G29: operator | J29: $/hr | L29: operator | O29: $/hr
B30: Owner hourly rate | D30: =D25/10+SUM(D26:D29) -> 0 | E30: $/hr | G30: Owner hourly rate | I30: =I25/10+SUM(I26:I29) -> 0 | J30: $/hr | L30: Owner hourly rate | N30: =N25/10+SUM(N26:N29) -> 0
B31: Excavation cost - owner rate | D31: =D30/D11 -> 0 | E31: $/m3 | G31: Haul/Dumping Cost - owner rate | I31: =I30/I18 -> 0 | J31: $/m3 | L31: Spreading/Dozing Cost - owner rate | N31: =N30/N16 -> 0 | O31: $/hr
B32: Excavation cost - select contractor or owner rate (D22 or D31) | E32: $/m3 | G32: Haul/Dumping Cost - select contractor or owner rate (I22 or I31 | J32: $/m3 | L32: Spreading/Dozing Cost - select contractor or owner rate (N22 or N31) | O32: $/m3
B36: Excavator | G36: Trucking | L36: Dozing
C37: Cat 320 | D37: Cat 325B | E37: Cat 375 | H37: Cat 771 D | I37: Cat 777D | J37: Cat 789C
B38: heaped bucket capacity, m3 | C38: 1.5 | D38: 2.2 | E38: 5.4 | G38: Truck capacity - heaped, m3 | H38: 27.5 | I38: 60.5 | J38: 137
D39: Typical Cycle Times (seconds)
B40: easy digging, shallow digging, small swing angle | C40: 16 | D40: 18 | E40: 20
B41: med. to hard digging, rocky soil, swing angle to 90 deg. | C41: 23 | D41: 23 | E41: 25
B42: tough digging, sandstone, caliche, at max. machine depth, swing angle > 120 deg. | C42: 27 | D42: 29 | E42: 35
B44: Material | C44: Fill Factor (% of heaped bucket capacity
B45: Moist loam or sandy clay | D45: 100 - 110
B46: sand and gravel (not till) | D46: 95 - 110
B47: hard tough clay | D47: 80 - 90
B48: rock - will blasted | D48: 60 - 75
B49: rock - poorly blasted | D49: 40 -60
B51: Operator Skill | C51: poor | D51: average | E51: good
B52: Correction factor | C52: 0.6 | D52: 0.75 | E52: 1
B54: Machine availability | C54: poor | D54: average | E54: good
B55: Correction factor | C55: 0.9 | D55: 0.95 | E55: 1

Sheet Tools
A2: The functions in this worksheet serve as a back up in the event that the menu item "Add-Ins" is not shown in Excel menu bar
C5: Save file before clearing all data
L7: These functions duplicate components within worksheet
C10: Shows both active worksheet as well as table of Unit Costs in a separate window
C13: Prints all worksheets having non-zero sums
